Workbook

Sheet Form
B2: =IF(AND(WSIZE>0,HSIZE>0),"Only Available At"&" "&WSIZE&" x "&HSIZE&IF(HCONTROL=1," or "&HSIZE2,""),"") ->  | H2: Select Model | J2: =IF(ISERROR(SHATERROR),"",IF(SHATERROR=1,"Adjust CMR to Increase Egress Height","")) -> 
B3: =IF(Model_Select="Select Model","","(Model"&" "&ModelNo&")") ->  | G3: Select Model | J3: ="Min. W:"&" "&MINW -> Min. W: 0 | N3: ="Max W:"&" "&MAXW -> Max W: 0
B4: =Description -> 0 | J4: ="Min. H:"&" "&MINH -> Min. H: 0 | N4: ="Max H:"&" "&MAXH -> Max H: 0 | P4: ="Max UI:"&" "&MAXUI -> Max UI: 0
B5: =IF(AND(W>0,H>0),(IF(ISERROR(VLOOKUP(1,Data!$A:$D,3,FALSE)),"",VLOOKUP(1,Data!$A:$D,3,FALSE))),"") ->  | H5: =IF(AND(W>0,H>0),(IF(ISERROR(VLOOKUP(1,Data!$A:$D,4,FALSE)),"",VLOOKUP(1,Data!$A:$D,4,FALSE))),"") ->  | N5: Exact Size
B6: =IF(AND(W>0,H>0),(IF(ISERROR(VLOOKUP(2,Data!$A:$D,3,FALSE)),"",VLOOKUP(2,Data!$A:$D,3,FALSE))),"") ->  | H6: =IF(AND(W>0,H>0),(IF(ISERROR(VLOOKUP(2,Data!$A:$D,4,FALSE)),"",VLOOKUP(2,Data!$A:$D,4,FALSE))),"") ->  | J6: Width: | N6: =IF(AND(RO=2,W>0),W-WCUTBACK,W) -> 0 | O6: =IF(AND(W>0,WSIZE>0,W<>WSIZE),"<< Width Not Available","") -> 
B7: =IF(AND(W>0,H>0),(IF(ISERROR(VLOOKUP(3,Data!$A:$D,3,FALSE)),"",VLOOKUP(3,Data!$A:$D,3,FALSE))),"") ->  | H7: =IF(AND(W>0,H>0),(IF(ISERROR(VLOOKUP(3,Data!$A:$D,4,FALSE)),"",VLOOKUP(3,Data!$A:$D,4,FALSE))),"") ->  | J7: Height: | N7: =IF(AND(RO=2,H>0),H-HCUTBACK,H) -> 0 | O7: =IF(AND(H>0,HSIZE>0,HSIZE2>0,H<>HSIZE,H<>HSIZE2),"<< Height Not Available","") -> 
B8: =IF(AND(W>0,H>0),(IF(ISERROR(VLOOKUP(4,Data!$A:$D,3,FALSE)),"",VLOOKUP(4,Data!$A:$D,3,FALSE))),"") ->  | H8: =IF(AND(W>0,H>0),(IF(ISERROR(VLOOKUP(4,Data!$A:$D,4,FALSE)),"",VLOOKUP(4,Data!$A:$D,4,FALSE))),"") ->  | J8: =IF(OR(ModelNo="S140",ModelNo="S144",ModelNo="S146",ModelNo="S140 (HP)",ModelNo="S144 (HP)",ModelNo="S146 (HP)"),"Leg:","") -> 
B9: =IF(AND(W>0,H>0),(IF(ISERROR(VLOOKUP(5,Data!$A:$D,3,FALSE)),"",VLOOKUP(5,Data!$A:$D,3,FALSE))),"") ->  | H9: =IF(AND(W>0,H>0),(IF(ISERROR(VLOOKUP(5,Data!$A:$D,4,FALSE)),"",VLOOKUP(5,Data!$A:$D,4,FALSE))),"") ->  | J9: =IF(BTYPE="Custom","CMR:","") ->  | N9: =CMR_MESSAGE -> 0
B10: =IF(AND(W>0,H>0),(IF(ISERROR(VLOOKUP(6,Data!$A:$D,3,FALSE)),"",VLOOKUP(6,Data!$A:$D,3,FALSE))),"") ->  | H10: =IF(AND(W>0,H>0),(IF(ISERROR(VLOOKUP(6,Data!$A:$D,4,FALSE)),"",VLOOKUP(6,Data!$A:$D,4,FALSE))),"") ->  | J10: =IF(SELECTEXT="Select Extrusion","Ext.",IF(SELECTEXT="Select Reinforcement","Reinforce",IF(SELECTEXT="Standard","HP >>",""))) ->  | N10: =REINF_MESSAGE -> 
B11: =IF(AND(W>0,H>0),(IF(ISERROR(VLOOKUP(7,Data!$A:$D,3,FALSE)),"",VLOOKUP(7,Data!$A:$D,3,FALSE))),"") ->  | H11: =IF(AND(W>0,H>0),(IF(ISERROR(VLOOKUP(7,Data!$A:$D,4,FALSE)),"",VLOOKUP(7,Data!$A:$D,4,FALSE))),"") ->  | J11: Opening: | N11: =RO_OPTION -> 0
B12: =IF(AND(W>0,H>0),(IF(ISERROR(VLOOKUP(8,Data!$A:$D,3,FALSE)),"",VLOOKUP(8,Data!$A:$D,3,FALSE))),"") ->  | H12: =IF(AND(W>0,H>0),(IF(ISERROR(VLOOKUP(8,Data!$A:$D,4,FALSE)),"",VLOOKUP(8,Data!$A:$D,4,FALSE))),"") ->  | J12: Type:
B13: =IF(AND(W>0,H>0),(IF(ISERROR(VLOOKUP(9,Data!$A:$D,3,FALSE)),"",VLOOKUP(9,Data!$A:$D,3,FALSE))),"") ->  | H13: =IF(AND(W>0,H>0),(IF(ISERROR(VLOOKUP(9,Data!$A:$D,4,FALSE)),"",VLOOKUP(9,Data!$A:$D,4,FALSE))),"") ->  | J13: Screen:
B14: =IF(AND(W>0,H>0),(IF(ISERROR(VLOOKUP(10,Data!$A:$D,3,FALSE)),"",VLOOKUP(10,Data!$A:$D,3,FALSE))),"") ->  | H14: =IF(AND(W>0,H>0),(IF(ISERROR(VLOOKUP(10,Data!$A:$D,4,FALSE)),"",VLOOKUP(10,Data!$A:$D,4,FALSE))),"") ->  | J14: Glass:
B16: =IF(AND(W>0,H>0),(IF(ISERROR(VLOOKUP(11,Data!$A:$D,3,FALSE)),"",VLOOKUP(11,Data!$A:$D,3,FALSE))),"") ->  | H16: =IF(AND(W>0,H>0),(IF(ISERROR(VLOOKUP(11,Data!$A:$D,4,FALSE)),"",VLOOKUP(11,Data!$A:$D,4,FALSE))),"") -> 
B17: =IF(AND(W>0,H>0),(IF(ISERROR(VLOOKUP(12,Data!$A:$D,3,FALSE)),"",VLOOKUP(12,Data!$A:$D,3,FALSE))),"") ->  | H17: =IF(AND(W>0,H>0),(IF(ISERROR(VLOOKUP(12,Data!$A:$D,4,FALSE)),"",VLOOKUP(12,Data!$A:$D,4,FALSE))),"") -> 
B18: =IF(AND(W>0,H>0),(IF(ISERROR(VLOOKUP(13,Data!$A:$D,3,FALSE)),"",VLOOKUP(13,Data!$A:$D,3,FALSE))),"") ->  | H18: =IF(AND(W>0,H>0),(IF(ISERROR(VLOOKUP(13,Data!$A:$D,4,FALSE)),"",VLOOKUP(13,Data!$A:$D,4,FALSE))),"") -> 
B19: =IF(AND(W>0,H>0),(IF(ISERROR(VLOOKUP(14,Data!$A:$D,3,FALSE)),"",VLOOKUP(14,Data!$A:$D,3,FALSE))),"") ->  | H19: =IF(AND(W>0,H>0),(IF(ISERROR(VLOOKUP(14,Data!$A:$D,4,FALSE)),"",VLOOKUP(14,Data!$A:$D,4,FALSE))),"") -> 
B20: =IF(AND(W>0,H>0),(IF(ISERROR(VLOOKUP(15,Data!$A:$D,3,FALSE)),"",VLOOKUP(15,Data!$A:$D,3,FALSE))),"") ->  | H20: =IF(AND(W>0,H>0),(IF(ISERROR(VLOOKUP(15,Data!$A:$D,4,FALSE)),"",VLOOKUP(15,Data!$A:$D,4,FALSE))),"") -> 
B21: =IF(AND(W>0,H>0),(IF(ISERROR(VLOOKUP(16,Data!$A:$D,3,FALSE)),"",VLOOKUP(16,Data!$A:$D,3,FALSE))),"") ->  | H21: =IF(AND(W>0,H>0),(IF(ISERROR(VLOOKUP(16,Data!$A:$D,4,FALSE)),"",VLOOKUP(16,Data!$A:$D,4,FALSE))),"") -> 
B22: =IF(AND(W>0,H>0),(IF(ISERROR(VLOOKUP(17,Data!$A:$D,3,FALSE)),"",VLOOKUP(17,Data!$A:$D,3,FALSE))),"") ->  | H22: =IF(AND(W>0,H>0),(IF(ISERROR(VLOOKUP(17,Data!$A:$D,4,FALSE)),"",VLOOKUP(17,Data!$A:$D,4,FALSE))),"") -> 
B23: =IF(AND(W>0,H>0),(IF(ISERROR(VLOOKUP(18,Data!$A:$D,3,FALSE)),"",VLOOKUP(18,Data!$A:$D,3,FALSE))),"") ->  | H23: =IF(AND(W>0,H>0),(IF(ISERROR(VLOOKUP(18,Data!$A:$D,4,FALSE)),"",VLOOKUP(18,Data!$A:$D,4,FALSE))),"") -> 
B24: =IF(AND(W>0,H>0),(IF(ISERROR(VLOOKUP(19,Data!$A:$D,3,FALSE)),"",VLOOKUP(19,Data!$A:$D,3,FALSE))),"") ->  | H24: =IF(AND(W>0,H>0),(IF(ISERROR(VLOOKUP(19,Data!$A:$D,4,FALSE)),"",VLOOKUP(19,Data!$A:$D,4,FALSE))),"") -> 
B25: =IF(AND(W>0,H>0),(IF(ISERROR(VLOOKUP(20,Data!$A:$D,3,FALSE)),"",VLOOKUP(20,Data!$A:$D,3,FALSE))),"") ->  | H25: =IF(AND(W>0,H>0),(IF(ISERROR(VLOOKUP(20,Data!$A:$D,4,FALSE)),"",VLOOKUP(20,Data!$A:$D,4,FALSE))),"") -> 

Sheet Balance (hidden)
T1: BLOCK & TACKLE BALANCE CHART
C2: CFB | R2: TOP SASH | W2: BOTTOM SASH
B3: =VLOOKUP(BTM_WGT,CFB_W,3,FALSE) ->  | C3: 4 | D3: 3/ | E3: BN | G3: 3M40A | H3: Length | I3: Weight/ft | J3: Weight | L3: 8M40A | M3: Length | N3: Weight/ft | O3: Weight | R3: Sash Weight | S3: Tube Length | T3: Balance | U3: Weight | W3: Sash Weight | X3: Tube Length | Y3: Balance | Z3: Weight | AH3: Caldwell Balance Chart
C4: =C3+1 -> 5 | D4: 3/ | E4: BN | G4: Bottom Top Rail | H4: =BSW_3M40A/12 -> -0.2239583333 | I4: 0.31 | J4: =H4*I4 -> -0.06942708333 | L4: Top Top Rail | M4: =TSW_8M40A/12 -> -0.3177083333 | N4: 0.29 | O4: =M4*N4 -> -0.09213541667 | R4: =TRUNC(TOP_WGT+GRID) -> 0 | S4: =$R$9 -> 0 | T4: Number | U4: Range | W4: =TRUNC(BTM_WGT+GRID) -> 0 | X4: =$W$9 -> 0 | Y4: Number | Z4: Range | AH4: =IF(OR(ModelNo="1700",ModelNo="1720",ModelNo="1730"),1,IF(OR(ModelNo="1900",ModelNo="1920",ModelNo="1930"),2,3)) -> 3 | AI4: =IF(OR(ModelNo="1700",ModelNo="1720",ModelNo="1730"),4,IF(OR(ModelNo="1900",ModelNo="1920",ModelNo="1930"),5,6)) -> 6 | AJ4: Bott. | AK4: Top | AM4: 1 | AN4: 4 | AO4: 2 | AP4: 5 | AQ4: 3 | AR4: 6
C5: 6 | D5: 3/ | E5: BN | G5: Bottom Bottom Rail | H5: =BSW_3M40A/12 -> -0.2239583333 | I5: 0.285 | J5: -0.063828125 | L5: Top Bottom Rail | M5: =TSW_8M40A/12 -> -0.3177083333 | N5: 0.285 | O5: -0.090546875 | R5: Balance Size | S5: =IF(AND(T5>0,U5>0),T5,0) -> 0 | T5: =IF($S$4<=6,6,0) -> 6 | U5: =IF(AND(T5=6,$R$4>=2,$R$4<=5),T5&"A",0) -> 0 | W5: Balance Size | X5: =IF(AND(Y5>0,Z5>0),Y5,0) -> 0 | Y5: =IF($X$4<=6,6,0) -> 6 | Z5: =IF(AND(Y5=6,$W$4>=2,$W$4<=5),Y5&"A",0) -> 0 | AH5: =HLOOKUP($AH$4,CALDWELL_LOOKUP,2,FALSE) -> 9 | AI5: =HLOOKUP($AI$4,CALDWELL_LOOKUP,2,FALSE) -> 9.9995 | AJ5: 8 | AK5: 7 | AM5: 9.7665 | AN5: 10.766 | AO5: 9.2185 | AP5: 10.218 | AQ5: 9 | AR5: 9.9995
C6: 7 | D6: 4/ | E6: RD | G6: Bottom Stile | H6: =((BSH_3M40A)*2)/12 -> -0.09375 | I6: 0.256 | J6: -0.024 | L6: Top Stile | M6: =IF(AND(TSH_8M40A>33,TSH_8M40A<=44),TSH_8M40A-9,IF(TSH_8M40A>44,TSH_8M40A-12,0)) -> 0 | N6: 0.256 | O6: 0 | R6: =VLOOKUP((MAX(S5:S271)),S5:U271,3,FALSE) -> 0 | S6: 0 | T6: 6 | U6: =IF(AND(T6=6,$R$4>=6,$R$4<=9),T6&"B",0) -> 0 | W6: =VLOOKUP((MAX(X5:X271)),X5:Z271,3,FALSE) -> 0 | X6: 0 | Y6: 6 | Z6: =IF(AND(Y6=6,$W$4>=6,$W$4<=9),Y6&"B",0) -> 0 | AH6: =HLOOKUP($AH$4,CALDWELL_LOOKUP,3,FALSE) -> 10 | AI6: =HLOOKUP($AI$4,CALDWELL_LOOKUP,3,FALSE) -> 10.9995 | AJ6: 9 | AK6: 8 | AM6: 10.7665 | AN6: 11.766 | AO6: 10.2185 | AP6: 11.218 | AQ6: 10 | AR6: 10.9995
C7: 8 | D7: 4/ | E7: RD | G7: Bottom Rail Reinf. | H7: =IF(BSW_3M40A>35.25,(BSW_3M40A-8.25)/12,0) -> 0 | I7: 0.43 | J7: 0 | L7: Top Rail Reinf. | M7: =IF(TSW_8M40A>34.125,(TSW_8M40A-7.125)/12,0) -> 0 | N7: 0.26 | O7: 0 | S7: 0 | T7: 6 | U7: =IF(AND(T7=6,$R$4>=10,$R$4<=12),T7&"C",0) -> 0 | X7: 0 | Y7: 6 | Z7: =IF(AND(Y7=6,$W$4>=10,$W$4<=12),Y7&"C",0) -> 0 | AH7: =HLOOKUP($AH$4,CALDWELL_LOOKUP,4,FALSE) -> 11 | AI7: =HLOOKUP($AI$4,CALDWELL_LOOKUP,4,FALSE) -> 12.9995 | AJ7: 10 | AK7: 9 | AM7: 11.7665 | AN7: 13.766 | AO7: 11.2185 | AP7: 13.218 | AQ7: 11 | AR7: 12.9995
C8: 9 | D8: 5/ | E8: BU | G8: Bottom Stile Reinf. | H8: =IF(BSH_3M40A>29.625,BSH_3M40A-10.125,0) -> 0 | I8: 0.43 | J8: 0 | L8: Keeper Bead | M8: =(TGW_8M40A+0.53)/12 -> -0.4297916667 | N8: 0.056 | O8: =M8*N8 -> -0.02406833333 | R8: Top Tube length | S8: 0 | T8: 6 | U8: =IF(AND(T8=6,$R$4>=13,$R$4<=15),T8&"D",0) -> 0 | W8: Bott. Tube Length | X8: 0 | Y8: 6 | Z8: =IF(AND(Y8=6,$W$4>=13,$W$4<=15),Y8&"D",0) -> 0 | AH8: =HLOOKUP($AH$4,CALDWELL_LOOKUP,5,FALSE) -> 13 | AI8: =HLOOKUP($AI$4,CALDWELL_LOOKUP,5,FALSE) -> 14.9995 | AJ8: 12 | AK8: 10 | AM8: 13.7665 | AN8: 15.766 | AO8: 13.2185 | AP8: 15.218 | AQ8: 13 | AR8: 14.9995
C9: 10 | D9: 5/ | E9: BU | G9: Bottom Glass | H9: =(BGW_3M40A*BGH_3M40A)/144 -> 0.07722981771 | I9: =GLASS_WGT ->  | J9: =IF(AND(Frame_Width=35.5,Frame_Height=59.5),($H$9*$I$9)-2.25,$H$9*$I$9) ->  | L9: Top Glass | M9: =(TGW_8M40A*TGH_8M40A)/144 -> 0.1505805122 | N9: =GLASS_WGT ->  | R9: =IF(OR(ModelNo="8001",ModelNo="R601"),TOPTUBELENGTH,0) -> 0 | S9: 0 | T9: 6 | U9: =IF(AND(T9=6,$R$4>=16,$R$4<=20),T9&"E",0) -> 0 | W9: =IF(OR(ModelNo="8001",ModelNo="R601"),BOTTUBELENGTH,0) -> 0 | X9: 0 | Y9: 6 | Z9: =IF(AND(Y9=6,$W$4>=16,$W$4<=20),Y9&"E",0) -> 0 | AH9: =HLOOKUP($AH$4,CALDWELL_LOOKUP,6,FALSE) -> 15 | AI9: =HLOOKUP($AI$4,CALDWELL_LOOKUP,6,FALSE) -> 16.9995 | AJ9: 14 | AK9: 12 | AM9: 15.7665 | AN9: 17.766 | AO9: 15.2185 | AP9: 17.218 | AQ9: 15 | AR9: 16.9995
C10: 11 | D10: 6/ | E10: YW | G10: Bottom Spacer | H10: =((BGW_3M40A*2)+(BGH_3M40A*2))/12 -> -1.166666667 | I10: 0.106 | J10: -0.1236666667 | L10: Top Spacer | M10: =((BGW_8M40A*2)+(BGH_8M40A*2))/12 -> -1.208333333 | N10: 0.106 | O10: -0.1280833333 | S10: 0 | T10: 6 | U10: =IF(AND(T10=6,$R$4>=21,$R$4<=24),"Dbl."&T10&"C",0) -> 0 | X10: 0 | Y10: 6 | Z10: =IF(AND(Y10=6,$W$4>=21,$W$4<=24),"Dbl."&Y10&"C",0) -> 0 | AH10: =HLOOKUP($AH$4,CALDWELL_LOOKUP,7,FALSE) -> 17 | AI10: =HLOOKUP($AI$4,CALDWELL_LOOKUP,7,FALSE) -> 18.9995 | AJ10: 16 | AK10: 14 | AM10: 17.7665 | AN10: 19.766 | AO10: 17.2185 | AP10: 19.218 | AQ10: 17 | AR10: 18.9995
C11: 12 | D11: 6/ | E11: YW | G11: Bottom Hardware | H11: 1 | I11: 0.36 | J11: 0.36 | L11: Top Hardware | M11: 1 | N11: 0.2 | O11: 0.2 | S11: 0 | T11: 6 | U11: =IF(AND(T11=6,$R$4>=25,$R$4<=30),"Dbl."&T11&"D",0) -> 0 | X11: 0 | Y11: 6 | Z11: =IF(AND(Y11=6,$W$4>=25,$W$4<=30),"Dbl."&Y11&"D",0) -> 0 | AH11: =HLOOKUP($AH$4,CALDWELL_LOOKUP,8,FALSE) -> 19 | AI11: =HLOOKUP($AI$4,CALDWELL_LOOKUP,8,FALSE) -> 20.9995 | AJ11: 18 | AK11: 16 | AM11: 19.7665 | AN11: 21.766 | AO11: 19.2185 | AP11: 21.218 | AQ11: 19 | AR11: 20.9995
C12: 13 | D12: 7/ | E12: GN | G12: Bottom Bead | H12: =((2*(BGW_3M40A+0.532))/12)+((2*(BGH_3M40A-0.985))/12) -> -1.242166667 | I12: 0.056 | J12: -0.06956133333 | L12: Top Handle Bead | M12: =(TGW_8M40A+0.53)/12 -> -0.4297916667 | N12: 0.056 | O12: -0.02406833333 | S12: 0 | T12: 6 | U12: =IF(AND(T12=6,$R$4>=31,$R$4<=40),"Dbl."&T12&"E",0) -> 0 | X12: 0 | Y12: 6 | Z12: =IF(AND(Y12=6,$W$4>=31,$W$4<=40),"Dbl."&Y12&"E",0) -> 0 | AH12: =HLOOKUP($AH$4,CALDWELL_LOOKUP,9,FALSE) -> 21 | AI12: =HLOOKUP($AI$4,CALDWELL_LOOKUP,9,FALSE) -> 22.9995 | AJ12: 20 | AK12: 18 | AM12: 21.7665 | AN12: 23.766 | AO12: 21.2185 | AP12: 23.218 | AQ12: 21 | AR12: 22.9995
C13: 14 | D13: 7/ | E13: GN | I13: Bottom Sash | J13: =TRUNC(SUM(J4:J12)+GRID) ->  | L13: Top Vert. Bead | M13: =((BGH_8M40A-0.875)*2)/12 -> -0.59375 | N13: 0.056 | O13: -0.03325 | S13: 0 | T13: =IF(AND($S$4<=8,$S$4>6),8,0) -> 0 | U13: =IF(AND(T13=8,$R$4>=2,$R$4<=6),T13&"A",0) -> 0 | X13: 0 | Y13: =IF(AND($X$4<=8,$X$4>6),8,0) -> 0 | Z13: =IF(AND(Y13=8,$W$4>=2,$W$4<=6),Y13&"A",0) -> 0 | AH13: =HLOOKUP($AH$4,CALDWELL_LOOKUP,10,FALSE) -> 23 | AI13: =HLOOKUP($AI$4,CALDWELL_LOOKUP,10,FALSE) -> 24.9995 | AJ13: 22 | AK13: 20 | AM13: 23.7665 | AN13: 25.766 | AO13: 23.2185 | AP13: 25.218 | AQ13: 23 | AR13: 24.9995
C14: 15 | D14: 8/ | E14: LG | L14: Bottom Top Rail | M14: =(BSW_8M40A)/12 -> -0.2239583333 | N14: 0.31 | O14: -0.06942708333 | S14: 0 | T14: 0 | U14: =IF(AND(T14=8,$R$4>=7,$R$4<=10),T14&"B",0) -> 0 | X14: 0 | Y14: 0 | Z14: =IF(AND(Y14=8,$W$4>=7,$W$4<=10),Y14&"B",0) -> 0 | AH14: =HLOOKUP($AH$4,CALDWELL_LOOKUP,11,FALSE) -> 25 | AI14: =HLOOKUP($AI$4,CALDWELL_LOOKUP,11,FALSE) -> 26.9995 | AJ14: 24 | AK14: 22 | AM14: 25.7665 | AN14: 27.766 | AO14: 25.2185 | AP14: 27.218 | AQ14: 25 | AR14: 26.9995
C15: 16 | D15: 8/ | E15: LG | G15: 3P40A | H15: Length | I15: Weight/ft | J15: Weight | L15: Bottom Bottom Rail | M15: =(BSW_8M40A)/12 -> -0.2239583333 | N15: 0.285 | O15: -0.063828125 | S15: 0 | T15: 0 | U15: =IF(AND(T15=8,$R$4>=11,$R$4<=13),T15&"C",0) -> 0 | X15: 0 | Y15: 0 | Z15: =IF(AND(Y15=8,$W$4>=11,$W$4<=13),Y15&"C",0) -> 0 | AH15: =HLOOKUP($AH$4,CALDWELL_LOOKUP,12,FALSE) -> 27 | AI15: =HLOOKUP($AI$4,CALDWELL_LOOKUP,12,FALSE) -> 28.9995 | AJ15: 26 | AK15: 24 | AM15: 27.7665 | AN15: 29.766 | AO15: 27.2185 | AP15: 29.218 | AQ15: 27 | AR15: 28.9995
C16: 17 | D16: 9/ | E16: NAT | G16: Bottom Top Rail | H16: =BSW_3P40A/12 -> -0.3125 | I16: 0.31 | J16: =H16*I16 -> -0.096875 | L16: Bottom Stile | M16: =(2*(BSH_8M40A))/12 -> -0.1354166667 | N16: 0.256 | O16: -0.03466666667 | S16: 0 | T16: 0 | U16: =IF(AND(T16=8,$R$4>=14,$R$4<=15),T16&"D",0) -> 0 | X16: 0 | Y16: 0 | Z16: =IF(AND(Y16=8,$W$4>=14,$W$4<=15),Y16&"D",0) -> 0 | AH16: =HLOOKUP($AH$4,CALDWELL_LOOKUP,13,FALSE) -> 29 | AI16: =HLOOKUP($AI$4,CALDWELL_LOOKUP,13,FALSE) -> 30.9995 | AJ16: 28 | AK16: 26 | AM16: 29.7665 | AN16: 31.766 | AO16: 29.2185 | AP16: 31.218 | AQ16: 29 | AR16: 30.9995
C17: 18 | D17: 9/ | E17: NAT | G17: Bottom Bottom Rail | H17: =BSW_3P40A/12 -> -0.3125 | I17: 0.285 | J17: -0.0890625 | L17: Lock Rail Reinf. | M17: =IF(BSW_8M40A>35.25,(BSW_8M40A-8.25)/12,0) -> 0 | N17: 0.43 | O17: 0 | S17: 0 | T17: 0 | U17: =IF(AND(T17=8,$R$4>=16,$R$4<=18),T17&"E",0) -> 0 | X17: 0 | Y17: 0 | Z17: =IF(AND(Y17=8,$W$4>=16,$W$4<=18),Y17&"E",0) -> 0 | AH17: =HLOOKUP($AH$4,CALDWELL_LOOKUP,14,FALSE) -> 31 | AI17: =HLOOKUP($AI$4,CALDWELL_LOOKUP,14,FALSE) -> 32.9995 | AJ17: 30 | AK17: 28 | AM17: 31.7665 | AN17: 33.766 | AO17: 31.2185 | AP17: 33.218 | AQ17: 31 | AR17: 32.9995
C18: 19 | D18: 10/ | E18: PK | G18: Bottom Stile | H18: =((BSH_3P40A)*2)/12 -> -0.1875 | I18: 0.256 | J18: -0.048 | L18: Bottom Stile Reinf. | M18: =IF(BSH_8M40A>29.625,BSH_8M40A-10.125,0) -> 0 | N18: 0 | O18: 0 | S18: 0 | T18: 0 | U18: =IF(AND(T18=8,$R$4>=19,$R$4<=20),"Dbl."&T18&"B",0) -> 0 | X18: 0 | Y18: 0 | Z18: =IF(AND(Y18=8,$W$4>=19,$W$4<=20),"Dbl."&Y18&"B",0) -> 0 | AH18: =HLOOKUP($AH$4,CALDWELL_LOOKUP,15,FALSE) -> 33 | AI18: =HLOOKUP($AI$4,CALDWELL_LOOKUP,15,FALSE) -> 34.9995 | AJ18: 32 | AK18: 30 | AM18: 33.7665 | AN18: 35.766 | AO18: 33.2185 | AP18: 35.218 | AQ18: 33 | AR18: 34.9995
C19: 20 | D19: 10/ | E19: PK | G19: Bottom Rail Reinf. | H19: =IF(BSW_3P40A>35.25,(BSW_3P40A-8.25)/12,0) -> 0 | I19: 0.43 | J19: 0 | L19: Bottom Glass | M19: =(BGW_8M40A*BGH_8M40A)/144 -> 0.08515082465 | N19: =GLASS_WGT ->  | S19: 0 | T19: 0 | U19: =IF(AND(T19=8,$R$4>=21,$R$4<=26),"Dbl."&T19&"C",0) -> 0 | X19: 0 | Y19: 0 | Z19: =IF(AND(Y19=8,$W$4>=21,$W$4<=26),"Dbl."&Y19&"C",0) -> 0 | AH19: =HLOOKUP($AH$4,CALDWELL_LOOKUP,16,FALSE) -> 35 | AI19: =HLOOKUP($AI$4,CALDWELL_LOOKUP,16,FALSE) -> 36.9995 | AJ19: 34 | AK19: 32 | AM19: 35.7665 | AN19: 37.766 | AO19: 35.2185 | AP19: 37.218 | AQ19: 35 | AR19: 36.9995
C20: 21 | D20: 11/ | E20: BU | G20: Bottom Stile Reinf. | H20: =IF(BSH_3P40A>29.625,BSH_3P40A-10.125,0) -> 0 | I20: 0.43 | J20: 0 | L20: Bottom Spacer | M20: =((BGW_8M40A*2)+(BGH_8M40A*2))/12 -> -1.208333333 | N20: 0.106 | O20: -0.1280833333 | S20: 0 | T20: 0 | U20: =IF(AND(T20=8,$R$4>=27,$R$4<=32),"Dbl."&T20&"D",0) -> 0 | X20: 0 | Y20: 0 | Z20: =IF(AND(Y20=8,$W$4>=27,$W$4<=32),"Dbl."&Y20&"D",0) -> 0 | AH20: =HLOOKUP($AH$4,CALDWELL_LOOKUP,17,FALSE) -> 37 | AI20: =HLOOKUP($AI$4,CALDWELL_LOOKUP,17,FALSE) -> 38.9995 | AJ20: 36 | AK20: 34 | AM20: 37.7665 | AN20: 39.766 | AO20: 37.2185 | AP20: 39.218 | AQ20: 37 | AR20: 38.9995
C21: 22 | D21: 11/ | E21: BU | G21: Bottom Glass | H21: =(BGW_3P40A*BGH_3P40A)/144 -> 0.1171875 | I21: =GLASS_WGT ->  | J21: =IF(AND(Frame_Width=35.5,Frame_Height=59.5),($H$9*$I$9)-2.25,$H$9*$I$9) ->  | L21: Bottom Hardware | M21: 1 | N21: 0.36 | O21: 0.36 | S21: 0 | T21: 0 | U21: =IF(AND(T21=8,$R$4>=33,$R$4<=36),"Dbl."&T21&"E",0) -> 0 | X21: 0 | Y21: 0 | Z21: =IF(AND(Y21=8,$W$4>=33,$W$4<=36),"Dbl."&Y21&"E",0) -> 0 | AH21: =HLOOKUP($AH$4,CALDWELL_LOOKUP,18,FALSE) -> 39 | AI21: =HLOOKUP($AI$4,CALDWELL_LOOKUP,18,FALSE) -> 40.9995 | AJ21: 38 | AK21: 36 | AM21: 39.7665 | AN21: 41.766 | AO21: 39.2185 | AP21: 41.218 | AQ21: 39 | AR21: 40.9995
C22: 23 | D22: 6/6 | E22: YW | G22: Bottom Spacer | H22: =((BGW_3P40A*2)+(BGH_3P40A*2))/12 -> -1.4375 | I22: 0.106 | J22: =H22*I22 -> -0.152375 | L22: Bott. Hor. Bead | M22: =(2*(BGW_8M40A+0.532))/12 -> -0.67175 | N22: 0.056 | O22: -0.037618 | S22: 0 | T22: =IF(AND($S$4<=10,$S$4>8),10,0) -> 0 | U22: =IF(AND(T22=10,$R$4>=1,$R$4<=6),T22&"A",0) -> 0 | X22: 0 | Y22: =IF(AND($X$4<=10,$X$4>8),10,0) -> 0 | Z22: =IF(AND(Y22=10,$W$4>=1,$W$4<=6),Y22&"A",0) -> 0 | AH22: =HLOOKUP($AH$4,CALDWELL_LOOKUP,19,FALSE) -> 41 | AI22: =HLOOKUP($AI$4,CALDWELL_LOOKUP,19,FALSE) -> 42.9995 | AJ22: 40 | AK22: 38 | AM22: 41.7665 | AN22: 43.766 | AO22: 41.2185 | AP22: 43.218 | AQ22: 41 | AR22: 42.9995
C23: 24 | D23: 6/6 | E23: YW | G23: Bottom Hardware | H23: 1 | I23: 0.36 | J23: 0.36 | L23: Bottom Vert. Bead | M23: =(2*(BGH_8M40A-0.985))/12 -> -0.6120833333 | N23: 0.056 | O23: -0.03427666667 | S23: 0 | T23: 0 | U23: =IF(AND(T23=10,$R$4>=7,$R$4<=10),T23&"B",0) -> 0 | X23: 0 | Y23: 0 | Z23: =IF(AND(Y23=10,$W$4>=7,$W$4<=10),Y23&"B",0) -> 0 | AH23: =HLOOKUP($AH$4,CALDWELL_LOOKUP,20,FALSE) -> 43 | AI23: =HLOOKUP($AI$4,CALDWELL_LOOKUP,20,FALSE) -> 44.9995 | AJ23: 42 | AK23: 40 | AM23: 43.7665 | AN23: 45.766 | AO23: 43.2185 | AP23: 45.218 | AQ23: 43 | AR23: 44.9995
C24: 25 | D24: 6/7 | E24: GN | G24: Bottom Bead | H24: =((2*(BGW_3P40A+0.532))/12)+((2*(BGH_3P40A-0.985))/12) -> -1.513 | I24: 0.056 | J24: -0.084728 | N24: Top Sash | O24: =TRUNC((SUM(O4:O13))+GRID) ->  | S24: 0 | T24: 0 | U24: =IF(AND(T24=10,$R$4>=11,$R$4<=13),T24&"C",0) -> 0 | X24: 0 | Y24: 0 | Z24: =IF(AND(Y24=10,$W$4>=11,$W$4<=13),Y24&"C",0) -> 0 | AH24: =HLOOKUP($AH$4,CALDWELL_LOOKUP,21,FALSE) -> 45 | AI24: =HLOOKUP($AI$4,CALDWELL_LOOKUP,21,FALSE) -> 46.9995 | AJ24: 44 | AK24: 42 | AM24: 45.7665 | AN24: 47.766 | AO24: 45.2185 | AP24: 47.218 | AQ24: 45 | AR24: 46.9995
C25: 26 | D25: 6/7 | E25: GN | I25: Bottom Sash | J25: =TRUNC(SUM(J16:J24)+GRID) ->  | N25: Bottom Sash | O25: =TRUNC(SUM(O14:O23)+GRID) ->  | S25: 0 | T25: 0 | U25: =IF(AND(T25=10,$R$4>=14,$R$4<=16),T25&"D",0) -> 0 | X25: 0 | Y25: 0 | Z25: =IF(AND(Y25=10,$W$4>=14,$W$4<=16),Y25&"D",0) -> 0 | AH25: =HLOOKUP($AH$4,CALDWELL_LOOKUP,22,FALSE) -> 47 | AI25: =HLOOKUP($AI$4,CALDWELL_LOOKUP,22,FALSE) -> 48.9995 | AJ25: 46 | AK25: 44 | AM25: 47.7665 | AN25: 49.766 | AO25: 47.2185 | AP25: 49.218 | AQ25: 47 | AR25: 48.9995
C26: 27 | D26: 7/7 | E26: LG | S26: 0 | T26: 0 | U26: =IF(AND(T26=10,$R$4>=17,$R$4<=19),T26&"E",0) -> 0 | X26: 0 | Y26: 0 | Z26: =IF(AND(Y26=10,$W$4>=17,$W$4<=19),Y26&"E",0) -> 0
C27: 28 | D27: 7/7 | E27: LG | G27: L201 | L27: 8P40A | M27: Length | N27: Weight/ft | O27: Weight | S27: 0 | T27: 0 | U27: =IF(AND(T27=10,$R$4=20),"Dbl."&T27&"B",0) -> 0 | X27: 0 | Y27: 0 | Z27: =IF(AND(Y27=10,$W$4=20),"Dbl."&Y27&"B",0) -> 0
C28: 29 | D28: 7/8 | E28: OR | G28: Top Top Rail | H28: =TSW/12 -> 0 | I28: 0.257 | J28: =H28*I28 -> 0 | L28: Top Top Rail | M28: =TSW_8P40A/12 -> -0.40625 | N28: 0.29 | O28: =M28*N28 -> -0.1178125 | S28: 0 | T28: 0 | U28: =IF(AND(T28=10,$R$4>=21,$R$4<=26),"Dbl."&T28&"C",0) -> 0 | X28: 0 | Y28: 0 | Z28: =IF(AND(Y28=10,$W$4>=21,$W$4<=26),"Dbl."&Y28&"C",0) -> 0
C29: 30 | D29: 7/8 | E29: OR | G29: Top Bottom Rail | H29: =TSW/12 -> 0 | I29: 0.273 | J29: =H29*I29 -> 0 | L29: Top Bottom Rail | M29: =TSW_8P40A/12 -> -0.40625 | N29: 0.285 | O29: -0.11578125 | S29: 0 | T29: 0 | U29: =IF(AND(T29=10,$R$4>=27,$R$4<=32),"Dbl."&T29&"D",0) -> 0 | X29: 0 | Y29: 0 | Z29: =IF(AND(Y29=10,$W$4>=27,$W$4<=32),"Dbl."&Y29&"D",0) -> 0
C30: 31 | D30: 8/8 | E30: WT | G30: Top Stile | H30: =2*TSH/12 -> 0 | I30: 0.233 | J30: 0 | L30: Top Stile | M30: =(TSH_8P40A*2)/12 -> -0.3958333333 | N30: 0.256 | O30: -0.1013333333 | S30: 0 | T30: 0 | U30: =IF(AND(T30=10,$R$4>=33,$R$4<=38),"Dbl."&T30&"E",0) -> 0 | X30: 0 | Y30: 0 | Z30: =IF(AND(Y30=10,$W$4>=33,$W$4<=38),"Dbl."&Y30&"E",0) -> 0
C31: 32 | D31: 8/8 | E31: WT | G31: Top Rail Reinf. | H31: =(((TSW-6)/2)*2)/12 -> -0.5 | I31: 0.052 | J31: -0.026 | L31: Top Rail Reinf. | M31: =IF(AND(TSH_8P40A>33,TSH_8P40A<=44),TSH_8P40A-9,IF(TSH_8P40A>44,TSH_8P40A-12,0)) -> 0 | N31: 0.26 | O31: 0 | S31: 0 | T31: =IF(AND($S$4<=12,$S$4>10),12,0) -> 0 | U31: =IF(AND(T31=12,$R$4>=3,$R$4<=7),T31&"A",0) -> 0 | X31: 0 | Y31: =IF(AND($X$4<=12,$X$4>10),12,0) -> 0 | Z31: =IF(AND(Y31=12,$W$4>=3,$W$4<=7),Y31&"A",0) -> 0
C32: 33 | D32: 8/9 | E32: NAT | G32: Top Stile Reinf | H32: =IF(TGH>26.75,(((DDIM_L201-9.5)/2)*2)/12,0) -> 0 | I32: 0.052 | J32: 0 | L32: Keeper Bead | M32: =(TGW_8P40A+0.53)/12 -> -0.5183333333 | N32: 0.056 | O32: -0.02902666667 | S32: 0 | T32: 0 | U32: =IF(AND(T32=12,$R$4>=8,$R$4<=10),T32&"B",0) -> 0 | X32: 0 | Y32: 0 | Z32: =IF(AND(Y32=12,$W$4>=8,$W$4<=10),Y32&"B",0) -> 0 | AM32: Sash Height | AO32: Balance | AP32: Window Height 50/50 Split | AR32: Oriel LBML
C33: 34 | D33: 8/9 | E33: NAT | G33: Top Glass | H33: =(TGW*TGH)/144 -> 0 | I33: =GLASS_WGT ->  | L33: Top Glass | M33: =(TGW_8P40A*TGH_8P40A)/144 -> 0.19921875 | N33: =GLASS_WGT ->  | S33: 0 | T33: 0 | U33: =IF(AND(T33=12,$R$4>=11,$R$4<=16),T33&"C",0) -> 0 | X33: 0 | Y33: 0 | Z33: =IF(AND(Y33=12,$W$4>=11,$W$4<=16),Y33&"C",0) -> 0 | AM33: Min Height | AN33: Max Height | AO33: Size | AP33: Min Height | AQ33: Max Height | AR33: from Bot of Sill
C34: 35 | D34: 9/9 | E34: PU | G34: Top Spacer | H34: =((TGW*2)+(TGH*2))/12 -> 0 | I34: 0.0536 | J34: 0 | L34: Top Spacer | M34: =((BGW_8P40A*2)+(BGH_8P40A*2))/12 -> -1.458333333 | N34: 0.106 | O34: -0.1545833333 | S34: 0 | T34: 0 | U34: =IF(AND(T34=12,$R$4>=17,$R$4<=18),T34&"D",0) -> 0 | X34: 0 | Y34: 0 | Z34: =IF(AND(Y34=12,$W$4>=17,$W$4<=18),Y34&"D",0) -> 0
C35: 36 | D35: 9/9 | E35: PU | G35: Top Hardware | H35: 1 | I35: 0.2 | J35: 0.2 | L35: Top Hardware | M35: 1 | N35: 0.2 | O35: 0.2 | S35: 0 | T35: 0 | U35: =IF(AND(T35=12,$R$4>=19,$R$4<=21),T35&"E",0) -> 0 | X35: 0 | Y35: 0 | Z35: =IF(AND(Y35=12,$W$4>=19,$W$4<=21),Y35&"E",0) -> 0 | AM35: 9.7665 | AN35: 10.766 | AO35: 8 | AP35: 21.125 | AQ35: 23.124 | AR35: 20.283
C36: 37 | D36: 9/10 | E36: BU | G36: Top Bead | H36: =(((Frame_Width-4.3125)*2)+((DDIM_L201-2.625)*2))/12 -> -1.15625 | I36: 0.028 | J36: -0.032375 | L36: Top Handle Bead | M36: =(TGW_8P40A+0.53)/12 -> -0.5183333333 | N36: 0.056 | O36: -0.02902666667 | S36: 0 | T36: 0 | U36: =IF(AND(T36=12,$R$4>=22,$R$4<=32),"Dbl."&T36&"C",0) -> 0 | X36: 0 | Y36: 0 | Z36: =IF(AND(Y36=12,$W$4>=22,$W$4<=32),"Dbl."&Y36&"C",0) -> 0 | AM36: 10.7665 | AN36: 11.766 | AO36: 9 | AP36: 23.125 | AQ36: 25.124 | AR36: 22.283
C37: 38 | D37: 9/10 | E37: BU | G37: Bottom Top Rail | H37: =BSW/12 -> 0 | I37: 0.246 | J37: 0 | L37: Top Vert. Bead | M37: =((BGH_8P40A-0.875)*2)/12 -> -0.6666666667 | N37: 0.056 | O37: -0.03733333333 | S37: =IF(AND(T37>0,U37>0),T37,0) -> 0 | T37: 0 | U37: =IF(AND(T37=12,$R$4>=33,$R$4<=36),"Dbl."&T37&"D",0) -> 0 | X37: 0 | Y37: 0 | Z37: =IF(AND(Y37=12,$W$4>=33,$W$4<=36),"Dbl."&Y37&"D",0) -> 0 | AM37: 11.7665 | AN37: 13.766 | AO37: 10 | AP37: 25.125 | AQ37: 29.124 | AR37: 26.283
C38: 39 | D38: 10/10 | E38: YW | G38: Bottom Bottom Rail | H38: =BSW/12 -> 0 | I38: 0.257 | J38: 0 | L38: Bottom Top Rail | M38: =(BSW_8P40A)/12 -> -0.3125 | N38: 0.31 | O38: -0.096875 | S38: 0 | T38: 0 | U38: =IF(AND(T38=12,$R$4>=37,$R$4<=42),"Dbl."&T38&"E",0) -> 0 | X38: 0 | Y38: 0 | Z38: =IF(AND(Y38=12,$W$4>=37,$W$4<=42),"Dbl."&Y38&"E",0) -> 0 | AM38: 13.7665 | AN38: 15.766 | AO38: 12 | AP38: 29.125 | AQ38: 33.124 | AR38: 30.283
C39: 40 | D39: 10/10 | E39: YW | G39: Bottom Stile | H39: =2*BSH/12 -> 0 | I39: 0.233 | J39: 0 | L39: Bottom Bottom Rail | M39: =(BSW_8P40A)/12 -> -0.3125 | N39: 0.285 | O39: -0.0890625 | S39: 0 | T39: =IF(AND($S$4<=14,$S$4>12),14,0) -> 0 | U39: =IF(AND(T39=14,$R$4>=3,$R$4<=7),T39&"A",0) -> 0 | X39: 0 | Y39: =IF(AND($X$4<=14,$X$4>12),14,0) -> 0 | Z39: =IF(AND(Y39=14,$W$4>=3,$W$4<=7),Y39&"A",0) -> 0 | AM39: 15.7665 | AN39: 17.766 | AO39: 14 | AP39: 33.125 | AQ39: 37.124 | AR39: 34.283
C40: 41 | D40: 10/11 | E40: GN | G40: Bottom Rail Reinf. | H40: =(((BSW-6)/2)*2)/12 -> -0.5 | I40: 0.052 | J40: -0.026 | L40: Bottom Stile | M40: =(2*(BSH_8P40A))/12 -> -0.2083333333 | N40: 0.256 | O40: -0.05333333333 | S40: 0 | T40: 0 | U40: =IF(AND(T40=14,$R$4>=8,$R$4<=10),T40&"B",0) -> 0 | X40: 0 | Y40: 0 | Z40: =IF(AND(Y40=14,$W$4>=8,$W$4<=10),Y40&"B",0) -> 0 | AM40: 17.7665 | AN40: 19.766 | AO40: 16 | AP40: 37.125 | AQ40: 41.124 | AR40: 38.283
C41: 42 | D41: 10/11 | E41: GN | G41: Bottom Stile Reinf. | H41: =IF(BGH>27.75,((CDIM_L201-4.5)/2)*2,0) -> 0 | I41: 0.052 | J41: 0 | L41: Lock Rail Reinf. | M41: =IF(BSW_8P40A>35.25,(BSW_8P40A-8.25)/12,0) -> 0 | N41: 0.43 | O41: 0 | S41: 0 | T41: 0 | U41: =IF(AND(T41=14,$R$4>=11,$R$4<=16),T41&"C",0) -> 0 | X41: 0 | Y41: 0 | Z41: =IF(AND(Y41=14,$W$4>=11,$W$4<=16),Y41&"C",0) -> 0 | AM41: 19.7665 | AN41: 21.766 | AO41: 18 | AP41: 41.125 | AQ41: 45.124 | AR41: 42.283
C42: 43 | D42: 11/11 | E42: LG | G42: Bottom Glass | H42: =(BGW*BGH)/144 -> 0 | I42: =GLASS_WGT ->  | L42: Bottom Stile Reinf. | M42: =IF(BSH_8P40A>29.625,BSH_8P40A-10.125,0) -> 0 | N42: 0 | O42: 0 | S42: 0 | T42: 0 | U42: =IF(AND(T42=14,$R$4>=17,$R$4<=19),T42&"D",0) -> 0 | X42: 0 | Y42: 0 | Z42: =IF(AND(Y42=14,$W$4>=17,$W$4<=19),Y42&"D",0) -> 0 | AM42: 21.7665 | AN42: 23.766 | AO42: 20 | AP42: 45.125 | AQ42: 49.124 | AR42: 46.283
C43: 44 | D43: 11/11 | E43: LG | G43: Bottom Spacer | H43: =((BGW*2)+(BGH*2))/12 -> 0 | I43: 0.0536 | J43: 0 | L43: Bottom Glass | M43: =(BGW_8P40A*BGH_8P40A)/144 -> 0.1220703125 | N43: =GLASS_WGT ->  | S43: 0 | T43: 0 | U43: =IF(AND(T43=14,$R$4>=20,$R$4<=22),T43&"E",0) -> 0 | X43: 0 | Y43: 0 | Z43: =IF(AND(Y43=14,$W$4>=20,$W$4<=22),Y43&"E",0) -> 0 | AM43: 23.7665 | AN43: 25.766 | AO43: 22 | AP43: 49.125 | AQ43: 53.124 | AR43: 50.283
C44: 45 | D44: 7/8/8 | E44: OR | G44: Bottom Hardware | H44: 1 | I44: 0.36 | J44: 0.36 | L44: Bottom Spacer | M44: =((BGW_8P40A*2)+(BGH_8P40A*2))/12 -> -1.458333333 | N44: 0.106 | O44: -0.1545833333 | S44: 0 | T44: 0 | U44: =IF(AND(T44=14,$R$4>=23,$R$4<=25),T44&"F",0) -> 0 | X44: 0 | Y44: 0 | Z44: =IF(AND(Y44=14,$W$4>=23,$W$4<=25),Y44&"F",0) -> 0 | AM44: 25.7665 | AN44: 27.766 | AO44: 24 | AP44: 53.125 | AQ44: 57.124 | AR44: 54.283
C45: 46 | D45: 7/8/8 | E45: OR | G45: Bottom Bead | H45: =(((Frame_Width-3.3125)*2)/12)+(((CDIM_L201-1.625)*2)/12) -> -0.8229166667 | I45: 0.028 | J45: -0.02304166667 | L45: Bottom Hardware | M45: 1 | N45: 0.36 | O45: 0.36 | S45: 0 | T45: 0 | U45: =IF(AND(T45=14,$R$4>=26,$R$4<=28),T45&"G",0) -> 0 | X45: 0 | Y45: 0 | Z45: =IF(AND(Y45=14,$W$4>=26,$W$4<=28),Y45&"G",0) -> 0 | AM45: 27.7665 | AN45: 29.766 | AO45: 26 | AP45: 57.125 | AQ45: 61.124 | AR45: 58.283
C46: 47 | D46: 8/8/8 | E46: WT | I46: Top Sash | J46: =TRUNC(SUM(J28:J36)+1+GRID) ->  | L46: Bott. Hor. Bead | M46: =(2*(BGW_8P40A+0.532))/12 -> -0.8488333333 | N46: 0.056 | O46: -0.04753466667 | S46: 0 | T46: 0 | U46: =IF(AND(T46=14,$R$4>=29,$R$4<=31),T46&"H",0) -> 0 | X46: 0 | Y46: 0 | Z46: =IF(AND(Y46=14,$W$4>=29,$W$4<=31),Y46&"H",0) -> 0 | AM46: 29.7665 | AN46: 31.766 | AO46: 28 | AP46: 61.125 | AQ46: 65.124 | AR46: 62.283
C47: 48 | D47: 8/8/8 | E47: WT | I47: Bott. Sash | J47: =TRUNC(SUM(J37:J45)+GRID) ->  | L47: Bottom Vert. Bead | M47: =(2*(BGH_8P40A-0.985))/12 -> -0.685 | N47: 0.056 | O47: -0.03836 | S47: 0 | T47: 0 | U47: =IF(AND(T47=14,$R$4>=32,$R$4<=34),T47&"I",0) -> 0 | X47: 0 | Y47: 0 | Z47: =IF(AND(Y47=14,$W$4>=32,$W$4<=34),Y47&"I",0) -> 0 | AM47: 31.7665 | AN47: 33.766 | AO47: 30 | AP47: 65.125 | AQ47: 69.124 | AR47: 66.283
C48: 49 | D48: 8/8/9 | E48: BN | N48: Top Sash | O48: =TRUNC((SUM(O28:O37))+6.5+GRID) ->  | S48: 0 | T48: 0 | U48: =IF(AND(T48=14,$R$4>=35,$R$4<=38),"Dbl."&T48&"D",0) -> 0 | X48: 0 | Y48: 0 | Z48: =IF(AND(Y48=14,$W$4>=35,$W$4<=38),"Dbl."&Y48&"D",0) -> 0 | AM48: 33.7665 | AN48: 35.766 | AO48: 32 | AP48: 69.125 | AQ48: 73.124 | AR48: 70.283
C49: 50 | D49: 8/8/9 | E49: BN | N49: Bottom Sash | O49: =TRUNC(SUM(O38:O47)+GRID) ->  | S49: 0 | T49: 0 | U49: =IF(AND(T49=14,$R$4>=39,$R$4<=44),"Dbl."&T49&"E",0) -> 0 | X49: 0 | Y49: 0 | Z49: =IF(AND(Y49=14,$W$4>=39,$W$4<=44),"Dbl."&Y49&"E",0) -> 0 | AM49: 35.7665 | AN49: 37.766 | AO49: 34 | AP49: 73.125 | AQ49: 77.124 | AR49: 74.283
C50: 51 | D50: 8/9/9 | E50: RD | G50: 03A0 | S50: 0 | T50: 0 | U50: =IF(AND(T50=14,$R$4>=45,$R$4<=50),"Dbl."&T50&"F",0) -> 0 | X50: 0 | Y50: 0 | Z50: =IF(AND(Y50=14,$W$4>=45,$W$4<=50),"Dbl."&Y50&"F",0) -> 0 | AM50: 37.7665 | AN50: 39.766 | AO50: 36 | AP50: 77.125 | AQ50: 81.124 | AR50: 78.283
C51: 52 | D51: 8/9/9 | E51: RD | G51: Bottom Top Rail | H51: =BSW/12 -> 0 | I51: 0.297 | J51: =H51*I51 -> 0 | S51: 0 | T51: 0 | U51: =IF(AND(T51=14,$R$4>=51,$R$4<=56),"Dbl."&T51&"G",0) -> 0 | X51: 0 | Y51: 0 | Z51: =IF(AND(Y51=14,$W$4>=51,$W$4<=56),"Dbl."&Y51&"G",0) -> 0 | AM51: 39.7665 | AN51: 41.766 | AO51: 38 | AP51: 81.125 | AQ51: 85.124 | AR51: 82.283
C52: 53 | D52: 9/9/9 | E52: NAT | G52: Bottom Bottom Rail | H52: =BSW/12 -> 0 | I52: 0.232 | J52: =H52*I52 -> 0 | S52: 0 | T52: 0 | U52: =IF(AND(T52=14,$R$4>=57,$R$4<=62),"Dbl."&T52&"H",0) -> 0 | X52: 0 | Y52: 0 | Z52: =IF(AND(Y52=14,$W$4>=57,$W$4<=62),"Dbl."&Y52&"H",0) -> 0 | AM52: 41.7665 | AN52: 43.766 | AO52: 40 | AP52: 85.125 | AQ52: 89.124 | AR52: 86.283
C53: 54 | D53: 9/9/9 | E53: NAT | G53: Bottom Stile | H53: =(BSH*2)/12 -> 0 | I53: 0.219 | J53: 0 | S53: 0 | T53: 0 | U53: =IF(AND(T53=14,$R$4>=63,$R$4<=68),"Dbl."&T53&"I",0) -> 0 | X53: 0 | Y53: 0 | Z53: =IF(AND(Y53=14,$W$4>=63,$W$4<=68),"Dbl."&Y53&"I",0) -> 0 | AM53: 43.7665 | AN53: 45.766 | AO53: 42 | AP53: 89.125 | AQ53: 93.124 | AR53: 90.283
C54: 55 | D54: 9/9/10 | E54: BU | G54: Bottom Rail Reinf. | H54: =(2*(CDIM_03A0-1.125))/12 -> -0.1875 | I54: 0.0516 | J54: -0.009675 | S54: 0 | T54: =IF(AND($S$4<=16,$S$4>14),16,0) -> 0 | U54: =IF(AND(T54=16,$R$4>=3,$R$4<=7),T54&"A",0) -> 0 | X54: 0 | Y54: =IF(AND($X$4<=16,$X$4>14),16,0) -> 0 | Z54: =IF(AND(Y54=16,$W$4>=3,$W$4<=7),Y54&"A",0) -> 0 | AM54: 45.7665 | AN54: 47.766 | AO54: 44 | AP54: 93.125 | AQ54: 97.124 | AR54: 94.283
C55: 56 | D55: 9/9/10 | E55: BU | G55: Bottom Stile Reinf. | H55: =IF(OR(Frame_Height>84,Frame_Width>48,REINF_MESSAGE="Steel"),((TRUNC((CDIM_03A0-4)/2)*2)/12)*2,0) -> 0 | I55: 0.456 | J55: 0 | S55: 0 | T55: 0 | U55: =IF(AND(T55=16,$R$4>=8,$R$4<=10),T55&"B",0) -> 0 | X55: 0 | Y55: 0 | Z55: =IF(AND(Y55=16,$W$4>=8,$W$4<=10),Y55&"B",0) -> 0 | AM55: 47.7665 | AN55: 49.766 | AO55: 46 | AP55: 97.125 | AQ55: 101.124 | AR55: 98.283
C56: 57 | D56: 9/10/10 | E56: LG | G56: Bottom Glass | H56: =(BGW*BGH)/144 -> 0 | I56: =GLASS_WGT ->  | S56: 0 | T56: 0 | U56: =IF(AND(T56=16,$R$4>=11,$R$4<=16),T56&"C",0) -> 0 | X56: 0 | Y56: 0 | Z56: =IF(AND(Y56=16,$W$4>=11,$W$4<=16),Y56&"C",0) -> 0 | AR56: =IF(TYPE=2,Frame_Height-(VLOOKUP(BSH,AM35:AR55,6)),2.625) -> 2.625
C57: 58 | D57: 9/10/10 | E57: LG | G57: Bottom Spacer | H57: =((BGW*2)+(BGH*2))/12 -> 0 | I57: 0.0536 | J57: 0 | S57: 0 | T57: 0 | U57: =IF(AND(T57=16,$R$4>=17,$R$4<=19),T57&"D",0) -> 0 | X57: 0 | Y57: 0 | Z57: =IF(AND(Y57=16,$W$4>=17,$W$4<=19),Y57&"D",0) -> 0
C58: 59 | D58: 10/10/10 | E58: WT | G58: Bottom Hardware | H58: 1 | I58: 0.36 | J58: 0.36 | S58: 0 | T58: 0 | U58: =IF(AND(T58=16,$R$4>=20,$R$4<=22),T58&"E",0) -> 0 | X58: 0 | Y58: 0 | Z58: =IF(AND(Y58=16,$W$4>=20,$W$4<=22),Y58&"E",0) -> 0
C59: 60 | D59: 10/10/10 | E59: WT | G59: Bottom Bead | H59: =(((BGW_03A0)*2)+((BGH_03A0)*2))/12 -> -1.244791667 | I59: 0.072 | J59: -0.089625 | S59: 0 | T59: 0 | U59: =IF(AND(T59=16,$R$4>=23,$R$4<=24),T59&"F",0) -> 0 | X59: 0 | Y59: 0 | Z59: =IF(AND(Y59=16,$W$4>=23,$W$4<=24),Y59&"F",0) -> 0
C60: 61 | D60: 10/10/11 | E60: OR | I60: Bott. Sash | J60: =TRUNC(SUM(J51:J59)+GRID) ->  | S60: 0 | T60: 0 | U60: =IF(AND(T60=16,$R$4>=25,$R$4<=28),T60&"G",0) -> 0 | X60: 0 | Y60: 0 | Z60: =IF(AND(Y60=16,$W$4>=25,$W$4<=28),Y60&"G",0) -> 0
C61: 62 | D61: 10/10/11 | E61: OR | S61: 0 | T61: 0 | U61: =IF(AND(T61=16,$R$4>=29,$R$4<=31),T61&"H",0) -> 0 | X61: 0 | Y61: 0 | Z61: =IF(AND(Y61=16,$W$4>=29,$W$4<=31),Y61&"H",0) -> 0
C62: 63 | D62: 10/11/11 | E62: BN | S62: 0 | T62: 0 | U62: =IF(AND(T62=16,$R$4>=32,$R$4<=34),T62&"I",0) -> 0 | X62: 0 | Y62: 0 | Z62: =IF(AND(Y62=16,$W$4>=32,$W$4<=34),Y62&"I",0) -> 0
C63: 64 | D63: 10/11/11 | E63: BN | S63: 0 | T63: 0 | U63: =IF(AND(T63=16,$R$4>=35,$R$4<=36),"Dbl."&T63&"D",0) -> 0 | X63: 0 | Y63: 0 | Z63: =IF(AND(Y63=16,$W$4>=35,$W$4<=36),"Dbl."&Y63&"D",0) -> 0
C64: 65 | D64: 11/11/11 | E64: GN | S64: 0 | T64: 0 | U64: =IF(AND(T64=16,$R$4>=37,$R$4<=44),"Dbl."&T64&"E",0) -> 0 | X64: 0 | Y64: 0 | Z64: =IF(AND(Y64=16,$W$4>=37,$W$4<=44),"Dbl."&Y64&"E",0) -> 0
C65: 66 | D65: 11/11/11 | E65: GN | S65: 0 | T65: 0 | U65: =IF(AND(T65=16,$R$4>=45,$R$4<=48),"Dbl."&T65&"F",0) -> 0 | X65: 0 | Y65: 0 | Z65: =IF(AND(Y65=16,$W$4>=45,$W$4<=48),"Dbl."&Y65&"F",0) -> 0
C66: 67 | D66: 8/8/9/9 | E66: RD | S66: 0 | T66: 0 | U66: =IF(AND(T66=16,$R$4>=49,$R$4<=56),"Dbl."&T66&"G",0) -> 0 | X66: 0 | Y66: 0 | Z66: =IF(AND(Y66=16,$W$4>=49,$W$4<=56),"Dbl."&Y66&"G",0) -> 0
C67: 68 | D67: 8/8/9/9 | E67: RD | S67: 0 | T67: 0 | U67: =IF(AND(T67=16,$R$4>=57,$R$4<=62),"Dbl."&T67&"H",0) -> 0 | X67: 0 | Y67: 0 | Z67: =IF(AND(Y67=16,$W$4>=57,$W$4<=62),"Dbl."&Y67&"H",0) -> 0
C68: 69 | D68: 8/9/9/9 | E68: YW | S68: 0 | T68: 0 | U68: =IF(AND(T68=16,$R$4>=63,$R$4<=68),"Dbl."&T68&"I",0) -> 0 | X68: 0 | Y68: 0 | Z68: =IF(AND(Y68=16,$W$4>=63,$W$4<=68),"Dbl."&Y68&"I",0) -> 0
C69: 70 | D69: 8/9/9/9 | E69: YW | S69: =IF(AND(T69>0,U69>0),T69,0) -> 0 | T69: =IF(AND($S$4<=18,$S$4>16),18,0) -> 0 | U69: =IF(AND(T69=18,$R$4>=4,$R$4<=9),T69&"A",0) -> 0 | X69: =IF(AND(Y69>0,Z69>0),Y69,0) -> 0 | Y69: =IF(AND($X$4<=18,$X$4>16),18,0) -> 0 | Z69: =IF(AND(Y69=18,$W$4>=4,$W$4<=9),Y69&"A",0) -> 0
C70: 71 | D70: 9/9/9/9 | E70: PU | S70: 0 | T70: 0 | U70: =IF(AND(T70=18,$R$4>=10,$R$4<=13),T70&"B",0) -> 0 | X70: 0 | Y70: 0 | Z70: =IF(AND(Y70=18,$W$4>=10,$W$4<=13),Y70&"B",0) -> 0
C71: 72 | D71: 9/9/9/9 | E71: PU | S71: 0 | T71: 0 | U71: =IF(AND(T71=18,$R$4>=14,$R$4<=18),T71&"C",0) -> 0 | X71: 0 | Y71: 0 | Z71: =IF(AND(Y71=18,$W$4>=14,$W$4<=18),Y71&"C",0) -> 0
S72: 0 | T72: 0 | U72: =IF(AND(T72=18,$R$4>=19,$R$4<=21),T72&"D",0) -> 0 | X72: 0 | Y72: 0 | Z72: =IF(AND(Y72=18,$W$4>=19,$W$4<=21),Y72&"D",0) -> 0
S73: 0 | T73: 0 | U73: =IF(AND(T73=18,$R$4>=22,$R$4<=24),T73&"E",0) -> 0 | X73: 0 | Y73: 0 | Z73: =IF(AND(Y73=18,$W$4>=22,$W$4<=24),Y73&"E",0) -> 0
C74: 4 | D74: 3 | E74: 1 | S74: 0 | T74: 0 | U74: =IF(AND(T74=18,$R$4>=25,$R$4<=26),T74&"F",0) -> 0 | X74: 0 | Y74: 0 | Z74: =IF(AND(Y74=18,$W$4>=25,$W$4<=26),Y74&"F",0) -> 0
C75: =C74+1 -> 5 | D75: 3 | E75: 1 | S75: 0 | T75: 0 | U75: =IF(AND(T75=18,$R$4>=27,$R$4<=29),T75&"G",0) -> 0 | X75: 0 | Y75: 0 | Z75: =IF(AND(Y75=18,$W$4>=27,$W$4<=29),Y75&"G",0) -> 0
C76: 6 | D76: 3 | E76: 1 | S76: 0 | T76: 0 | U76: =IF(AND(T76=18,$R$4>=30,$R$4<=32),T76&"H",0) -> 0 | X76: 0 | Y76: 0 | Z76: =IF(AND(Y76=18,$W$4>=30,$W$4<=32),Y76&"H",0) -> 0
C77: 7 | D77: 4 | E77: 1 | S77: 0 | T77: 0 | U77: =IF(AND(T77=18,$R$4>=33,$R$4<=34),T77&"I",0) -> 0 | X77: 0 | Y77: 0 | Z77: =IF(AND(Y77=18,$W$4>=33,$W$4<=34),Y77&"I",0) -> 0
C78: 8 | D78: 4 | E78: 1 | S78: 0 | T78: 0 | U78: =IF(AND(T78=18,$R$4>=35,$R$4<=36),"Dbl."&T78&"C",0) -> 0 | X78: 0 | Y78: 0 | Z78: =IF(AND(Y78=18,$W$4>=35,$W$4<=36),"Dbl."&Y78&"C",0) -> 0
C79: 9 | D79: 5 | E79: 1 | S79: 0 | T79: 0 | U79: =IF(AND(T79=18,$R$4>=37,$R$4<=42),"Dbl."&T79&"D",0) -> 0 | X79: 0 | Y79: 0 | Z79: =IF(AND(Y79=18,$W$4>=37,$W$4<=42),"Dbl."&Y79&"D",0) -> 0
C80: 10 | D80: 5 | E80: 1 | S80: 0 | T80: 0 | U80: =IF(AND(T80=18,$R$4>=43,$R$4<=48),"Dbl."&T80&"E",0) -> 0 | X80: 0 | Y80: 0 | Z80: =IF(AND(Y80=18,$W$4>=43,$W$4<=48),"Dbl."&Y80&"E",0) -> 0
C81: 11 | D81: 6 | E81: 1 | S81: 0 | T81: 0 | U81: =IF(AND(T81=18,$R$4>=49,$R$4<=52),"Dbl."&T81&"F",0) -> 0 | X81: 0 | Y81: 0 | Z81: =IF(AND(Y81=18,$W$4>=49,$W$4<=52),"Dbl."&Y81&"F",0) -> 0
C82: 12 | D82: 6 | E82: 1 | S82: 0 | T82: 0 | U82: =IF(AND(T82=18,$R$4>=53,$R$4<=58),"Dbl."&T82&"G",0) -> 0 | X82: 0 | Y82: 0 | Z82: =IF(AND(Y82=18,$W$4>=53,$W$4<=58),"Dbl."&Y82&"G",0) -> 0
C83: 13 | D83: 7 | E83: 1 | S83: 0 | T83: 0 | U83: =IF(AND(T83=18,$R$4>=59,$R$4<=64),"Dbl."&T83&"H",0) -> 0 | X83: 0 | Y83: 0 | Z83: =IF(AND(Y83=18,$W$4>=59,$W$4<=64),"Dbl."&Y83&"H",0) -> 0
C84: 14 | D84: 7 | E84: 1 | S84: 0 | T84: 0 | U84: =IF(AND(T84=18,$R$4>=65,$R$4<=68),"Dbl."&T84&"I",0) -> 0 | X84: 0 | Y84: 0 | Z84: =IF(AND(Y84=18,$W$4>=65,$W$4<=68),"Dbl."&Y84&"I",0) -> 0
C85: 15 | D85: 8 | E85: 1 | S85: 0 | T85: =IF(AND($S$4<=20,$S$4>18),20,0) -> 0 | U85: =IF(AND(T85=20,$R$4>=5,$R$4<=10),T85&"A",0) -> 0 | X85: 0 | Y85: =IF(AND($X$4<=20,$X$4>18),20,0) -> 0 | Z85: =IF(AND(Y85=20,$W$4>=5,$W$4<=10),Y85&"A",0) -> 0
C86: 16 | D86: 8 | E86: 1 | S86: 0 | T86: 0 | U86: =IF(AND(T86=20,$R$4>=11,$R$4<=14),T86&"B",0) -> 0 | X86: 0 | Y86: 0 | Z86: =IF(AND(Y86=20,$W$4>=11,$W$4<=14),Y86&"B",0) -> 0
C87: 17 | D87: 9 | E87: 1 | S87: 0 | T87: 0 | U87: =IF(AND(T87=20,$R$4>=15,$R$4<=18),T87&"C",0) -> 0 | X87: 0 | Y87: 0 | Z87: =IF(AND(Y87=20,$W$4>=15,$W$4<=18),Y87&"C",0) -> 0
C88: 18 | D88: 9 | E88: 1 | S88: 0 | T88: 0 | U88: =IF(AND(T88=20,$R$4>=19,$R$4<=22),T88&"D",0) -> 0 | X88: 0 | Y88: 0 | Z88: =IF(AND(Y88=20,$W$4>=19,$W$4<=22),Y88&"D",0) -> 0
C89: 19 | D89: 10 | E89: 1 | S89: 0 | T89: 0 | U89: =IF(AND(T89=20,$R$4>=23,$R$4<=26),T89&"E",0) -> 0 | X89: 0 | Y89: 0 | Z89: =IF(AND(Y89=20,$W$4>=23,$W$4<=26),Y89&"E",0) -> 0
C90: 20 | D90: 10 | E90: 1 | S90: 0 | T90: 0 | U90: =IF(AND(T90=20,$R$4>=27,$R$4<=30),T90&"F",0) -> 0 | X90: 0 | Y90: 0 | Z90: =IF(AND(Y90=20,$W$4>=27,$W$4<=30),Y90&"F",0) -> 0
C91: 21 | D91: 11 | E91: 1 | S91: 0 | T91: 0 | U91: =IF(AND(T91=20,$R$4>=31,$R$4<=34),T91&"G",0) -> 0 | X91: 0 | Y91: 0 | Z91: =IF(AND(Y91=20,$W$4>=31,$W$4<=34),Y91&"G",0) -> 0
C92: 22 | D92: 11 | E92: 1 | S92: 0 | T92: 0 | U92: =IF(AND(T92=20,$R$4>=35,$R$4<=37),T92&"H",0) -> 0 | X92: 0 | Y92: 0 | Z92: =IF(AND(Y92=20,$W$4>=35,$W$4<=37),Y92&"H",0) -> 0
C93: 23 | D93: 6/6 | E93: 2 | S93: 0 | T93: 0 | U93: =IF(AND(T93=20,$R$4>=38,$R$4<=40),T93&"I",0) -> 0 | X93: 0 | Y93: 0 | Z93: =IF(AND(Y93=20,$W$4>=38,$W$4<=40),Y93&"I",0) -> 0
C94: 24 | D94: 6/6 | E94: 2 | S94: 0 | T94: 0 | U94: =IF(AND(T94=20,$R$4>=41,$R$4<=44),"Dbl."&T94&"D",0) -> 0 | X94: 0 | Y94: 0 | Z94: =IF(AND(Y94=20,$W$4>=41,$W$4<=44),"Dbl."&Y94&"D",0) -> 0
C95: 25 | D95: 6/7 | E95: 2 | S95: 0 | T95: 0 | U95: =IF(AND(T95=20,$R$4>=45,$R$4<=52),"Dbl."&T95&"E",0) -> 0 | X95: 0 | Y95: 0 | Z95: =IF(AND(Y95=20,$W$4>=45,$W$4<=52),"Dbl."&Y95&"E",0) -> 0
C96: 26 | D96: 6/7 | E96: 2 | S96: 0 | T96: 0 | U96: =IF(AND(T96=20,$R$4>=53,$R$4<=60),"Dbl."&T96&"F",0) -> 0 | X96: 0 | Y96: 0 | Z96: =IF(AND(Y96=20,$W$4>=53,$W$4<=60),"Dbl."&Y96&"F",0) -> 0
C97: 27 | D97: 7/7 | E97: 2 | S97: 0 | T97: 0 | U97: =IF(AND(T97=20,$R$4>=61,$R$4<=68),"Dbl."&T97&"G",0) -> 0 | X97: 0 | Y97: 0 | Z97: =IF(AND(Y97=20,$W$4>=61,$W$4<=68),"Dbl."&Y97&"G",0) -> 0
C98: 28 | D98: 7/7 | E98: 2 | S98: 0 | T98: 0 | U98: =IF(AND(T98=20,$R$4>=69,$R$4<=74),"Dbl."&T98&"H",0) -> 0 | X98: 0 | Y98: 0 | Z98: =IF(AND(Y98=20,$W$4>=69,$W$4<=74),"Dbl."&Y98&"H",0) -> 0
C99: 29 | D99: 7/8 | E99: 2 | S99: 0 | T99: 0 | U99: =IF(AND(T99=20,$R$4>=75,$R$4<=80),"Dbl."&T99&"I",0) -> 0 | X99: 0 | Y99: 0 | Z99: =IF(AND(Y99=20,$W$4>=75,$W$4<=80),"Dbl."&Y99&"I",0) -> 0
C100: 30 | D100: 7/8 | E100: 2 | S100: 0 | T100: =IF(AND($S$4<=22,$S$4>20),22,0) -> 0 | U100: =IF(AND(T100=22,$R$4>=5,$R$4<=10),T100&"A",0) -> 0 | X100: 0 | Y100: =IF(AND($X$4<=22,$X$4>20),22,0) -> 0 | Z100: =IF(AND(Y100=22,$W$4>=5,$W$4<=10),Y100&"A",0) -> 0
C101: 31 | D101: 8/8 | E101: 2 | S101: =IF(AND(T101>0,U101>0),T101,0) -> 0 | T101: 0 | U101: =IF(AND(T101=22,$R$4>=11,$R$4<=16),T101&"B",0) -> 0 | X101: 0 | Y101: 0 | Z101: =IF(AND(Y101=22,$W$4>=11,$W$4<=16),Y101&"B",0) -> 0
C102: 32 | D102: 8/8 | E102: 2 | S102: 0 | T102: 0 | U102: =IF(AND(T102=22,$R$4>=17,$R$4<=21),T102&"C",0) -> 0 | X102: 0 | Y102: 0 | Z102: =IF(AND(Y102=22,$W$4>=17,$W$4<=21),Y102&"C",0) -> 0
C103: 33 | D103: 8/9 | E103: 2 | S103: 0 | T103: 0 | U103: =IF(AND(T103=22,$R$4>=22,$R$4<=24),T103&"D",0) -> 0 | X103: 0 | Y103: 0 | Z103: =IF(AND(Y103=22,$W$4>=22,$W$4<=24),Y103&"D",0) -> 0
C104: 34 | D104: 8/9 | E104: 2 | S104: 0 | T104: 0 | U104: =IF(AND(T104=22,$R$4>=25,$R$4<=27),T104&"E",0) -> 0 | X104: 0 | Y104: 0 | Z104: =IF(AND(Y104=22,$W$4>=25,$W$4<=27),Y104&"E",0) -> 0
C105: 35 | D105: 9/9 | E105: 2 | S105: 0 | T105: 0 | U105: =IF(AND(T105=22,$R$4>=28,$R$4<=30),T105&"F",0) -> 0 | X105: 0 | Y105: 0 | Z105: =IF(AND(Y105=22,$W$4>=28,$W$4<=30),Y105&"F",0) -> 0
C106: 36 | D106: 9/9 | E106: 2 | S106: 0 | T106: 0 | U106: =IF(AND(T106=22,$R$4>=31,$R$4<=34),T106&"G",0) -> 0 | X106: 0 | Y106: 0 | Z106: =IF(AND(Y106=22,$W$4>=31,$W$4<=34),Y106&"G",0) -> 0
C107: 37 | D107: 9/10 | E107: 2 | S107: 0 | T107: 0 | U107: =IF(AND(T107=22,$R$4>=35,$R$4<=37),T107&"H",0) -> 0 | X107: 0 | Y107: 0 | Z107: =IF(AND(Y107=22,$W$4>=35,$W$4<=37),Y107&"H",0) -> 0
C108: 38 | D108: 9/10 | E108: 2 | S108: 0 | T108: 0 | U108: =IF(AND(T108=22,$R$4>=38,$R$4<=40),T108&"I",0) -> 0 | X108: 0 | Y108: 0 | Z108: =IF(AND(Y108=22,$W$4>=38,$W$4<=40),Y108&"I",0) -> 0
C109: 39 | D109: 10/10 | E109: 2 | S109: 0 | T109: 0 | U109: =IF(AND(T109=22,$R$4>=41,$R$4<=42),"Dbl."&T109&"C",0) -> 0 | X109: 0 | Y109: 0 | Z109: =IF(AND(Y109=22,$W$4>=41,$W$4<=42),"Dbl."&Y109&"C",0) -> 0
C110: 40 | D110: 10/10 | E110: 2 | S110: 0 | T110: 0 | U110: =IF(AND(T110=22,$R$4>=43,$R$4<=48),"Dbl."&T110&"D",0) -> 0 | X110: 0 | Y110: 0 | Z110: =IF(AND(Y110=22,$W$4>=43,$W$4<=48),"Dbl."&Y110&"D",0) -> 0
C111: 41 | D111: 10/11 | E111: 2 | S111: 0 | T111: 0 | U111: =IF(AND(T111=22,$R$4>=49,$R$4<=54),"Dbl."&T111&"E",0) -> 0 | X111: 0 | Y111: 0 | Z111: =IF(AND(Y111=22,$W$4>=49,$W$4<=54),"Dbl."&Y111&"E",0) -> 0
C112: 42 | D112: 10/11 | E112: 2 | S112: 0 | T112: 0 | U112: =IF(AND(T112=22,$R$4>=55,$R$4<=60),"Dbl."&T112&"F",0) -> 0 | X112: 0 | Y112: 0 | Z112: =IF(AND(Y112=22,$W$4>=55,$W$4<=60),"Dbl."&Y112&"F",0) -> 0
C113: 43 | D113: 11/11 | E113: 2 | S113: 0 | T113: 0 | U113: =IF(AND(T113=22,$R$4>=61,$R$4<=68),"Dbl."&T113&"G",0) -> 0 | X113: 0 | Y113: 0 | Z113: =IF(AND(Y113=22,$W$4>=61,$W$4<=68),"Dbl."&Y113&"G",0) -> 0
C114: 44 | D114: 11/11 | E114: 2 | S114: 0 | T114: 0 | U114: =IF(AND(T114=22,$R$4>=69,$R$4<=74),"Dbl."&T114&"H",0) -> 0 | X114: 0 | Y114: 0 | Z114: =IF(AND(Y114=22,$W$4>=69,$W$4<=74),"Dbl."&Y114&"H",0) -> 0
C115: 45 | D115: 8/7/8 | E115: 3 | S115: 0 | T115: 0 | U115: =IF(AND(T115=22,$R$4>=75,$R$4<=80),"Dbl."&T115&"I",0) -> 0 | X115: 0 | Y115: 0 | Z115: =IF(AND(Y115=22,$W$4>=75,$W$4<=80),"Dbl."&Y115&"I",0) -> 0
C116: 46 | D116: 8/7/8 | E116: 3 | S116: 0 | T116: =IF(AND($S$4<=24,$S$4>22),24,0) -> 0 | U116: =IF(AND(T116=24,$R$4>=6,$R$4<=10),T116&"A",0) -> 0 | X116: 0 | Y116: =IF(AND($X$4<=24,$X$4>22),24,0) -> 0 | Z116: =IF(AND(Y116=24,$W$4>=6,$W$4<=10),Y116&"A",0) -> 0
C117: 47 | D117: 8/8/8 | E117: 3 | S117: 0 | T117: 0 | U117: =IF(AND(T117=24,$R$4>=11,$R$4<=17),T117&"B",0) -> 0 | X117: 0 | Y117: 0 | Z117: =IF(AND(Y117=24,$W$4>=11,$W$4<=17),Y117&"B",0) -> 0
C118: 48 | D118: 8/8/8 | E118: 3 | S118: 0 | T118: 0 | U118: =IF(AND(T118=24,$R$4>=18,$R$4<=22),T118&"C",0) -> 0 | X118: 0 | Y118: 0 | Z118: =IF(AND(Y118=24,$W$4>=18,$W$4<=22),Y118&"C",0) -> 0
C119: 49 | D119: 8/8/9 | E119: 3 | S119: 0 | T119: 0 | U119: =IF(AND(T119=24,$R$4>=23,$R$4<=25),T119&"D",0) -> 0 | X119: 0 | Y119: 0 | Z119: =IF(AND(Y119=24,$W$4>=23,$W$4<=25),Y119&"D",0) -> 0
C120: 50 | D120: 8/8/9 | E120: 3 | S120: 0 | T120: 0 | U120: =IF(AND(T120=24,$R$4>=26,$R$4<=28),T120&"E",0) -> 0 | X120: 0 | Y120: 0 | Z120: =IF(AND(Y120=24,$W$4>=26,$W$4<=28),Y120&"E",0) -> 0
C121: 51 | D121: 8/9/9 | E121: 3 | S121: 0 | T121: 0 | U121: =IF(AND(T121=24,$R$4>=29,$R$4<=30),T121&"F",0) -> 0 | X121: 0 | Y121: 0 | Z121: =IF(AND(Y121=24,$W$4>=29,$W$4<=30),Y121&"F",0) -> 0
C122: 52 | D122: 8/9/9 | E122: 3 | S122: 0 | T122: 0 | U122: =IF(AND(T122=24,$R$4>=31,$R$4<=34),T122&"G",0) -> 0 | X122: 0 | Y122: 0 | Z122: =IF(AND(Y122=24,$W$4>=31,$W$4<=34),Y122&"G",0) -> 0
C123: 53 | D123: 9/9/9 | E123: 3 | S123: 0 | T123: 0 | U123: =IF(AND(T123=24,$R$4>=35,$R$4<=37),T123&"H",0) -> 0 | X123: 0 | Y123: 0 | Z123: =IF(AND(Y123=24,$W$4>=35,$W$4<=37),Y123&"H",0) -> 0
C124: 54 | D124: 9/9/9 | E124: 3 | S124: 0 | T124: 0 | U124: =IF(AND(T124=24,$R$4>=38,$R$4<=40),T124&"I",0) -> 0 | X124: 0 | Y124: 0 | Z124: =IF(AND(Y124=24,$W$4>=38,$W$4<=40),Y124&"I",0) -> 0
C125: 55 | D125: 9/9/10 | E125: 3 | S125: =IF(AND(T125>0,U125>0),T125,0) -> 0 | T125: 0 | U125: =IF(AND(T125=24,$R$4>=41,$R$4<=44),"Dbl."&T125&"C",0) -> 0 | X125: 0 | Y125: 0 | Z125: =IF(AND(Y125=24,$W$4>=41,$W$4<=44),"Dbl."&Y125&"C",0) -> 0
C126: 56 | D126: 9/9/10 | E126: 3 | S126: 0 | T126: 0 | U126: =IF(AND(T126=24,$R$4>=45,$R$4<=50),"Dbl."&T126&"D",0) -> 0 | X126: 0 | Y126: 0 | Z126: =IF(AND(Y126=24,$W$4>=45,$W$4<=50),"Dbl."&Y126&"D",0) -> 0
C127: 57 | D127: 9/10/10 | E127: 3 | S127: 0 | T127: 0 | U127: =IF(AND(T127=24,$R$4>=51,$R$4<=56),"Dbl."&T127&"E",0) -> 0 | X127: 0 | Y127: 0 | Z127: =IF(AND(Y127=24,$W$4>=51,$W$4<=56),"Dbl."&Y127&"E",0) -> 0
C128: 58 | D128: 9/10/10 | E128: 3 | S128: 0 | T128: 0 | U128: =IF(AND(T128=24,$R$4>=57,$R$4<=60),"Dbl."&T128&"F",0) -> 0 | X128: 0 | Y128: 0 | Z128: =IF(AND(Y128=24,$W$4>=57,$W$4<=60),"Dbl."&Y128&"F",0) -> 0
C129: 59 | D129: 10/10/10 | E129: 3 | S129: 0 | T129: 0 | U129: =IF(AND(T129=24,$R$4>=61,$R$4<=68),"Dbl."&T129&"G",0) -> 0 | X129: 0 | Y129: 0 | Z129: =IF(AND(Y129=24,$W$4>=61,$W$4<=68),"Dbl."&Y129&"G",0) -> 0
C130: 60 | D130: 10/10/10 | E130: 3 | S130: 0 | T130: 0 | U130: =IF(AND(T130=24,$R$4>=69,$R$4<=74),"Dbl."&T130&"H",0) -> 0 | X130: 0 | Y130: 0 | Z130: =IF(AND(Y130=24,$W$4>=69,$W$4<=74),"Dbl."&Y130&"H",0) -> 0
C131: 61 | D131: 10/10/11 | E131: 3 | S131: 0 | T131: 0 | U131: =IF(AND(T131=24,$R$4>=75,$R$4<=80),"Dbl."&T131&"I",0) -> 0 | X131: 0 | Y131: 0 | Z131: =IF(AND(Y131=24,$W$4>=75,$W$4<=80),"Dbl."&Y131&"I",0) -> 0
C132: 62 | D132: 10/10/11 | E132: 3 | S132: =IF(AND(T132>0,U132>0),T132,0) -> 0 | T132: =IF(AND($S$4<=26,$S$4>24),26,0) -> 0 | U132: =IF(AND(T132=26,$R$4>=6,$R$4<=11),T132&"A",0) -> 0 | X132: 0 | Y132: =IF(AND($X$4<=26,$X$4>24),26,0) -> 0 | Z132: =IF(AND(Y132=26,$W$4>=6,$W$4<=11),Y132&"A",0) -> 0
C133: 63 | D133: 10/11/11 | E133: 3 | S133: 0 | T133: 0 | U133: =IF(AND(T133=26,$R$4>=12,$R$4<=17),T133&"B",0) -> 0 | X133: =IF(AND(Y133>0,Z133>0),Y133,0) -> 0 | Y133: 0 | Z133: =IF(AND(Y133=26,$W$4>=12,$W$4<=17),Y133&"B",0) -> 0
C134: 64 | D134: 10/11/11 | E134: 3 | S134: 0 | T134: 0 | U134: =IF(AND(T134=26,$R$4>=18,$R$4<=22),T134&"C",0) -> 0 | X134: 0 | Y134: 0 | Z134: =IF(AND(Y134=26,$W$4>=18,$W$4<=22),Y134&"C",0) -> 0
C135: 65 | D135: 11/11/11 | E135: 3 | S135: 0 | T135: 0 | U135: =IF(AND(T135=26,$R$4>=23,$R$4<=26),T135&"D",0) -> 0 | X135: 0 | Y135: 0 | Z135: =IF(AND(Y135=26,$W$4>=23,$W$4<=26),Y135&"D",0) -> 0
C136: 66 | D136: 11/11/11 | E136: 3 | S136: 0 | T136: 0 | U136: =IF(AND(T136=26,$R$4>=27,$R$4<=30),T136&"E",0) -> 0 | X136: 0 | Y136: 0 | Z136: =IF(AND(Y136=26,$W$4>=27,$W$4<=30),Y136&"E",0) -> 0
C137: 67 | D137: 8/8/9/9 | E137: 4 | S137: 0 | T137: 0 | U137: =IF(AND(T137=26,$R$4>=31,$R$4<=34),T137&"F",0) -> 0 | X137: 0 | Y137: 0 | Z137: =IF(AND(Y137=26,$W$4>=31,$W$4<=34),Y137&"F",0) -> 0
C138: 68 | D138: 8/8/9/9 | E138: 4 | S138: 0 | T138: 0 | U138: =IF(AND(T138=26,$R$4>=35,$R$4<=38),T138&"G",0) -> 0 | X138: 0 | Y138: 0 | Z138: =IF(AND(Y138=26,$W$4>=35,$W$4<=38),Y138&"G",0) -> 0
C139: 69 | D139: 8/9/9/9 | E139: 4 | S139: 0 | T139: 0 | U139: =IF(AND(T139=26,$R$4>=39,$R$4<=42),T139&"H",0) -> 0 | X139: 0 | Y139: 0 | Z139: =IF(AND(Y139=26,$W$4>=39,$W$4<=42),Y139&"H",0) -> 0
C140: 70 | D140: 8/9/9/9 | E140: 4 | S140: 0 | T140: 0 | U140: =IF(AND(T140=26,$R$4>=43,$R$4<=45),T140&"I",0) -> 0 | X140: 0 | Y140: 0 | Z140: =IF(AND(Y140=26,$W$4>=43,$W$4<=45),Y140&"I",0) -> 0
C141: 71 | D141: 9/9/9/9 | E141: 4 | S141: 0 | T141: 0 | U141: =IF(AND(T141=26,$R$4>=46,$R$4<=52),"Dbl."&T141&"D",0) -> 0 | X141: 0 | Y141: 0 | Z141: =IF(AND(Y141=26,$W$4>=46,$W$4<=52),"Dbl."&Y141&"D",0) -> 0
C142: 72 | D142: 9/9/9/9 | E142: 4 | S142: 0 | T142: 0 | U142: =IF(AND(T142=26,$R$4>=53,$R$4<=60),"Dbl."&T142&"E",0) -> 0 | X142: 0 | Y142: 0 | Z142: =IF(AND(Y142=26,$W$4>=53,$W$4<=60),"Dbl."&Y142&"E",0) -> 0
S143: 0 | T143: 0 | U143: =IF(AND(T143=26,$R$4>=61,$R$4<=68),"Dbl."&T143&"F",0) -> 0 | X143: 0 | Y143: 0 | Z143: =IF(AND(Y143=26,$W$4>=61,$W$4<=68),"Dbl."&Y143&"F",0) -> 0
S144: 0 | T144: 0 | U144: =IF(AND(T144=26,$R$4>=69,$R$4<=76),"Dbl."&T144&"G",0) -> 0 | X144: 0 | Y144: 0 | Z144: =IF(AND(Y144=26,$W$4>=69,$W$4<=76),"Dbl."&Y144&"G",0) -> 0
S145: 0 | T145: 0 | U145: =IF(AND(T145=26,$R$4>=77,$R$4<=80),"Dbl."&T145&"H",0) -> 0 | X145: 0 | Y145: 0 | Z145: =IF(AND(Y145=26,$W$4>=77,$W$4<=80),"Dbl."&Y145&"H",0) -> 0
S146: 0 | T146: =IF(AND($S$4<=28,$S$4>26),28,0) -> 0 | U146: =IF(AND(T146=28,$R$4>=7,$R$4<=12),T146&"A",0) -> 0 | X146: 0 | Y146: =IF(AND($X$4<=28,$X$4>26),28,0) -> 0 | Z146: =IF(AND(Y146=28,$W$4>=7,$W$4<=12),Y146&"A",0) -> 0
S147: 0 | T147: 0 | U147: =IF(AND(T147=28,$R$4>=13,$R$4<=18),T147&"B",0) -> 0 | X147: 0 | Y147: 0 | Z147: =IF(AND(Y147=28,$W$4>=13,$W$4<=18),Y147&"B",0) -> 0
S148: 0 | T148: 0 | U148: =IF(AND(T148=28,$R$4>=19,$R$4<=23),T148&"C",0) -> 0 | X148: 0 | Y148: 0 | Z148: =IF(AND(Y148=28,$W$4>=19,$W$4<=23),Y148&"C",0) -> 0
S149: 0 | T149: 0 | U149: =IF(AND(T149=28,$R$4>=24,$R$4<=28),T149&"D",0) -> 0 | X149: 0 | Y149: 0 | Z149: =IF(AND(Y149=28,$W$4>=24,$W$4<=28),Y149&"D",0) -> 0
S150: 0 | T150: 0 | U150: =IF(AND(T150=28,$R$4>=29,$R$4<=32),T150&"E",0) -> 0 | X150: 0 | Y150: 0 | Z150: =IF(AND(Y150=28,$W$4>=29,$W$4<=32),Y150&"E",0) -> 0
S151: 0 | T151: 0 | U151: =IF(AND(T151=28,$R$4>=33,$R$4<=36),T151&"F",0) -> 0 | X151: 0 | Y151: 0 | Z151: =IF(AND(Y151=28,$W$4>=33,$W$4<=36),Y151&"F",0) -> 0
S152: 0 | T152: 0 | U152: =IF(AND(T152=28,$R$4>=37,$R$4<=40),T152&"G",0) -> 0 | X152: 0 | Y152: 0 | Z152: =IF(AND(Y152=28,$W$4>=37,$W$4<=40),Y152&"G",0) -> 0
S153: 0 | T153: 0 | U153: =IF(AND(T153=28,$R$4>=41,$R$4<=43),T153&"H",0) -> 0 | X153: 0 | Y153: 0 | Z153: =IF(AND(Y153=28,$W$4>=41,$W$4<=43),Y153&"H",0) -> 0
S154: 0 | T154: 0 | U154: =IF(AND(T154=28,$R$4>=44,$R$4<=45),T154&"I",0) -> 0 | X154: 0 | Y154: 0 | Z154: =IF(AND(Y154=28,$W$4>=44,$W$4<=45),Y154&"I",0) -> 0
S155: 0 | T155: 0 | U155: =IF(AND(T155=28,$R$4=46),"Dbl."&T155&"C",0) -> 0 | X155: 0 | Y155: 0 | Z155: =IF(AND(Y155=28,$W$4=46),"Dbl."&Y155&"C",0) -> 0
S156: 0 | T156: 0 | U156: =IF(AND(T156=28,$R$4>=47,$R$4<=56),"Dbl."&T156&"D",0) -> 0 | X156: 0 | Y156: 0 | Z156: =IF(AND(Y156=28,$W$4>=47,$W$4<=56),"Dbl."&Y156&"D",0) -> 0
S157: 0 | T157: 0 | U157: =IF(AND(T157=28,$R$4>=57,$R$4<=64),"Dbl."&T157&"E",0) -> 0 | X157: 0 | Y157: 0 | Z157: =IF(AND(Y157=28,$W$4>=57,$W$4<=64),"Dbl."&Y157&"E",0) -> 0
S158: 0 | T158: 0 | U158: =IF(AND(T158=28,$R$4>=65,$R$4<=72),"Dbl."&T158&"F",0) -> 0 | X158: 0 | Y158: 0 | Z158: =IF(AND(Y158=28,$W$4>=65,$W$4<=72),"Dbl."&Y158&"F",0) -> 0
S159: 0 | T159: 0 | U159: =IF(AND(T159=28,$R$4>=73,$R$4<=80),"Dbl."&T159&"G",0) -> 0 | X159: 0 | Y159: 0 | Z159: =IF(AND(Y159=28,$W$4>=73,$W$4<=80),"Dbl."&Y159&"G",0) -> 0
S160: 0 | T160: =IF(AND($S$4<=30,$S$4>28),30,0) -> 0 | U160: =IF(AND(T160=30,$R$4>=8,$R$4<=13),T160&"A",0) -> 0 | X160: 0 | Y160: =IF(AND($X$4<=30,$X$4>28),30,0) -> 0 | Z160: =IF(AND(Y160=30,$W$4>=8,$W$4<=13),Y160&"A",0) -> 0
S161: 0 | T161: 0 | U161: =IF(AND(T161=30,$R$4>=14,$R$4<=19),T161&"B",0) -> 0 | X161: 0 | Y161: 0 | Z161: =IF(AND(Y161=30,$W$4>=14,$W$4<=19),Y161&"B",0) -> 0
S162: 0 | T162: 0 | U162: =IF(AND(T162=30,$R$4>=20,$R$4<=24),T162&"C",0) -> 0 | X162: 0 | Y162: 0 | Z162: =IF(AND(Y162=30,$W$4>=20,$W$4<=24),Y162&"C",0) -> 0
S163: 0 | T163: 0 | U163: =IF(AND(T163=30,$R$4>=25,$R$4<=29),T163&"D",0) -> 0 | X163: 0 | Y163: 0 | Z163: =IF(AND(Y163=30,$W$4>=25,$W$4<=29),Y163&"D",0) -> 0
S164: =IF(AND(T164>0,U164>0),T164,0) -> 0 | T164: 0 | U164: =IF(AND(T164=30,$R$4>=30,$R$4<=33),T164&"E",0) -> 0 | X164: 0 | Y164: 0 | Z164: =IF(AND(Y164=30,$W$4>=30,$W$4<=33),Y164&"E",0) -> 0
S165: 0 | T165: 0 | U165: =IF(AND(T165=30,$R$4>=34,$R$4<=37),T165&"F",0) -> 0 | X165: 0 | Y165: 0 | Z165: =IF(AND(Y165=30,$W$4>=34,$W$4<=37),Y165&"F",0) -> 0
S166: 0 | T166: 0 | U166: =IF(AND(T166=30,$R$4>=38,$R$4<=40),T166&"G",0) -> 0 | X166: 0 | Y166: 0 | Z166: =IF(AND(Y166=30,$W$4>=38,$W$4<=40),Y166&"G",0) -> 0
S167: 0 | T167: 0 | U167: =IF(AND(T167=30,$R$4>=41,$R$4<=43),T167&"H",0) -> 0 | X167: 0 | Y167: 0 | Z167: =IF(AND(Y167=30,$W$4>=41,$W$4<=43),Y167&"H",0) -> 0
S168: 0 | T168: 0 | U168: =IF(AND(T168=30,$R$4>=44,$R$4<=45),T168&"I",0) -> 0 | X168: 0 | Y168: 0 | Z168: =IF(AND(Y168=30,$W$4>=44,$W$4<=45),Y168&"I",0) -> 0
S169: 0 | T169: 0 | U169: =IF(AND(T169=30,$R$4>=46,$R$4<=48),"Dbl."&T169&"C",0) -> 0 | X169: 0 | Y169: 0 | Z169: =IF(AND(Y169=30,$W$4>=46,$W$4<=48),"Dbl."&Y169&"C",0) -> 0
S170: 0 | T170: 0 | U170: =IF(AND(T170=30,$R$4>=49,$R$4<=58),"Dbl."&T170&"D",0) -> 0 | X170: 0 | Y170: 0 | Z170: =IF(AND(Y170=30,$W$4>=49,$W$4<=58),"Dbl."&Y170&"D",0) -> 0
S171: 0 | T171: 0 | U171: =IF(AND(T171=30,$R$4>=59,$R$4<=66),"Dbl."&T171&"E",0) -> 0 | X171: 0 | Y171: 0 | Z171: =IF(AND(Y171=30,$W$4>=59,$W$4<=66),"Dbl."&Y171&"E",0) -> 0
S172: 0 | T172: 0 | U172: =IF(AND(T172=30,$R$4>=67,$R$4<=74),"Dbl."&T172&"F",0) -> 0 | X172: 0 | Y172: 0 | Z172: =IF(AND(Y172=30,$W$4>=67,$W$4<=74),"Dbl."&Y172&"F",0) -> 0
S173: 0 | T173: 0 | U173: =IF(AND(T173=30,$R$4>=75,$R$4<=80),"Dbl."&T173&"G",0) -> 0 | X173: 0 | Y173: 0 | Z173: =IF(AND(Y173=30,$W$4>=75,$W$4<=80),"Dbl."&Y173&"G",0) -> 0
S174: 0 | T174: =IF(AND($S$4<=32,$S$4>30),32,0) -> 0 | U174: =IF(AND(T174=32,$R$4>=8,$R$4<=14),T174&"A",0) -> 0 | X174: 0 | Y174: =IF(AND($X$4<=32,$X$4>30),32,0) -> 0 | Z174: =IF(AND(Y174=32,$W$4>=8,$W$4<=14),Y174&"A",0) -> 0
S175: 0 | T175: 0 | U175: =IF(AND(T175=32,$R$4>=15,$R$4<=20),T175&"B",0) -> 0 | X175: 0 | Y175: 0 | Z175: =IF(AND(Y175=32,$W$4>=15,$W$4<=20),Y175&"B",0) -> 0
S176: 0 | T176: 0 | U176: =IF(AND(T176=32,$R$4>=21,$R$4<=25),T176&"C",0) -> 0 | X176: 0 | Y176: 0 | Z176: =IF(AND(Y176=32,$W$4>=21,$W$4<=25),Y176&"C",0) -> 0
S177: 0 | T177: 0 | U177: =IF(AND(T177=32,$R$4>=26,$R$4<=30),T177&"D",0) -> 0 | X177: 0 | Y177: 0 | Z177: =IF(AND(Y177=32,$W$4>=26,$W$4<=30),Y177&"D",0) -> 0
S178: 0 | T178: 0 | U178: =IF(AND(T178=32,$R$4>=31,$R$4<=34),T178&"E",0) -> 0 | X178: 0 | Y178: 0 | Z178: =IF(AND(Y178=32,$W$4>=31,$W$4<=34),Y178&"E",0) -> 0
S179: 0 | T179: 0 | U179: =IF(AND(T179=32,$R$4>=35,$R$4<=37),T179&"F",0) -> 0 | X179: 0 | Y179: 0 | Z179: =IF(AND(Y179=32,$W$4>=35,$W$4<=37),Y179&"F",0) -> 0
S180: 0 | T180: 0 | U180: =IF(AND(T180=32,$R$4>=38,$R$4<=40),T180&"G",0) -> 0 | X180: 0 | Y180: 0 | Z180: =IF(AND(Y180=32,$W$4>=38,$W$4<=40),Y180&"G",0) -> 0
S181: 0 | T181: 0 | U181: =IF(AND(T181=32,$R$4>=41,$R$4<=43),T181&"H",0) -> 0 | X181: 0 | Y181: 0 | Z181: =IF(AND(Y181=32,$W$4>=41,$W$4<=43),Y181&"H",0) -> 0
S182: 0 | T182: 0 | U182: =IF(AND(T182=32,$R$4>=44,$R$4<=45),T182&"I",0) -> 0 | X182: 0 | Y182: 0 | Z182: =IF(AND(Y182=32,$W$4>=44,$W$4<=45),Y182&"I",0) -> 0
S183: 0 | T183: 0 | U183: =IF(AND(T183=32,$R$4>=46,$R$4<=50),"Dbl."&T183&"C",0) -> 0 | X183: 0 | Y183: 0 | Z183: =IF(AND(Y183=32,$W$4>=46,$W$4<=50),"Dbl."&Y183&"C",0) -> 0
S184: 0 | T184: 0 | U184: =IF(AND(T184=32,$R$4>=51,$R$4<=60),"Dbl."&T184&"D",0) -> 0 | X184: 0 | Y184: 0 | Z184: =IF(AND(Y184=32,$W$4>=51,$W$4<=60),"Dbl."&Y184&"D",0) -> 0
S185: 0 | T185: 0 | U185: =IF(AND(T185=32,$R$4>=61,$R$4<=68),"Dbl."&T185&"E",0) -> 0 | X185: 0 | Y185: 0 | Z185: =IF(AND(Y185=32,$W$4>=61,$W$4<=68),"Dbl."&Y185&"E",0) -> 0
S186: 0 | T186: 0 | U186: =IF(AND(T186=32,$R$4>=69,$R$4<=74),"Dbl."&T186&"F",0) -> 0 | X186: 0 | Y186: 0 | Z186: =IF(AND(Y186=32,$W$4>=69,$W$4<=74),"Dbl."&Y186&"F",0) -> 0
S187: 0 | T187: 0 | U187: =IF(AND(T187=32,$R$4>=75,$R$4<=80),"Dbl."&T187&"G",0) -> 0 | X187: 0 | Y187: 0 | Z187: =IF(AND(Y187=32,$W$4>=75,$W$4<=80),"Dbl."&Y187&"G",0) -> 0
S188: 0 | T188: =IF(AND($S$4<=34,$S$4>32),34,0) -> 0 | U188: =IF(AND(T188=34,$R$4>=11,$R$4<=16),T188&"A",0) -> 0 | X188: 0 | Y188: =IF(AND($X$4<=34,$X$4>32),34,0) -> 0 | Z188: =IF(AND(Y188=34,$W$4>=11,$W$4<=16),Y188&"A",0) -> 0
S189: 0 | T189: 0 | U189: =IF(AND(T189=34,$R$4>=17,$R$4<=22),T189&"B",0) -> 0 | X189: 0 | Y189: 0 | Z189: =IF(AND(Y189=34,$W$4>=17,$W$4<=22),Y189&"B",0) -> 0
S190: 0 | T190: 0 | U190: =IF(AND(T190=34,$R$4>=23,$R$4<=27),T190&"C",0) -> 0 | X190: 0 | Y190: 0 | Z190: =IF(AND(Y190=34,$W$4>=23,$W$4<=27),Y190&"C",0) -> 0
S191: 0 | T191: 0 | U191: =IF(AND(T191=34,$R$4>=28,$R$4<=32),T191&"D",0) -> 0 | X191: 0 | Y191: 0 | Z191: =IF(AND(Y191=34,$W$4>=28,$W$4<=32),Y191&"D",0) -> 0
S192: 0 | T192: 0 | U192: =IF(AND(T192=34,$R$4>=33,$R$4<=34),T192&"E",0) -> 0 | X192: 0 | Y192: 0 | Z192: =IF(AND(Y192=34,$W$4>=33,$W$4<=34),Y192&"E",0) -> 0
S193: 0 | T193: 0 | U193: =IF(AND(T193=34,$R$4>=35,$R$4<=37),T193&"F",0) -> 0 | X193: 0 | Y193: 0 | Z193: =IF(AND(Y193=34,$W$4>=35,$W$4<=37),Y193&"F",0) -> 0
S194: 0 | T194: 0 | U194: =IF(AND(T194=34,$R$4>=38,$R$4<=40),T194&"G",0) -> 0 | X194: 0 | Y194: 0 | Z194: =IF(AND(Y194=34,$W$4>=38,$W$4<=40),Y194&"G",0) -> 0
S195: 0 | T195: 0 | U195: =IF(AND(T195=34,$R$4>=41,$R$4<=43),T195&"H",0) -> 0 | X195: 0 | Y195: 0 | Z195: =IF(AND(Y195=34,$W$4>=41,$W$4<=43),Y195&"H",0) -> 0
S196: =IF(AND(T196>0,U196>0),T196,0) -> 0 | T196: 0 | U196: =IF(AND(T196=34,$R$4>=44,$R$4<=45),T196&"I",0) -> 0 | X196: 0 | Y196: 0 | Z196: =IF(AND(Y196=34,$W$4>=44,$W$4<=45),Y196&"I",0) -> 0
S197: 0 | T197: 0 | U197: =IF(AND(T197=34,$R$4>=46,$R$4<=54),"Dbl."&T197&"C",0) -> 0 | X197: =IF(AND(Y197>0,Z197>0),Y197,0) -> 0 | Y197: 0 | Z197: =IF(AND(Y197=34,$W$4>=46,$W$4<=54),"Dbl."&Y197&"C",0) -> 0
S198: 0 | T198: 0 | U198: =IF(AND(T198=34,$R$4>=55,$R$4<=64),"Dbl."&T198&"D",0) -> 0 | X198: 0 | Y198: 0 | Z198: =IF(AND(Y198=34,$W$4>=55,$W$4<=64),"Dbl."&Y198&"D",0) -> 0
S199: 0 | T199: 0 | U199: =IF(AND(T199=34,$R$4>=65,$R$4<=68),"Dbl."&T199&"E",0) -> 0 | X199: 0 | Y199: 0 | Z199: =IF(AND(Y199=34,$W$4>=65,$W$4<=68),"Dbl."&Y199&"E",0) -> 0
S200: 0 | T200: 0 | U200: =IF(AND(T200=34,$R$4>=69,$R$4<=74),"Dbl."&T200&"F",0) -> 0 | X200: 0 | Y200: 0 | Z200: =IF(AND(Y200=34,$W$4>=69,$W$4<=74),"Dbl."&Y200&"F",0) -> 0
... 71 more rows

Sheet Tables (hidden)
F2: Glass Strength
C3: 1 | D3: =IF(F3>"",VLOOKUP(F3,GLASSLOOKUP,2,FALSE),"") ->  | E3: =IF(F3>"",VLOOKUP(D3,WEIGHTCHART,2,FALSE),"") ->  | F3: =GLASS1 ->  | I3: Extrusion
C4: 2 | F4: =GLASS2 ->  | H4: 1 | I4: =IF(EXT_1=0,"",EXT_1) ->  | J4: 0 | K4: 0 | O4: Type
C5: 3 | F5: =GLASS3 ->  | H5: 2 | I5: =IF(EXT_2=0,"",EXT_2) ->  | J5: 2.40625 | K5: 12.5 | N5: 1 | O5: =IF(TYPE1>"",TYPE1,"") -> 
C6: 4 | F6: =GLASS4 ->  | H6: 3 | I6: =IF(EXT_3=0,"",EXT_3) ->  | J6: 2.40625 | K6: 13 | N6: 2 | O6: =IF(TYPE2>"",TYPE2,"") -> 
C7: 5 | F7: =GLASS5 ->  | H7: 4 | I7: =IF(EXT_5=0,"",EXT_5) ->  | J7: 1 | K7: 10 | N7: 3 | O7: =IF(TYPE3>"",TYPE3,"") -> 
C8: 6 | F8: =GLASS6 ->  | H8: 5 | I8: =IF(EXT_4=0,"",EXT_6) ->  | J8: 1.75 | K8: 11.75 | N8: 1 | O8: =VLOOKUP(TYPE,N5:O8,2,FALSE) -> 
C9: 7 | F9: =GLASS7 ->  | H9: 6 | I9: =IF(EXT_4=0,"",EXT_7) ->  | J9: 1.8125 | K9: 12
C10: 8 | F10: =GLASS8 ->  | H10: 7 | I10: =IF(EXT_5=0,"",EXT_8) ->  | J10: 1.8125 | K10: 12
F11: 1 | I11: 1 | J11: =VLOOKUP(EXTSELECT,H4:J10,3,FALSE) -> 0 | K11: =IF(AND(OR(ModelNo="03A0",ModelNo="03A2",ModelNo="03A3",ModelNo="03A9"),EXTSELECT=1,W>0,H>0),"<< Must Select","") ->  | O11: Opening
E12: =VLOOKUP(GT,D3:E10,2,FALSE) ->  | F12: =VLOOKUP(Glass,C3:E10,2,FALSE) ->  | N12: 1 | O12: Exact Size
N13: 2 | O13: Rough Opening
N14: 1 | O14: =VLOOKUP(RO,N12:O13,2,FALSE) -> Exact Size
I15: =IF(Frame_Width>=24,"Egress Width (Using 13in Hinge)","") -> 
N16: =IF(OR(ModelNo="0100",ModelNo="01HP",ModelNo="0102",ModelNo="0103",ModelNo="0104",ModelNo="0109",ModelNo="0151",ModelNo="0152",ModelNo="0153",ModelNo="0154",ModelNo="0155",ModelNo="0170",ModelNo="0171",ModelNo="0172",ModelNo="0173",ModelNo="S174",ModelNo="S175",ModelNo="0179",ModelNo="0301"),1,0) -> 0 | O16: Screen
N17: 1 | O17: =IF(SCREEN1>"",SCREEN1,"") -> 
N18: 2 | O18: =IF(SCREEN2>"",SCREEN2,"") -> 
N19: 3 | O19: =IF(SCREEN3>"",SCREEN3,"") -> 
N20: 1 | O20: =IF(Screen_Type=3,"L",IF(Screen_Type=2,"F","H")) -> H
O22: Add Grid for Weight Calc
N23: =IF(GRIDWEIGHT=TRUE,0.25,0) -> 0 | O23: FALSE

Sheet Data (hidden)
B1: Model | C1: Description | D1: Value
A2: =IF(ModelNo=B2,1,"") ->  | B2: 3M40A | C2: Sash Width | D2: =BSW_3M40A -> -2.6875 | F2: =Model_Select -> Select Model | G2: Models | H2: Description | I2: W cut-back | J2: H-cut-back | K2: Width | L2: Height | M2: Min W | N2: Min H | O2: Max W | P2: Max H | Q2: Max UI | R2: Type1 | S2: Type2 | T2: Type3 | U2: CMR_MSG | V2: Screen1 | W2: Screen2 | X2: Screen3 | Y2: Ext./Reinf. | Z2: Ext./Reinf. | AA2: Ext./Reinf. | AB2: Ext./Reinf. | AC2: Ext./Reinf. | AD2: Ext./Reinf. | AE2: Ext./Reinf. | AF2: Ext./Reinf. | AG2: Glass1 | AH2: Glass2 | AI2: Glass3 | AJ2: Glass4 | AK2: Glass5 | AL2: Glass6 | AM2: Glass7 | AN2: Glass8 | AO2: Opening | AP2: CDIM | AQ2: DDIM | AR2: TSW | AS2: TSH | AT2: TGW | AU2: TGH | AV2: TGSF | AW2: BSW | AX2: BSH | AY2: BGW | AZ2: BGH | BA2: BGSF | BB2: Bott. Sash Weight | BC2: Top Sash Weight | BD2: Bot. of Coil From CMR | BE2: Head + 4 | BF2: Sill | BG2: EW | BH2: EH | BQ2: Triple IG calculation | BY2: S140 Limitations
A3: =IF(ModelNo=B3,2,"") ->  | B3: 3M40A | C3: Sash Height | D3: =BSH_3M40A -> -0.5625 | F3: 1 | G3: Select Model
A4: =IF(ModelNo=B4,3,"") ->  | B4: 3M40A | C4: Top Glass Width | D4: =TGW_3M40A -> -3.0625 | F4: 2 | G4: 3M40A | H4: 3000 Series Single Hung | I4: 0 | J4: 0 | M4: 15.5 | N4: 25.5 | O4: 43 | P4: 75 | Q4: 118 | R4: Standard | S4: Custom | U4: =IF(AND(W>0,H>0,BTYPE="Custom",CMR=0),"<< Enter CMR Location",IF(AND(W>0,H>0,BTYPE="Custom"),"<< CMR, Bottom-Up","")) ->  | V4: Half Only | AG4: Double Strength (3 mm) | AH4: M. Strength (4 mm) | AI4: Triple Strength (5 mm) | AJ4: Triple IG Double Strength | AK4: Laminated | AO4: =IF(RO=2,"<< Exact Size Only","") ->  | AP4: =Frame_Height-DDIM_3M40A -> 0 | AQ4: =IF(TYPE=1,(Frame_Height/2),IF(TYPE=2,CMR)) -> 0 | AT4: =Frame_Width-3.0625 -> -3.0625 | AU4: =CDIM_3M40A-2.4375 -> -2.4375 | AV4: =(AT4*AU4)/144 -> 0.05183919271 | AW4: =Frame_Width-2.6875 -> -2.6875 | AX4: =DDIM_3M40A-0.5625 -> -0.5625 | AY4: =Frame_Width-4.5625 -> -4.5625 | AZ4: =DDIM_3M40A-2.4375 -> -2.4375 | BA4: =(AY4*AZ4)/144 -> 0.07722981771 | BB4: =BWGT_3M40A ->  | BD4: =IF(COIL=1,3.5625-0.16875,3.5625+((COIL-1)*1.625)-0.16875) ->  | BE4: =1.375+4 -> 5.375 | BF4: 1.96875 | BG4: =Frame_Width-4 -> -4 | BH4: =IF(AND(AX4>36.0625,(Frame_Height/2)<=CMR),CDIM_3M40A-BF4-BD4-0.125,IF(OR(AND(AX4>36.0625,(Frame_Height/2)<=CMR),(Frame_Height/2)>=CMR),Frame_Height-AX4-BE4-BF4,CDIM_3M40A-BF4-BD4-0.125)) -> -6.78125 | BL4: 1 | BM4: Single Strength (2.5 mm) | BQ4: SS (2.2) | BR4: DS (3.2) | BS4: 4 mm | BT4: TS (5.0) | BY4: Min. W | BZ4: Min. H | CA4: Max. W | CB4: Max. H | CC4: Max. UI
A5: =IF(ModelNo=B5,4,"") ->  | B5: 3M40A | C5: Top Glass Height | D5: =TGH_3M40A -> -2.4375 | F5: 3 | G5: 8M40A | H5: 3000 Series Double Hung | I5: 0 | J5: 0 | M5: 16.5 | N5: 27.5 | O5: 44 | P5: 77 | Q5: 121 | R5: Standard | S5: Custom | U5: =IF(AND(W>0,H>0,BTYPE="Custom",CMR=0),"<< Enter CMR Location",IF(AND(W>0,H>0,BTYPE="Custom"),"<< CMR, Bottom-Up","")) ->  | V5: Full Only | AG5: Double Strength (3 mm) | AH5: M. Strength (4 mm) | AI5: Triple Strength (5 mm) | AJ5: Triple IG Double Strength | AK5: Laminated | AP5: =Frame_Height-DDIM_8M40A -> 0 | AQ5: =IF(TYPE=1,(Frame_Height/2),IF(TYPE=2,CMR)) -> 0 | AR5: =Frame_Width-3.8125 -> -3.8125 | AS5: =CDIM_8M40A-1.9375 -> -1.9375 | AT5: =Frame_Width-5.6875 -> -5.6875 | AU5: =CDIM_8M40A-3.8125 -> -3.8125 | AV5: =(TGW_8M40A*TGH_8M40A)/144 -> 0.1505805122 | AW5: =Frame_Width-2.6875 -> -2.6875 | AX5: =DDIM_8M40A-0.8125 -> -0.8125 | AY5: =Frame_Width-4.5625 -> -4.5625 | AZ5: =DDIM_8M40A-2.6875 -> -2.6875 | BA5: =(BGW_8M40A*BGH_8M40A)/144 -> 0.08515082465 | BB5: =BWGT_8M40A ->  | BC5: =TWGT_8M40A ->  | BD5: =IF(COIL=1,3.5625-0.16875,3.5625+((COIL-1)*1.625)-0.16875) ->  | BE5: =1.375+4 -> 5.375 | BF5: 1.96875 | BG5: =Frame_Width-4 -> -4 | BH5: =IF(AND(AX5>36.0625,(Frame_Height/2)<=CMR),CDIM_3M40A-BF5-BD5-0.125,IF(OR(AND(AX5>36.0625,(Frame_Height/2)<=CMR),(Frame_Height/2)>=CMR),Frame_Height-AX5-BE5-BF5,CDIM_3M40A-BF5-BD5-0.125)) -> -6.53125 | BL5: 2 | BM5: Double Strength (3 mm) | BP5: Max. Short | BQ5: =IF(TG2W>41,0,41) -> 41 | BR5: =IF(TG2W>56,0,56) -> 56 | BS5: =IF(TG2W>67,0,67) -> 67 | BT5: =IF(TG2W>70,0,70) -> 70 | BU5: Annealed | BX5: Mezzo | BY5: 25 | BZ5: 40
A6: =IF(ModelNo=B6,5,"") ->  | B6: 3M40A | C6: Bottom Glass Width | D6: =BGW_3M40A -> -4.5625 | F6: 4 | G6: 3M10A | H6: 3000 Series Single Slider Lift-Out | I6: 0 | J6: 0 | M6: 25.5 | N6: 15.5 | O6: 71 | P6: 55 | Q6: 126 | R6: Standard | S6: Custom | U6: =IF(AND(W>0,H>0,BTYPE="Custom",CMR=0),"<< Enter CMR Location",IF(AND(W>0,H>0,BTYPE="Custom"),"<< CMR, Left to Right","")) ->  | V6: Half Only | AG6: Double Strength (3 mm) | AH6: M. Strength (4 mm) | AI6: Triple Strength (5 mm) | AJ6: Triple IG Double Strength | AK6: Laminated | AP6: =Frame_Width-DDIM_3M10A -> 0 | AQ6: =IF(TYPE=1,(Frame_Width/2),IF(TYPE=2,CMR)) -> 0 | BL6: 3 | BM6: Triple Strength (5 mm) | BP6: Max. Long | BQ6: =IF(TG2H>62,0,62) -> 62 | BR6: =IF(TG2H>76,0,76) -> 76 | BS6: =IF(TG2H>90,0,90) -> 90 | BT6: =IF(TG2H>102,0,102) -> 102 | BU6: Annealed | BX6: Mezzo/N.F | BY6: 26 | BZ6: 41
A7: =IF(ModelNo=B7,6,"") ->  | B7: 3M40A | C7: Bottom Glass Height | D7: =BGH_3M40A -> -2.4375 | F7: 5 | G7: 3M10R | H7: 3000 Series Single Slider Lift-Out Reverse | I7: 0 | J7: 0 | M7: 25.5 | N7: 15.5 | O7: 71 | P7: 55 | Q7: 126 | R7: Standard | S7: Custom | U7: =IF(AND(W>0,H>0,BTYPE="Custom",CMR=0),"<< Enter CMR Location",IF(AND(W>0,H>0,BTYPE="Custom"),"<< CMR, Left to Right","")) ->  | V7: Half Only | AG7: Double Strength (3 mm) | AH7: M. Strength (4 mm) | AI7: Triple Strength (5 mm) | AJ7: Triple IG Double Strength | AK7: Laminated | AP7: =IF(TYPE=1,(Frame_Width/2),IF(TYPE=2,CMR)) -> 0 | AQ7: =Frame_Width-CDIM_3M10R -> 0 | BL7: 4 | BM7: Triple IG Single Strrength | BP7: Max Sq.Ft. | BQ7: =IF(TG2A>12,0,12) -> 12 | BR7: =IF(TG2A>22,0,22) -> 22 | BS7: =IF(TG2A>32,0,32) -> 32 | BT7: =IF(TG2A>35,0,35) -> 35 | BU7: Annealed | BX7: New Construction | BY7: 20 | BZ7: 36
A8: =IF(ModelNo=B8,7,"") ->  | B8: 3M40A | C8: Screen Width | D8: =Frame_Width-3.5 -> -3.5 | F8: 6 | G8: 3M10C13 | H8: 3000 Series End Vent (1/3-1/3-1/3) | I8: 0 | J8: 0 | M8: 36 | N8: 15.5 | O8: 87 | P8: 58 | Q8: 145 | R8: Standard (1/3-1/3-1/3) | U8: =IF(AND(W>0,H>0,BTYPE="Custom",CMR=0),"<< Enter CMR Location",IF(AND(W>0,H>0,BTYPE="Custom"),"<< CMR, Ends to M.R","")) ->  | V8: Half Only | AG8: Double Strength (3 mm) | AH8: M. Strength (4 mm) | AI8: Triple Strength (5 mm) | AJ8: Triple IG Double Strength | AK8: Laminated | AP8: =Frame_Width-(DDIM_3M10C13*2) -> 0 | AQ8: =Frame_Width/3 -> 0 | BL8: 5 | BM8: Triple IG Double Strength | BP8: Max. Short | BQ8: 0 | BR8: =IF(TG2W>42,0,42) -> 42 | BS8: =IF(TG2W>70,0,70) -> 70 | BT8: =IF(TG2W>70,0,70) -> 70 | BU8: Tempered | BX8: 0700 Series | BY8: 20 | BZ8: 36
A9: =IF(ModelNo=B9,8,"") ->  | B9: 3M40A | C9: Screen Height | D9: =DDIM_3M40A-1.9375 -> -1.9375 | F9: 7 | G9: 3M10C14 | H9: 3000 Series End Vent (1/4-1/2-1/4) | M9: 45 | N9: 15.5 | O9: 113 | P9: 58 | Q9: 171 | R9: Standard (1/4-1/2-1/4) | U9: =IF(AND(W>0,H>0,BTYPE="Custom",CMR=0),"<< Enter CMR Location",IF(AND(W>0,H>0,BTYPE="Custom"),"<< CMR, Ends to M.R","")) ->  | V9: Half Only | AG9: Double Strength (3 mm) | AH9: M. Strength (4 mm) | AI9: Triple Strength (5 mm) | AJ9: Triple IG Double Strength | AK9: Laminated | AP9: =Frame_Width-(DDIM_3M10C14*2) -> 0 | AQ9: =Frame_Width/4 -> 0 | BL9: 6 | BM9: Laminated | BP9: Max. Long | BQ9: 0 | BR9: =IF(TG2H>84,0,84) -> 84 | BS9: =IF(TG2H>129,0,129) -> 129 | BT9: =IF(TG2H>129,0,129) -> 129 | BU9: Tempered | BX9: Fusion | BY9: 23.5 | BZ9: 38
A10: =IF(ModelNo=B10,9,"") ->  | B10: 3M40A | C10: Bottom Sash Weight | D10: =IF(ISERROR(BTM_WGT&" "&"lb"),"N/A",BTM_WGT&" "&"lb") -> 0 lb | F10: 8 | G10: 8M10A | H10: 3000 Series Double Slider | M10: 27.5 | N10: 16.5 | O10: 71 | P10: 56 | Q10: 127 | R10: Standard | S10: Custom | U10: =IF(AND(W>0,H>0,BTYPE="Custom",CMR=0),"<< Enter CMR Location",IF(AND(W>0,H>0,BTYPE="Custom"),"<< CMR, Left to Right","")) ->  | V10: Full Only | AG10: Double Strength (3 mm) | AH10: M. Strength (4 mm) | AI10: Triple Strength (5 mm) | AJ10: Triple IG Double Strength | AK10: Laminated | AP10: =Frame_Width-DDIM_3M10A -> 0 | AQ10: =IF(TYPE=1,(Frame_Width/2),IF(TYPE=2,CMR)) -> 0 | BL10: 7 | BM10: HP Package | BP10: Max Sq.Ft. | BQ10: 0 | BR10: =IF(TG2A>24.5,0,24.5) -> 24.5 | BS10: =IF(TG2A>42,0,42) -> 42 | BT10: =IF(TG2A>42,0,42) -> 42 | BU10: Tempered | BX10: 1700 | BY10: 24
A11: =IF(ModelNo=B11,10,"") ->  | B11: 3M40A | C11: Bottom Balance Size (C.F) | D11: =IF(ISERROR((VLOOKUP(BTM_WGT,CFB,2,FALSE))),"N/A",(VLOOKUP(BTM_WGT,CFB,2,FALSE))) -> N/A | F11: 9 | G11: 8M21A | H11: 3000 Series Double Slider Tilt | M11: 24 | N11: 13 | O11: 78 | P11: 60 | Q11: 132 | R11: Standard | S11: Custom | U11: =IF(AND(W>0,H>0,BTYPE="Custom",CMR=0),"<< Enter CMR Location",IF(AND(W>0,H>0,BTYPE="Custom"),"<< CMR, Left to Right","")) ->  | V11: Full Only | AG11: Double Strength (3 mm) | AH11: M. Strength (4 mm) | AI11: Triple Strength (5 mm) | AJ11: Triple IG Double Strength | AK11: Laminated | AP11: =Frame_Width-DDIM_3M10A -> 0 | AQ11: =IF(TYPE=1,(Frame_Width/2),IF(TYPE=2,CMR)) -> 0 | BL11: 8 | BM11: Impact Laminated | BQ11: =IF(AND(BQ5>0,BQ6>0,BQ7>0),1,0) -> 1 | BR11: =IF(AND(BR5>0,BR6>0,BR7>0),1,0) -> 1 | BS11: =IF(AND(BS5>0,BS6>0,BS7>0),1,0) -> 1 | BT11: =IF(AND(BT5>0,BT6>0,BT7>0),1,0) -> 1 | BU11: =IF(BQ11>0,"≥SS Annealed",IF(BR11>0,"≥DS Annealed",IF(BT11>0,"TS Annealed",""))) -> ≥SS Annealed | BX11: 1900 | BY11: 24
A12: =IF(ModelNo=B12,11,"") ->  | B12: 3M40A | C12: Egress Opening Width | D12: =IF(ISERROR(EW),"N/A",EW) -> 0 | F12: 10 | G12: 8M00A | H12: 3000 Series Small Picture Window | M12: 12 | N12: 12 | O12: 108 | P12: 108 | Q12: 162 | AG12: Double Strength (3 mm) | AH12: M. Strength (4 mm) | AI12: Triple Strength (5 mm) | AJ12: Triple IG Double Strength | AK12: Laminated | BR12: =IF(AND(BR8>0,BR9>0,BR10>0),1,0) -> 1 | BS12: =IF(AND(BS8>0,BS9>0,BS10>0),1,0) -> 1 | BT12: =IF(AND(BT8>0,BT9>0,BT10>0),1,0) -> 1 | BU12: =IF(BR12>0,"≥DS Tempered",IF(BT12>0,"TS Tempered","")) -> ≥DS Tempered
A13: =IF(ModelNo=B13,12,"") ->  | B13: 3M40A | C13: Egress Opening Height | D13: =IF(ISERROR(EH),"N/A",EH) -> 0 | F13: 11 | G13: 8M71F | H13: 3000 Series Large Picture Window | M13: 12 | N13: 12 | O13: 108 | P13: 108 | Q13: 162 | AG13: Double Strength (3 mm) | AH13: M. Strength (4 mm) | AI13: Triple Strength (5 mm) | AJ13: Triple IG Double Strength | AK13: Laminated | BQ13: 2.5 mm | BR13: 3.2 mm | BS13: 4 mm | BT13: 5 mm
A14: =IF(ModelNo=B14,13,"") ->  | B14: 3M40A | C14: Egress Opening Area (sq.ft.) | D14: =(D12*D13)/144 -> 0 | F14: 12 | G14: 8M71L | H14: 3000 Sereis Left Operating Casement | M14: 16 | N14: 16 | O14: 36.75 | P14: 72 | Q14: 108.75 | V14: Full Only | AG14: Double Strength (3 mm) | AH14: M. Strength (4 mm) | AI14: Triple Strength (5 mm) | AJ14: Triple IG Double Strength | AK14: Laminated | BP14: Max. Short | BQ14: =IF(TG2H>41,0,41) -> 41 | BR14: =IF(TG2H>56,0,56) -> 56 | BS14: =IF(TG2H>67,0,67) -> 67 | BT14: =IF(TG2H>70,0,70) -> 70 | BU14: Annealed
A15: =IF(ModelNo=B15,1,"") ->  | B15: 3P40A | C15: Sash Width | D15: =BSW_3P40A -> -3.75 | F15: 13 | G15: 8M71R | H15: 3000 Sereis Right Operating Casement | M15: 16 | N15: 16 | O15: 36.75 | P15: 72 | Q15: 108.75 | V15: Full Only | AG15: Double Strength (3 mm) | AH15: M. Strength (4 mm) | AI15: Triple Strength (5 mm) | AJ15: Triple IG Double Strength | AK15: Laminated | BP15: Max. Long | BQ15: =IF(TG2W>62,0,62) -> 62 | BR15: =IF(TG2W>76,0,76) -> 76 | BS15: =IF(TG2W>90,0,90) -> 90 | BT15: =IF(TG2W>102,0,102) -> 102 | BU15: Annealed
A16: =IF(ModelNo=B16,2,"") ->  | B16: 3P40A | C16: Sash Height | D16: =BSH_3P40A -> -1.125 | F16: 14 | G16: 8M81A | H16: 3000 Series Operating Awning | M16: 16 | N16: 16 | O16: 54 | P16: 32 | Q16: 86 | V16: Full Only | AG16: Double Strength (3 mm) | AH16: M. Strength (4 mm) | AI16: Triple Strength (5 mm) | AJ16: Triple IG Double Strength | AK16: Laminated | BP16: Max Sq.Ft. | BQ16: =IF(TG2A>12,0,12) -> 12 | BR16: =IF(TG2A>22,0,22) -> 22 | BS16: =IF(TG2A>32,0,32) -> 32 | BT16: =IF(TG2A>35,0,35) -> 35 | BU16: Annealed
A17: =IF(ModelNo=B17,3,"") ->  | B17: 3P40A | C17: Top Glass Width | D17: =TGW_3P40A -> -4.125 | F17: 15 | G17: 3M55A | H17: 3000 Series Hopper | M17: 12 | N17: 12 | O17: 37 | P17: 37 | Q17: 55 | V17: Full Only | AG17: Double Strength (3 mm) | AH17: M. Strength (4 mm) | AI17: Triple Strength (5 mm) | AJ17: Triple IG Double Strength | AK17: Laminated | BP17: Max. Short | BQ17: 0 | BR17: =IF(TG2H>42,0,42) -> 42 | BS17: =IF(TG2H>70,0,70) -> 70 | BT17: =IF(TG2H>70,0,70) -> 70 | BU17: Tempered
A18: =IF(ModelNo=B18,4,"") ->  | B18: 3P40A | C18: Top Glass Height | D18: =TGH_3P40A -> -3 | F18: 16 | G18: 3M56A | H18: 3000 Series Basement | M18: 14 | N18: 14 | O18: 54 | P18: 36 | Q18: 72 | V18: Full Only | AG18: Double Strength (3 mm) | AH18: M. Strength (4 mm) | AI18: Triple Strength (5 mm) | AJ18: Triple IG Double Strength | AK18: Laminated | BP18: Max. Long | BQ18: 0 | BR18: =IF(TG2W>84,0,84) -> 84 | BS18: =IF(TG2W>129,0,129) -> 129 | BT18: =IF(TG2W>129,0,129) -> 129 | BU18: Tempered
A19: =IF(ModelNo=B19,5,"") ->  | B19: 3P40A | C19: Bottom Glass Width | D19: =BGW_3P40A -> -5.625 | F19: 17 | G19: 3P40A | H19: 4000 Series Single Hung | M19: 15.5 | N19: 25.5 | O19: 43 | P19: 75 | Q19: 118 | R19: Standard | S19: Custom | U19: =IF(AND(W>0,H>0,BTYPE="Custom",CMR=0),"<< Enter CMR Location",IF(AND(W>0,H>0,BTYPE="Custom"),"<< CMR, Bottom-Up","")) ->  | V19: Half Only | AG19: Double Strength (3 mm) | AH19: M. Strength (4 mm) | AI19: Triple Strength (5 mm) | AJ19: Triple IG Double Strength | AK19: Laminated | AP19: =Frame_Height-DDIM_3P40A -> 0 | AQ19: =IF(TYPE=1,(Frame_Height/2),IF(TYPE=2,CMR)) -> 0 | AT19: =Frame_Width-4.125 -> -4.125 | AU19: =CDIM_3P40A-3 -> -3 | AV19: =(AT19*AU19)/144 -> 0.0859375 | AW19: =Frame_Width-3.75 -> -3.75 | AX19: =DDIM_3P40A-1.125 -> -1.125 | AY19: =Frame_Width-5.625 -> -5.625 | AZ19: =DDIM_3P40A-3 -> -3 | BA19: =(AY19*AZ19)/144 -> 0.1171875 | BB19: =BWGT_3P40A ->  | BD19: =IF(COIL=1,3.5625-0.16875,3.5625+((COIL-1)*1.625)-0.16875) ->  | BE19: =1.9375+4 -> 5.9375 | BF19: 2.5 | BG19: =Frame_Width-5.125 -> -5.125 | BH19: =IF(AND(AX19>36.0625,(Frame_Height/2)<=CMR),CDIM_3P40A-BF19-BD19-0.125,IF(OR(AND(AX19>36.0625,(Frame_Height/2)<=CMR),(Frame_Height/2)>=CMR),Frame_Height-AX19-BE19-BF19,CDIM_3P40A-BF19-BD19-0.125)) -> -7.3125 | BP19: Max Sq.Ft. | BQ19: 0 | BR19: =IF(TG2A>24.5,0,24.5) -> 24.5 | BS19: =IF(TG2A>42,0,42) -> 42 | BT19: =IF(TG2A>42,0,42) -> 42 | BU19: Tempered
A20: =IF(ModelNo=B20,6,"") ->  | B20: 3P40A | C20: Bottom Glass Height | D20: =BGH_3P40A -> -3 | F20: 18 | G20: 8P40A | H20: 4000 Series Double Hung | M20: 16.5 | N20: 27.5 | O20: 44 | P20: 77 | Q20: 121 | R20: Standard | S20: Custom | U20: =IF(AND(W>0,H>0,BTYPE="Custom",CMR=0),"<< Enter CMR Location",IF(AND(W>0,H>0,BTYPE="Custom"),"<< CMR, Bottom-Up","")) ->  | V20: Full Only | AG20: Double Strength (3 mm) | AH20: M. Strength (4 mm) | AI20: Triple Strength (5 mm) | AJ20: Triple IG Double Strength | AK20: Laminated | AP20: =Frame_Height-DDIM_8P40A -> 0 | AQ20: =IF(TYPE=1,(Frame_Height/2),IF(TYPE=2,CMR)) -> 0 | AR20: =Frame_Width-4.875 -> -4.875 | AS20: =CDIM_8P40A-2.375 -> -2.375 | AT20: =Frame_Width-6.75 -> -6.75 | AU20: =CDIM_8P40A-4.25 -> -4.25 | AV20: =(TGW_8M40A*TGH_8M40A)/144 -> 0.1505805122 | AW20: =Frame_Width-3.75 -> -3.75 | AX20: =DDIM_8P40A-1.25 -> -1.25 | AY20: =Frame_Width-5.625 -> -5.625 | AZ20: =DDIM_8P40A-3.125 -> -3.125 | BA20: =(BGW_8M40A*BGH_8M40A)/144 -> 0.08515082465 | BB20: =BWGT_8P40A ->  | BC20: =TWGT_8P40A ->  | BD20: =IF(COIL=1,3.5625-0.16875,3.5625+((COIL-1)*1.625)-0.16875) ->  | BE20: =1.9375+4 -> 5.9375 | BF20: 2.5 | BG20: =Frame_Width-6.125 -> -6.125 | BH20: =IF(AND(AX20>36.0625,(Frame_Height/2)<=CMR),CDIM_3M40A-BF20-BD20-0.125,IF(OR(AND(AX20>36.0625,(Frame_Height/2)<=CMR),(Frame_Height/2)>=CMR),Frame_Height-AX20-BE20-BF20,CDIM_3M40A-BF20-BD20-0.125)) -> -7.1875 | BQ20: =IF(AND(BQ14>0,BQ15>0,BQ16>0),1,0) -> 1 | BR20: =IF(AND(BR14>0,BR15>0,BR16>0),1,0) -> 1 | BS20: =IF(AND(BS14>0,BS15>0,BS16>0),1,0) -> 1 | BT20: =IF(AND(BT14>0,BT15>0,BT16>0),1,0) -> 1 | BU20: =IF(BQ20>0,"≥SS Annealed",IF(BR20>0,"≥DS Annealed",IF(BT20>0,"TS Annealed",""))) -> ≥SS Annealed
A21: =IF(ModelNo=B21,7,"") ->  | B21: 3P40A | C21: Screen Width | D21: =Frame_Width-4.5625 -> -4.5625 | F21: 19 | G21: 3P10A | H21: 4000 Series Single Slider Lift-Out | M21: 25.5 | N21: 15.5 | O21: 71 | P21: 55 | Q21: 126 | R21: Standard | S21: Custom | U21: =IF(AND(W>0,H>0,BTYPE="Custom",CMR=0),"<< Enter CMR Location",IF(AND(W>0,H>0,BTYPE="Custom"),"<< CMR, Left to Right","")) ->  | V21: Half Only | AG21: Double Strength (3 mm) | AH21: M. Strength (4 mm) | AI21: Triple Strength (5 mm) | AJ21: Triple IG Double Strength | AK21: Laminated | AP21: =Frame_Width-DDIM_3P10A -> 0 | AQ21: =IF(TYPE=1,(Frame_Width/2),IF(TYPE=2,CMR)) -> 0 | BR21: =IF(AND(BR17>0,BR18>0,BR19>0),1,0) -> 1 | BS21: =IF(AND(BS17>0,BS18>0,BS19>0),1,0) -> 1 | BT21: =IF(AND(BT17>0,BT18>0,BT19>0),1,0) -> 1 | BU21: =IF(BR21>0,"≥DS Tempered",IF(BT21>0,"TS Tempered","")) -> ≥DS Tempered
A22: =IF(ModelNo=B22,8,"") ->  | B22: 3P40A | C22: Screen Height | D22: =DDIM_3P40A-2.5 -> -2.5 | F22: 20 | G22: 3P10R | H22: 4000 Series Single Slider Lift-Out Reverse | M22: 25.5 | N22: 15.5 | O22: 71 | P22: 55 | Q22: 126 | R22: Standard | S22: Custom | U22: =IF(AND(W>0,H>0,BTYPE="Custom",CMR=0),"<< Enter CMR Location",IF(AND(W>0,H>0,BTYPE="Custom"),"<< CMR, Left to Right","")) ->  | V22: Half Only | AG22: Double Strength (3 mm) | AH22: M. Strength (4 mm) | AI22: Triple Strength (5 mm) | AJ22: Triple IG Double Strength | AK22: Laminated | AP22: =IF(TYPE=1,(Frame_Width/2),IF(TYPE=2,CMR)) -> 0 | AQ22: =Frame_Width-CDIM_3P10R -> 0 | BP22: =IF(AND(OR(BU11="≥SS Annealed",BU11="≥DS Annealed",BU12="≥DS Tempered",BU20="≥SS Annealed",BU20="≥DS Annealed",BU21="≥DS Tempered")),"TIG","") -> TIG | BQ22: =IF(AND(ANNEALED1=0,ANNEALED2=0,OR(TEMPERED1>0,TEMPERED2>0)),"Tempered is Required for TIG","") -> 
A23: =IF(ModelNo=B23,9,"") ->  | B23: 3P40A | C23: Bottom Sash Weight | D23: =IF(ISERROR(BTM_WGT&" "&"lb"),"N/A",BTM_WGT&" "&"lb") -> 0 lb | F23: 21 | G23: 8P10A | H23: 4000 Series Double Slider Lift-Out | M23: 27.5 | N23: 16.5 | O23: 71 | P23: 56 | Q23: 127 | R23: Standard | S23: Custom | U23: =IF(AND(W>0,H>0,BTYPE="Custom",CMR=0),"<< Enter CMR Location",IF(AND(W>0,H>0,BTYPE="Custom"),"<< CMR, Left to Right","")) ->  | V23: Full Only | AG23: Double Strength (3 mm) | AH23: M. Strength (4 mm) | AI23: Triple Strength (5 mm) | AJ23: Triple IG Double Strength | AK23: Laminated | AP23: =Frame_Width-DDIM_8P10A -> 0 | AQ23: =IF(TYPE=1,(Frame_Width/2),IF(TYPE=2,CMR)) -> 0 | BP23: Model | BQ23: Width | BR23: Height | BS23: Area | BT23: Balance
A24: =IF(ModelNo=B24,10,"") ->  | B24: 3P40A | C24: Bottom Balance Size (C.F) | D24: =IF(ISERROR((VLOOKUP(BTM_WGT,CFB,2,FALSE))),"N/A",(VLOOKUP(BTM_WGT,CFB,2,FALSE))) -> N/A | F24: 22 | G24: 3P10C13 | H24: 4000 Series End Vent (1/3-1/3-1/3) | M24: 36 | N24: 15.5 | O24: 87 | P24: 58 | Q24: 145 | R24: Standard (1/3-1/3-1/3) | U24: =IF(AND(W>0,H>0,BTYPE="Custom",CMR=0),"<< Enter CMR Location",IF(AND(W>0,H>0,BTYPE="Custom"),"<< CMR, Ends to M.R","")) ->  | V24: Half Only | AG24: Double Strength (3 mm) | AH24: M. Strength (4 mm) | AI24: Triple Strength (5 mm) | AJ24: Triple IG Double Strength | AK24: Laminated | AP24: =Frame_Width-(DDIM_3P10C13*2) -> 0 | AQ24: =Frame_Width/3 -> 0 | BO24: =IF(ModelNo=BP24,ModelNo,0) -> 0 | BP24: 3001 | BQ24: =MAX(#REF!,$D$90) ->  | BR24: =MAX(#REF!,$D$91) ->  | BS24: =(BQ24*BR24)/144 ->  | BT24: =IF(AND(OR(Glass=4,Glass=5),OR((ISERROR((VLOOKUP(TOP_WGT,CFB,2,FALSE)))),(ISERROR((VLOOKUP(BTM_WGT,CFB,2,FALSE)))))),1,IF(AND(Glass=3,Single_ST=0),1,0)) -> 0
A25: =IF(ModelNo=B25,11,"") ->  | B25: 3P40A | C25: Egress Opening Width | D25: =IF(ISERROR(EW),"N/A",EW) -> 0 | F25: 23 | G25: 3P10C14 | H25: 4000 Series End Vent (1/4-1/2-1/4) | M25: 45 | N25: 15.5 | O25: 113 | P25: 58 | Q25: 171 | R25: Standard (1/4-1/2-1/4) | U25: =IF(AND(W>0,H>0,BTYPE="Custom",CMR=0),"<< Enter CMR Location",IF(AND(W>0,H>0,BTYPE="Custom"),"<< CMR, Ends to M.R","")) ->  | V25: Half Only | AG25: Double Strength (3 mm) | AH25: M. Strength (4 mm) | AI25: Triple Strength (5 mm) | AJ25: Triple IG Double Strength | AK25: Laminated | AP25: =Frame_Width-(DDIM_3P10C14*2) -> 0 | AQ25: =Frame_Width/4 -> 0 | BO25: 0 | BP25: 3002 | BQ25: =#REF! ->  | BR25: =#REF! ->  | BS25: =(BQ25*BR25)/144 -> 
A26: =IF(ModelNo=B26,12,"") ->  | B26: 3P40A | C26: Egress Opening Height | D26: =IF(ISERROR(EH),"N/A",EH) -> 0 | F26: 24 | G26: 8P00A | H26: 4000 Sereis Small Picture Window | M26: 12 | N26: 12 | O26: 108 | P26: 108 | Q26: 162 | AG26: Double Strength (3 mm) | AH26: M. Strength (4 mm) | AI26: Triple Strength (5 mm) | AJ26: Triple IG Double Strength | AK26: Laminated | BO26: 0 | BP26: 3003 | BQ26: =MAX($D$119,$D$121) -> -1.125 | BR26: =MAX($D$120,$D$122) -> -3.875 | BS26: 0.0302734375
A27: =IF(ModelNo=B27,13,"") ->  | B27: 3P40A | C27: Egress Opening Area (sq.ft.) | D27: =(D25*D26)/144 -> 0 | F27: 25 | G27: 8P71F | H27: 4000 Series Large Picture Window | M27: 12 | N27: 12 | O27: 108 | P27: 108 | Q27: 162 | AG27: Double Strength (3 mm) | AH27: M. Strength (4 mm) | AI27: Triple Strength (5 mm) | AJ27: Triple IG Double Strength | AK27: Laminated | BO27: 0 | BP27: 3004 | BQ27: =$D$236 -> -4.1875 | BR27: =$D$237 -> -4.1875 | BS27: 0.1217719184
A28: =IF(ModelNo=B28,1,"") ->  | B28: 8M40A | C28: Top Sash Width | D28: =TSW_8M40A -> -3.8125 | F28: 26 | G28: 8P71L | H28: 4000 Series Left Operating Casement | M28: 16 | N28: 16 | O28: 36.75 | P28: 72 | Q28: 109 | V28: Full Only | AG28: Double Strength (3 mm) | AH28: M. Strength (4 mm) | AI28: Triple Strength (5 mm) | AJ28: Triple IG Double Strength | AK28: Laminated | BO28: 0 | BP28: 3009 | BQ28: =MAX(#REF!,#REF!) ->  | BR28: =MAX(#REF!,#REF!) -> 
A29: =IF(ModelNo=B29,2,"") ->  | B29: 8M40A | C29: Top Sash Height | D29: =TSH_8M40A -> -1.9375 | F29: 27 | G29: 8P71R | H29: 4000 Series Right Operating Casement | M29: 16 | N29: 16 | O29: 36.75 | P29: 72 | Q29: 109 | V29: Full Only | AG29: Double Strength (3 mm) | AH29: M. Strength (4 mm) | AI29: Triple Strength (5 mm) | AJ29: Triple IG Double Strength | AK29: Laminated | BO29: 0 | BP29: 03A0 | BQ29: =MAX($D$241,$D$243) -> -4.6875 | BR29: =MAX($D$242,$D$244) -> -2.59375 | BS29: 0.08443196615 | BT29: =IF(AND(OR(Glass=4,Glass=5),(ISERROR((VLOOKUP(BTM_WGT,CFB,2,FALSE))))),1,IF(AND(Glass=3,Single_ST=0),1,0)) -> 0
A30: =IF(ModelNo=B30,3,"") ->  | B30: 8M40A | C30: Bottom Sash Width | D30: =BSW_8M40A -> -2.6875 | F30: 28 | G30: 8P81A | H30: 4000 Series Operating Awning | M30: 16 | N30: 16 | O30: 54 | P30: 32 | Q30: 86 | V30: Full Only | AG30: Double Strength (3 mm) | AH30: M. Strength (4 mm) | AI30: Triple Strength (5 mm) | AJ30: Triple IG Double Strength | AK30: Laminated | BO30: 0 | BP30: 03A2 | BQ30: =MAX($D$256,$D$258) -> -2.5625 | BR30: =MAX($D$257,$D$259) -> -4.6875 | BS30: 0.08341471354
A31: =IF(ModelNo=B31,4,"") ->  | B31: 8M40A | C31: Bottom Sash Height | D31: =BSH_8M40A -> -0.8125 | F31: 29 | G31: 03A0 | H31: Mezzo Single Hung | I31: 0 | J31: 0 | M31: 12 | N31: 22 | O31: =IF(EXTSELECT=2,48,IF(EXTSELECT=3,52,"")) ->  | P31: =IF(EXTSELECT=2,78,IF(EXTSELECT=3,96,"")) ->  | Q31: =IF(EXTSELECT=2,126,IF(EXTSELECT=3,148,"")) ->  | R31: Standard | S31: Custom | V31: Half | W31: Full | X31: Locking | Y31: Select Reinforcement | Z31: Composite | AA31: Steel | AH31: Double Strength (3 mm) | AI31: Triple Strength (5 mm) | AJ31: Triple IG Single Strength | AK31: Triple IG Double Strength | AL31: Laminated | AP31: =Frame_Height-DDIM_03A0 -> 0 | AQ31: =IF(TYPE=1,(Frame_Height/2),IF(TYPE=2,CMR)) -> 0 | AT31: =TRUNC((Frame_Width-4.75)*16+0.5)/16 -> -4.6875 | AU31: =TRUNC((DDIM_03A0-2.625)*32+0.5)/32 -> -2.59375 | AV31: =(AT31*AU31)/144 -> 0.08443196615 | AW31: =Frame_Width-3.125 -> -3.125 | AX31: =CDIM_03A0-1.125 -> -1.125 | AY31: =TRUNC((Frame_Width-4.8125)*16+0.5)/16 -> -4.75 | AZ31: =TRUNC((CDIM_03A0-2.75)*32+0.5)/32 -> -2.71875 | BA31: =(AY31*AZ31)/144 -> 0.08968098958 | BB31: =BWGT_03A0 ->  | BD31: =IF(COIL=1,3.875-0.16875,3.875+((COIL-1)*1.625)-0.16875) ->  | BE31: 6 | BF31: 1.875 | BG31: =Frame_Width-5.8125 -> -5.8125 | BH31: =IF(AND(AX31>36.0625,(Frame_Height/2)<=CMR),CDIM_03A0-BF31-BD31-0.125,IF(OR(AND(AX31>36.0625,(Frame_Height/2)<=CMR),(Frame_Height/2)>=CMR),Frame_Height-AX31-BE31-BF31,CDIM_03A0-BF31-BD31-0.125)) -> -6.75 | BO31: 0 | BP31: 03A3 | BQ31: =MAX($D$268,$D$270) -> -1.5 | BR31: =MAX($D$269,$D$271) -> -4.6875 | BS31: 0.048828125
A32: =IF(ModelNo=B32,5,"") ->  | B32: 8M40A | C32: Top Glass Width | D32: =TGW_8M40A -> -5.6875 | F32: 30 | G32: 03A2 | H32: Mezzo Two Lite Single Slider | I32: 0 | J32: 0 | M32: 18.5 | N32: 12 | O32: =IF(EXTSELECT=2,72,IF(EXTSELECT=3,96,"")) ->  | P32: =IF(EXTSELECT=2,56,IF(EXTSELECT=3,72,"")) ->  | Q32: =IF(EXTSELECT=2,128,IF(EXTSELECT=3,156,"")) ->  | R32: Standard | V32: Half | W32: Full | Y32: Select Reinforcement | Z32: Composite | AA32: Steel | AH32: Double Strength (3 mm) | AI32: Triple Strength (5 mm) | AJ32: Triple IG Single Strength | AK32: Triple IG Double Strength | AL32: Laminated | AO32: =IF(RO=2,"<< Exact Size Only","") ->  | BG32: =(Frame_Width/2)-4.75 -> -4.75 | BO32: 0 | BP32: 03A4 | BQ32: =$D$236 -> -4.1875 | BR32: =$D$237 -> -4.1875 | BS32: 0.1217719184
A33: =IF(ModelNo=B33,6,"") ->  | B33: 8M40A | C33: Top Glass Height | D33: =TGH_8M40A -> -3.8125 | F33: 31 | G33: 03A3 | H33: Mezzo Three Lite Slider (1/4-1/2-1/4) | I33: 0 | J33: 0 | M33: 52 | N33: 12 | O33: =IF(EXTSELECT=2,108,IF(EXTSELECT=3,110,"")) ->  | P33: =IF(EXTSELECT=2,56,IF(EXTSELECT=3,72,"")) ->  | Q33: =IF(EXTSELECT=2,164,IF(EXTSELECT=3,182,"")) ->  | R33: Standard (1/4-1/2-1/4) | V33: Half | W33: Full | Y33: Select Reinforcement | Z33: Composite | AA33: Steel | AH33: Double Strength (3 mm) | AI33: Triple Strength (5 mm) | AJ33: Triple IG Single Strength | AK33: Triple IG Double Strength | AL33: Laminated | BG33: =(Frame_Width/4)-2.875 -> -2.875 | BO33: 0 | BP33: 03A9 | BQ33: =MAX($D$281,$D$283) -> -1.875 | BR33: =MAX($D$282,$D$284) -> -4.6875 | BS33: 0.06103515625
A34: =IF(ModelNo=B34,7,"") ->  | B34: 8M40A | C34: Bottom Glass Width | D34: =BGW_8M40A -> -4.5625 | F34: 32 | G34: 03A4 | H34: Mezzo Picture Window | I34: 0 | J34: 0 | M34: 9.5 | N34: 9.5 | O34: 112 | P34: 112 | Q34: 154 | R34: Standard | AH34: Double Strength (3 mm) | AI34: Triple Strength (5 mm) | AJ34: Triple IG Single Strength | AK34: Triple IG Double Strength | AL34: Laminated | BO34: 0 | BP34: 0951 | BQ34: =#REF! ->  | BR34: =#REF! ->  | BS34: =(BQ34*BR34)/144 -> 
A35: =IF(ModelNo=B35,8,"") ->  | B35: 8M40A | C35: Bottom Glass Height | D35: =BGH_8M40A -> -2.6875 | F35: 33 | G35: 03A9 | H35: Mezzo Three Lite Slider Equal Lite | I35: 0 | J35: 0 | M35: 52 | N35: 12 | O35: =IF(EXTSELECT=2,108,IF(EXTSELECT=3,120,"")) ->  | P35: =IF(EXTSELECT=2,56,IF(EXTSELECT=3,72,"")) ->  | Q35: =IF(EXTSELECT=2,164,IF(EXTSELECT=3,192,"")) ->  | R35: Standard (1/3-1/3-1/3) | V35: Half | W35: Full | Y35: Select Reinforcement | Z35: Composite | AA35: Steel | AH35: Double Strength (3 mm) | AI35: Triple Strength (5 mm) | AJ35: Triple IG Single Strength | AK35: Triple IG Double Strength | AL35: Laminated | BG35: =(Frame_Width/3)-4.375 -> -4.375 | BO35: 0 | BP35: 0952 | BQ35: =MAX(#REF!,#REF!) ->  | BR35: =MAX(#REF!,#REF!) -> 
A36: =IF(ModelNo=B36,9,"") ->  | B36: 8M40A | C36: Screen Width | D36: =Frame_Width-3.3125 -> -3.3125 | F36: 34 | G36: L201 | H36: Fusion Double Hung | I36: 0 | J36: 0 | M36: 11 | N36: 20 | O36: 48 | P36: 78 | Q36: 126 | R36: Standard | S36: Custom | V36: Half | W36: Full | X36: Locking | AG36: Single Strength (2.5 mm) | AH36: Double Strength (3 mm) | AI36: Triple Strength (5 mm) | AP36: =Frame_Height-DDIM_L201 -> 0 | AQ36: =IF(TYPE=1,(Frame_Height/2),IF(TYPE=2,CMR)) -> 0 | AR36: =Frame_Width-3.25 -> -3.25 | AS36: =DDIM_L201-1.5625 -> -1.5625 | AT36: =TRUNC((Frame_Width-4.9375)*16+0.5)/16 -> -4.875 | AU36: =TRUNC((DDIM_L201-3.21875)*32+0.5)/32 -> -3.1875 | AV36: =(AT36*AU36)/144 -> 0.1079101562 | AW36: =Frame_Width-2.25 -> -2.25 | AX36: =CDIM_L201-0.5625 -> -0.5625 | AY36: =TRUNC((Frame_Width-3.9375)*16+0.5)/16 -> -3.875 | AZ36: =TRUNC((CDIM_L201-2.21875)*32+0.5)/32 -> -2.1875 | BA36: =(AY36*AZ36)/144 -> 0.05886501736 | BB36: =BWGT_L201 ->  | BC36: =TWGT_L201 ->  | BD36: =IF(COIL=1,3.875-0.6875,3.875+((COIL-1)*1.625)-0.6875) ->  | BE36: 7.4375 | BF36: 1.75 | BG36: =Frame_Width-4.5 -> -4.5 | BH36: =IF(AND(AX36>36.0625,(Frame_Height/2)<=CMR),CDIM_L201-BF36-BD36-0.125,IF(OR(AND(AX36>36.0625,(Frame_Height/2)<=CMR),(Frame_Height/2)>=CMR),Frame_Height-AX36-BE36-BF36,CDIM_L201-BF36-BD36-0.125)) -> -8.625 | BO36: 0 | BP36: 0953 | BQ36: =MAX(#REF!,#REF!) ->  | BR36: =MAX(#REF!,#REF!) -> 
A37: =IF(ModelNo=B37,10,"") ->  | B37: 8M40A | C37: Screen Height | D37: =Frame_Height-3.6875 -> -3.6875 | F37: 35 | G37: L202 | H37: Fusion 2 Lite Slider | I37: 0 | J37: 0 | M37: 18 | N37: 9 | O37: 84 | P37: 56 | Q37: 140 | R37: Standard | V37: Half | W37: Full | AG37: Single Strength (2.5 mm) | AH37: Double Strength (3 mm) | AI37: Triple Strength (5 mm) | BG37: =(Frame_Width/2)-4.25 -> -4.25 | BO37: 0 | BP37: 0954 | BQ37: =MAX(#REF!,#REF!) ->  | BR37: =MAX(#REF!,#REF!) -> 
A38: =IF(ModelNo=B38,11,"") ->  | B38: 8M40A | C38: Top Sash Weight | D38: =IF(ISERROR(BTM_WGT&" "&"lb"),"N/A",TOP_WGT&" "&"lb") -> 0 lb | F38: 36 | G38: L203 | H38: Fusion 3 Lite Slider (1/4-1/2-1/4) | I38: 0 | J38: 0 | M38: 48 | N38: 9 | O38: 108 | P38: 56 | Q38: 164 | R38: Standard (1/4-1/2-1/4) | V38: Half | W38: Full | AG38: Single Strength (2.5 mm) | AH38: Double Strength (3 mm) | AI38: Triple Strength (5 mm) | BG38: =(Frame_Width/4)-1.5 -> -1.5 | BO38: 0 | BP38: 0955 | BQ38: =#REF! ->  | BR38: =#REF! -> 
A39: =IF(ModelNo=B39,12,"") ->  | B39: 8M40A | C39: Top Balance Size (C.F) | D39: =IF(ISERROR((VLOOKUP(TOP_WGT,CFB,2,FALSE))),"N/A",(VLOOKUP(TOP_WGT,CFB,2,FALSE))) -> N/A | F39: 37 | G39: L204 | H39: Fusion Picture Window | I39: 0 | J39: 0 | M39: 9 | N39: 9 | O39: 96 | P39: 96 | Q39: 154 | R39: Standard | AH39: Double Strength (3 mm) | AI39: Triple Strength (5 mm) | BO39: 0 | BP39: 0970 | BQ39: =#REF! ->  | BR39: =#REF! -> 
A40: =IF(ModelNo=B40,13,"") ->  | B40: 8M40A | C40: Bottom Sash Weight | D40: =IF(ISERROR(BTM_WGT&" "&"lb"),"N/A",BTM_WGT&" "&"lb") -> 0 lb | F40: 38 | G40: L209 | H40: Fusion 3 Lite Slider Equal Lite | I40: 0 | J40: 0 | M40: 38 | N40: 9 | O40: 108 | P40: 56 | Q40: 164 | R40: Standard (1/3-1/3-1/3) | V40: Half | W40: Full | AG40: Single Strength (2.5 mm) | AH40: Double Strength (3 mm) | AI40: Triple Strength (5 mm) | BG40: =(TRUNC((Frame_Width/3+0.1875)*16+0.5)/16)-2.125 -> -1.9375 | BO40: 0 | BP40: B970 | BQ40: =#REF! ->  | BR40: =#REF! -> 
A41: =IF(ModelNo=B41,14,"") ->  | B41: 8M40A | C41: Bottom Balance Size (C.F) | D41: =IF(ISERROR((VLOOKUP(BTM_WGT,CFB,2,FALSE))),"N/A",(VLOOKUP(BTM_WGT,CFB,2,FALSE))) -> N/A | F41: 39 | G41: 0970 | H41: Casement Picture Window | I41: 0 | J41: 0 | M41: 13 | N41: 13 | O41: 96 | P41: 96 | Q41: 154 | R41: Standard | AH41: Double Strength (3 mm) | AI41: Triple Strength (5 mm) | AJ41: Triple IG Single Strength | AK41: Triple IG Double Strength | AL41: Laminated | AO41: =IF(RO=2,"<< Exact Size Only","") ->  | BO41: 0 | BP41: 0971 | BQ41: =#REF! ->  | BR41: =#REF! -> 
A42: =IF(ModelNo=B42,15,"") ->  | B42: 8M40A | C42: Egress Opening Width | D42: =IF(ISERROR(EW),"N/A",EW) -> 0 | F42: 40 | G42: 0971 | H42: Single Vent Casement | I42: 0 | J42: 0 | M42: 16 | N42: 19 | O42: 36 | P42: 78 | Q42: 114 | R42: Standard | V42: Full | AH42: Double Strength (3 mm) | AI42: Triple Strength (5 mm) | AJ42: Triple IG Single Strength | AK42: Triple IG Double Strength | AL42: Laminated | AO42: =IF(RO=2,"<< Exact Size Only","") ->  | BO42: 0 | BP42: B971 | BQ42: =#REF! ->  | BR42: =#REF! -> 
A43: =IF(ModelNo=B43,16,"") ->  | B43: 8M40A | C43: Egress Opening Height | D43: =IF(ISERROR(EH),"N/A",EH) -> 0 | F43: 41 | G43: 0972 | H43: Dual Vent Casement | I43: 0 | J43: 0 | M43: 32 | N43: 19 | O43: 72 | P43: 78 | Q43: 150 | R43: Standard | V43: Half | AH43: Double Strength (3 mm) | AI43: Triple Strength (5 mm) | AJ43: Triple IG Single Strength | AK43: Triple IG Double Strength | AL43: Laminated | BO43: 0 | BP43: 0972 | BQ43: =#REF! ->  | BR43: =#REF! -> 
A44: =IF(ModelNo=B44,17,"") ->  | B44: 8M40A | C44: Egress Opening Area (sq.ft.) | D44: =(D42*D43)/144 -> 0 | F44: 42 | G44: 0973 | H44: Dual Vent 3 Lite Casement (1/4-1/2-1/4) | I44: 0 | J44: 0 | M44: 64 | N44: 19 | O44: 120 | P44: 78 | Q44: 198 | R44: Standard (1/4-1/2-1/4) | V44: Half | AH44: Double Strength (3 mm) | AI44: Triple Strength (5 mm) | AJ44: Triple IG Single Strength | AK44: Triple IG Double Strength | AL44: Laminated | BO44: 0 | BP44: 0973 | BQ44: =MAX(#REF!,#REF!) ->  | BR44: =MAX(#REF!,#REF!) -> 
A45: =IF(ModelNo=B45,1,"") ->  | B45: 8P40A | C45: Top Sash Width | D45: =TSW_8P40A -> -4.875 | F45: 43 | G45: 0974 | H45: 4 Lite Casement | I45: 0 | J45: 0 | M45: 64 | N45: 19 | O45: 120 | P45: 78 | Q45: 198 | R45: Standard | V45: Half | AH45: Double Strength (3 mm) | AI45: Triple Strength (5 mm) | AJ45: Triple IG Single Strength | AK45: Triple IG Double Strength | AL45: Laminated | BO45: 0 | BP45: 0974 | BQ45: =MAX(#REF!,#REF!) ->  | BR45: =MAX(#REF!,#REF!) -> 
A46: =IF(ModelNo=B46,2,"") ->  | B46: 8P40A | C46: Top Sash Height | D46: =TSH_8P40A -> -2.375 | F46: 44 | G46: 0975 | H46: 5 Lite Casement | I46: 0 | J46: 0 | M46: 80 | N46: 19 | O46: 120 | P46: 78 | Q46: 198 | R46: Standard | V46: Half | AH46: Double Strength (3 mm) | AI46: Triple Strength (5 mm) | AJ46: Triple IG Single Strength | AK46: Triple IG Double Strength | AL46: Laminated | BO46: 0 | BP46: 0975 | BQ46: =MAX(#REF!,#REF!) ->  | BR46: =MAX(#REF!,#REF!) -> 
A47: =IF(ModelNo=B47,3,"") ->  | B47: 8P40A | C47: Bottom Sash Width | D47: =BSW_8P40A -> -3.75 | F47: 45 | G47: 0979 | H47: Dual Vent 3 Lite Casement (Equal Lite) | I47: 0 | J47: 0 | M47: 48 | N47: 19 | O47: 108 | P47: 78 | Q47: 186 | R47: Standard (1/3-1/3-1/3) | V47: Half | AH47: Double Strength (3 mm) | AI47: Triple Strength (5 mm) | AJ47: Triple IG Single Strength | AK47: Triple IG Double Strength | AL47: Laminated | BO47: 0 | BP47: 0979 | BQ47: =MAX(#REF!,#REF!) ->  | BR47: =MAX(#REF!,#REF!) -> 
A48: =IF(ModelNo=B48,4,"") ->  | B48: 8P40A | C48: Bottom Sash Height | D48: =BSH_8P40A -> -1.25 | F48: 46 | G48: 1105 | H48: New Const. 4 Foot Patio Door | I48: 0.625 | J48: 0.5 | K48: 60 | L48: 80 | M48: 59.375 | N48: 79.5 | O48: 59.375 | P48: 79.5 | Q48: 140 | R48: Standard | V48: Half | AH48: Double Strength (3 mm) | AI48: Triple Strength (5 mm) | AJ48: Triple IG Single Strength | AK48: Triple IG Double Strength | AL48: Laminated | AO48: =IF(RO=1,"<< Rough Opening Only","") -> << Rough Opening Only | BO48: 0 | BP48: 6402 | BQ48: =$D$62 -> -0.5625 | BR48: =$D$63 -> -2.75 | BS48: 0.0107421875
A49: =IF(ModelNo=B49,5,"") ->  | B49: 8P40A | C49: Top Glass Width | D49: =TGW_8P40A -> -6.75 | F49: 47 | G49: 1106 | H49: New Const. Six Foot Patio Door | I49: 0.625 | J49: 0.5 | K49: 72 | L49: 80 | M49: 71.375 | N49: 79.5 | O49: 71.375 | P49: 95.5 | Q49: 168 | R49: Standard | V49: Half | AH49: Double Strength (3 mm) | AI49: Triple Strength (5 mm) | AJ49: Triple IG Single Strength | AK49: Triple IG Double Strength | AL49: Laminated | AO49: << Rough Opening Only | BO49: 0 | BP49: 6403 | BQ49: =#REF! ->  | BR49: =#REF! -> 
A50: =IF(ModelNo=B50,6,"") ->  | B50: 8P40A | C50: Top Glass Height | D50: =TGH_8P40A -> -4.25 | F50: 48 | G50: 1108 | H50: New Const. Eight Foot Patio Door | I50: 0.625 | J50: 0.5 | K50: 96 | L50: 80 | M50: 95.375 | N50: 79.5 | O50: 95.375 | P50: 79.5 | Q50: 176 | R50: Standard | V50: Half | AH50: Double Strength (3 mm) | AI50: Triple Strength (5 mm) | AJ50: Triple IG Single Strength | AK50: Triple IG Double Strength | AL50: Laminated | AO50: << Rough Opening Only | BO50: 0 | BP50: 6404 | BQ50: =#REF! ->  | BR50: =#REF! -> 
A51: =IF(ModelNo=B51,7,"") ->  | B51: 8P40A | C51: Bottom Glass Width | D51: =BGW_8P40A -> -5.625 | F51: 49 | G51: 1109 | H51: New Const. Nine Foot Patio Door | I51: 0.625 | J51: 0.5 | K51: 108 | L51: 80 | M51: 107.375 | N51: 79.5 | O51: 107.375 | P51: 95.5 | Q51: 204 | R51: Standard | V51: Half | AH51: Double Strength (3 mm) | AI51: Triple Strength (5 mm) | AJ51: Triple IG Single Strength | AK51: Triple IG Double Strength | AL51: Laminated | AO51: << Rough Opening Only | BO51: 0 | BP51: 6405 | BQ51: =$D$62 -> -0.5625 | BR51: =$D$63 -> -2.75 | BS51: 0.0107421875
A52: =IF(ModelNo=B52,8,"") ->  | B52: 8P40A | C52: Bottom Glass Height | D52: =BGH_8P40A -> -3.125 | F52: 50 | G52: =ModelNo -> Select Model | H52: =VLOOKUP(Model_Select,Data,2,FALSE) -> 0 | I52: =VLOOKUP(Model_Select,Data,3,FALSE) -> 0 | J52: =VLOOKUP(Model_Select,Data,4,FALSE) -> 0 | K52: =VLOOKUP(Model_Select,Data,5,FALSE) -> 0 | L52: =VLOOKUP(Model_Select,Data,6,FALSE) -> 0 | M52: =VLOOKUP(Model_Select,Data,7,FALSE) -> 0 | N52: =VLOOKUP(Model_Select,Data,8,FALSE) -> 0 | O52: =VLOOKUP(Model_Select,Data,9,FALSE) -> 0 | P52: =VLOOKUP(Model_Select,Data,10,FALSE) -> 0 | Q52: =VLOOKUP(Model_Select,Data,11,FALSE) -> 0 | R52: =VLOOKUP(Model_Select,Data,12,FALSE) -> 0 | S52: =VLOOKUP(Model_Select,Data,13,FALSE) -> 0 | T52: =VLOOKUP(Model_Select,Data,14,FALSE) -> 0 | U52: =VLOOKUP(Model_Select,Data,15,FALSE) -> 0 | V52: =VLOOKUP(Model_Select,Data,16,FALSE) -> 0 | W52: =VLOOKUP(Model_Select,Data,17,FALSE) -> 0 | X52: =VLOOKUP(Model_Select,Data,18,FALSE) -> 0 | Y52: =VLOOKUP(Model_Select,Data,19,FALSE) -> 0 | Z52: =VLOOKUP(Model_Select,Data,20,FALSE) -> 0 | AA52: =VLOOKUP(Model_Select,Data,21,FALSE) -> 0 | AB52: =VLOOKUP(Model_Select,Data,22,FALSE) -> 0 | AC52: =VLOOKUP(Model_Select,Data,23,FALSE) -> 0 | AD52: =VLOOKUP(Model_Select,Data,24,FALSE) -> 0 | AE52: =VLOOKUP(Model_Select,Data,25,FALSE) -> 0 | AF52: =VLOOKUP(Model_Select,Data,26,FALSE) -> 0 | AG52: =VLOOKUP(Model_Select,Data,27,FALSE) -> 0 | AH52: =VLOOKUP(Model_Select,Data,28,FALSE) -> 0 | AI52: =VLOOKUP(Model_Select,Data,29,FALSE) -> 0 | AJ52: =VLOOKUP(Model_Select,Data,30,FALSE) -> 0 | AK52: =VLOOKUP(Model_Select,Data,31,FALSE) -> 0 | AL52: =VLOOKUP(Model_Select,Data,32,FALSE) -> 0 | AM52: =VLOOKUP(Model_Select,Data,33,FALSE) -> 0 | AN52: =VLOOKUP(Model_Select,Data,34,FALSE) -> 0 | AO52: =VLOOKUP(Model_Select,Data,35,FALSE) -> 0 | AP52: =VLOOKUP(Model_Select,Data,36,FALSE) -> 0 | AQ52: =VLOOKUP(Model_Select,Data,37,FALSE) -> 0 | AR52: =VLOOKUP(Model_Select,Data,38,FALSE) -> 0 | AS52: =VLOOKUP(Model_Select,Data,39,FALSE) -> 0 | AT52: =VLOOKUP(Model_Select,Data,40,FALSE) -> 0 | AU52: =VLOOKUP(Model_Select,Data,41,FALSE) -> 0 | AV52: =VLOOKUP(Model_Select,Data,42,FALSE) -> 0 | AW52: =VLOOKUP(Model_Select,Data,43,FALSE) -> 0 | AX52: =VLOOKUP(Model_Select,Data,44,FALSE) -> 0 | AY52: =VLOOKUP(Model_Select,Data,45,FALSE) -> 0 | AZ52: =VLOOKUP(Model_Select,Data,46,FALSE) -> 0 | BA52: =VLOOKUP(Model_Select,Data,47,FALSE) -> 0 | BB52: =VLOOKUP(Model_Select,Data,48,FALSE) -> 0 | BC52: =VLOOKUP(Model_Select,Data,49,FALSE) -> 0 | BD52: =VLOOKUP(Model_Select,Data,50,FALSE) -> 0 | BE52: =VLOOKUP(Model_Select,Data,51,FALSE) -> 0 | BF52: =VLOOKUP(Model_Select,Data,52,FALSE) -> 0 | BG52: =VLOOKUP(Model_Select,Data,53,FALSE) -> 0 | BH52: =VLOOKUP(Model_Select,Data,54,FALSE) -> 0 | BO52: 0 | BP52: 6406 | BQ52: =$D$62 -> -0.5625 | BR52: =$D$63 -> -2.75 | BS52: 0.0107421875
A53: =IF(ModelNo=B53,9,"") ->  | B53: 8P40A | C53: Screen Width | D53: =Frame_Width-4.4375 -> -4.4375 | AG53: =IF(AG52>0,1,0) -> 0 | AH53: 0 | AI53: 0 | AJ53: 0 | AK53: 0 | AL53: 0 | AM53: 0 | AN53: 0 | BO53: 0 | BP53: 6408 | BQ53: =$D$62 -> -0.5625 | BR53: =$D$63 -> -2.75 | BS53: 0.0107421875
A54: =IF(ModelNo=B54,10,"") ->  | B54: 8P40A | C54: Screen Height | D54: =Frame_Height-4.75 -> -4.75 | AG54: =AG53 -> 0 | AH54: =SUM(AG53:AH53) -> 0 | AI54: =SUM(AG53:AI53) -> 0 | AJ54: =SUM(AG53:AJ53) -> 0 | AK54: =SUM(AG53:AK53) -> 0 | AL54: =SUM(AG53:AL53) -> 0 | AM54: =SUM(AG53:AM53) -> 0 | AN54: =SUM(AG53:AN53) -> 0 | BO54: 0 | BP54: 6409 | BQ54: =#REF! ->  | BR54: =#REF! -> 
A55: =IF(ModelNo=B55,11,"") ->  | B55: 8P40A | C55: Top Sash Weight | D55: =IF(ISERROR(BTM_WGT&" "&"lb"),"N/A",TOP_WGT&" "&"lb") -> 0 lb | AG55: =AG52 -> 0 | AH55: =AH52 -> 0 | AI55: =AI52 -> 0 | AJ55: 0 | AK55: 0 | AL55: 0 | AM55: 0 | AN55: =AN52 -> 0 | BO55: 0 | BP55: 6412 | BQ55: =#REF! ->  | BR55: =#REF! -> 
A56: =IF(ModelNo=B56,12,"") ->  | B56: 8P40A | C56: Top Balance Size (C.F) | D56: =IF(ISERROR((VLOOKUP(TOP_WGT,CFB,2,FALSE))),"N/A",(VLOOKUP(TOP_WGT,CFB,2,FALSE))) -> N/A | AG56: =IF(ISERROR(HLOOKUP(1,AG54:AN55,2,FALSE)),"",HLOOKUP(1,AG54:AN55,2,FALSE)) ->  | AH56: =IF(ISERROR(HLOOKUP(2,AG54:AN55,2,FALSE)),"",HLOOKUP(2,AG54:AN55,2,FALSE)) ->  | AI56: =IF(ISERROR(HLOOKUP(3,AG54:AN55,2,FALSE)),"",HLOOKUP(3,AG54:AN55,2,FALSE)) ->  | AJ56: =IF(ISERROR(HLOOKUP(4,AG54:AN55,2,FALSE)),"",HLOOKUP(4,AG54:AN55,2,FALSE)) ->  | AK56: =IF(ISERROR(HLOOKUP(5,AG54:AN55,2,FALSE)),"",HLOOKUP(5,AG54:AN55,2,FALSE)) ->  | AL56: =IF(ISERROR(HLOOKUP(6,AG54:AN55,2,FALSE)),"",HLOOKUP(6,AG54:AN55,2,FALSE)) ->  | AM56: =IF(ISERROR(HLOOKUP(7,AG54:AN55,2,FALSE)),"",HLOOKUP(7,AG54:AN55,2,FALSE)) ->  | AN56: =IF(ISERROR(HLOOKUP(8,AG54:AN55,2,FALSE)),"",HLOOKUP(8,AG54:AN55,2,FALSE)) ->  | BO56: =IF(ModelNo=BP56,ModelNo,0) -> 0 | BP56: 6422 | BQ56: =#REF! ->  | BR56: =#REF! -> 
A57: =IF(ModelNo=B57,13,"") ->  | B57: 8P40A | C57: Bottom Sash Weight | D57: =IF(ISERROR(BTM_WGT&" "&"lb"),"N/A",BTM_WGT&" "&"lb") -> 0 lb | AG57: Single Strength (2.5 mm) | AH57: S | AI57: 2.314 | BO57: 0 | BP57: 6475 | BQ57: =$D$62 -> -0.5625 | BR57: =$D$63 -> -2.75 | BS57: 0.0107421875
A58: =IF(ModelNo=B58,14,"") ->  | B58: 8P40A | C58: Bottom Balance Size (C.F) | D58: =IF(ISERROR((VLOOKUP(BTM_WGT,CFB,2,FALSE))),"N/A",(VLOOKUP(BTM_WGT,CFB,2,FALSE))) -> N/A | AG58: Double Strength (3 mm) | AH58: D | AI58: 3.2 | BO58: 0 | BP58: 8001 | BQ58: =MAX($D$6,#REF!) ->  | BR58: =MAX($D$7,#REF!) ->  | BT58: =IF(AND(OR(Glass=4,Glass=5),OR((ISERROR(TOP_TUBE)),(ISERROR(BTM_TUBE)))),1,IF(AND(Glass=3,Single_ST=0),1,0)) -> 0
A59: =IF(ModelNo=B59,15,"") ->  | B59: 8P40A | C59: Egress Opening Width | D59: =IF(ISERROR(EW),"N/A",EW) -> 0 | AG59: M. Strength (4 mm) | AH59: M | AI59: 4.04 | BO59: 0 | BP59: 8002 | BQ59: =$D$19 -> -5.625 | BR59: =$D$20 -> -3 | BS59: 0.1171875
A60: =IF(ModelNo=B60,16,"") ->  | B60: 8P40A | C60: Egress Opening Height | D60: =IF(ISERROR(EH),"N/A",EH) -> 0 | AG60: Triple Strength (5 mm) | AH60: T | AI60: 4.816 | BO60: 0 | BP60: 8003 | BQ60: =MAX($D$28,$D$32) -> -3.8125 | BR60: =MAX($D$29,$D$33) -> -1.9375 | BS60: 0.05129665799
A61: =IF(ModelNo=B61,17,"") ->  | B61: 8P40A | C61: Egress Opening Area (sq.ft.) | D61: =(D59*D60)/144 -> 0 | AG61: Triple IG Single Strength | AH61: STG | AI61: 3.471 | BO61: 0 | BP61: 8009 | BQ61: =MAX($D$44,#REF!) ->  | BR61: =MAX(#REF!,#REF!) -> 
A62: =IF(ModelNo=B62,1,"") ->  | B62: 3M10A | C62: Sash Width | D62: =DDIM_3M10A-0.5625 -> -0.5625 | AG62: Triple IG Double Strength | AH62: DTG | AI62: 4.8 | BO62: 0 | BP62: 8014 | BQ62: =#REF! ->  | BR62: =#REF! -> 
A63: =IF(ModelNo=B63,2,"") ->  | B63: 3M10A | C63: Sash Height | D63: =Frame_Height-2.75 -> -2.75 | AG63: Laminated | AH63: L | AI63: 5.366 | BO63: 0 | BP63: 8051 | BQ63: =#REF! ->  | BR63: =#REF! -> 
A64: =IF(ModelNo=B64,3,"") ->  | B64: 3M10A | C64: Fixed Glass Width | D64: =CDIM_3M10A-2.4375 -> -2.4375 | AG64: Impact Laminated | AH64: IL | AI64: 5.366 | BO64: 0 | BP64: 8052 | BQ64: =MAX(#REF!,#REF!) ->  | BR64: =MAX(#REF!,#REF!) -> 
A65: =IF(ModelNo=B65,4,"") ->  | B65: 3M10A | C65: Fixed Glass Height | D65: =Frame_Height-3.0625 -> -3.0625 | BO65: 0 | BP65: 8053 | BQ65: =MAX(#REF!,#REF!) ->  | BR65: =MAX(#REF!,#REF!) -> 
A66: =IF(ModelNo=B66,5,"") ->  | B66: 3M10A | C66: Sash Glass Width | D66: =DDIM_3M10A-2.4375 -> -2.4375 | BO66: 0 | BP66: 8054 | BQ66: =MAX(#REF!,#REF!) ->  | BR66: =MAX(#REF!,#REF!) ->  | BS66: =(BQ66*BR66)/144 -> 
A67: =IF(ModelNo=B67,6,"") ->  | B67: 3M10A | C67: Sash Glass Height | D67: =Frame_Height-4.625 -> -4.625 | BO67: 0 | BP67: 8055 | BQ67: =#REF! ->  | BR67: =#REF! -> 
A68: =IF(ModelNo=B68,7,"") ->  | B68: 3M10A | C68: Screen Width | D68: =DDIM_3M10A-1.9375 -> -1.9375 | BO68: 0 | BP68: 8070 | BQ68: =#REF! ->  | BR68: =#REF! -> 
A69: =IF(ModelNo=B69,8,"") ->  | B69: 3M10A | C69: Screen Height | D69: =Frame_Height-3.5 -> -3.5 | BO69: 0 | BP69: 8071 | BQ69: =#REF! ->  | BR69: =#REF! -> 
A70: =IF(ModelNo=B70,9,"") ->  | B70: 3M10A | C70: Egress Opening Width | D70: =DDIM_3M10A-3.5 -> -3.5 | BO70: 0 | BP70: 8072 | BQ70: =#REF! ->  | BR70: =#REF! -> 
A71: =IF(ModelNo=B71,10,"") ->  | B71: 3M10A | C71: Egress Opening Height | D71: =Frame_Height-4 -> -4 | BO71: 0 | BP71: 8073 | BQ71: =MAX(#REF!,#REF!) ->  | BR71: =MAX(#REF!,#REF!) -> 
A72: =IF(ModelNo=B72,11,"") ->  | B72: 3M10A | C72: Egress Opening Area (sq.ft.) | D72: =(D70*D71)/144 -> 0.09722222222 | BO72: 0 | BP72: 8074 | BQ72: =MAX(#REF!,#REF!) ->  | BR72: =MAX(#REF!,#REF!) -> 
A73: =IF(ModelNo=B73,1,"") ->  | B73: 3M10R | C73: Sash Width | D73: =DDIM_3M10A-0.5625 -> -0.5625 | BO73: 0 | BP73: 8075 | BQ73: =MAX(#REF!,#REF!) ->  | BR73: =MAX(#REF!,#REF!) -> 
A74: =IF(ModelNo=B74,2,"") ->  | B74: 3M10R | C74: Sash Height | D74: =Frame_Height-2.75 -> -2.75 | BO74: 0 | BP74: 8079 | BQ74: =MAX(#REF!,#REF!) ->  | BR74: =MAX(#REF!,#REF!) -> 
A75: =IF(ModelNo=B75,3,"") ->  | B75: 3M10R | C75: Fixed Glass Width | D75: =CDIM_3M10A-2.4375 -> -2.4375 | BO75: 0 | BP75: 8402 | BQ75: =$D$62 -> -0.5625 | BR75: =$D$63 -> -2.75 | BS75: 0.0107421875
A76: =IF(ModelNo=B76,4,"") ->  | B76: 3M10R | C76: Fixed Glass Height | D76: =Frame_Height-3.0625 -> -3.0625 | BO76: 0 | BP76: 8403 | BQ76: =#REF! ->  | BR76: =#REF! -> 
A77: =IF(ModelNo=B77,5,"") ->  | B77: 3M10R | C77: Sash Glass Width | D77: =DDIM_3M10A-2.4375 -> -2.4375 | BO77: 0 | BP77: 8404 | BQ77: =#REF! ->  | BR77: =#REF! -> 
A78: =IF(ModelNo=B78,6,"") ->  | B78: 3M10R | C78: Sash Glass Height | D78: =Frame_Height-4.625 -> -4.625 | BO78: 0 | BP78: 8405 | BQ78: =$D$62 -> -0.5625 | BR78: =$D$63 -> -2.75 | BS78: 0.0107421875
A79: =IF(ModelNo=B79,7,"") ->  | B79: 3M10R | C79: Screen Width | D79: =DDIM_3M10A-1.9375 -> -1.9375 | BO79: 0 | BP79: 8406 | BQ79: =$D$62 -> -0.5625 | BR79: =$D$63 -> -2.75 | BS79: 0.0107421875
A80: =IF(ModelNo=B80,8,"") ->  | B80: 3M10R | C80: Screen Height | D80: =Frame_Height-3.5 -> -3.5 | BO80: 0 | BP80: 8408 | BQ80: =$D$62 -> -0.5625 | BR80: =$D$63 -> -2.75 | BS80: 0.0107421875
A81: =IF(ModelNo=B81,9,"") ->  | B81: 3M10R | C81: Egress Opening Width | D81: =DDIM_3M10A-3.5 -> -3.5 | BO81: 0 | BP81: 8409 | BQ81: =#REF! ->  | BR81: =#REF! -> 
A82: =IF(ModelNo=B82,10,"") ->  | B82: 3M10R | C82: Egress Opening Height | D82: =Frame_Height-4 -> -4 | BO82: 0 | BP82: 8412 | BQ82: =#REF! ->  | BR82: =#REF! -> 
A83: =IF(ModelNo=B83,11,"") ->  | B83: 3M10R | C83: Egress Opening Area (sq.ft.) | D83: =(D81*D82)/144 -> 0.09722222222 | BO83: 0 | BP83: 8422 | BQ83: =#REF! ->  | BR83: =#REF! -> 
A84: =IF(ModelNo=B84,1,"") ->  | B84: 3M10C14 | C84: Operating Sash Width | D84: =DDIM_3M10C14-0.5625 -> -0.5625 | BO84: 0 | BP84: 8475 | BQ84: =$D$62 -> -0.5625 | BR84: =$D$63 -> -2.75 | BS84: 0.0107421875
A85: =IF(ModelNo=B85,2,"") ->  | B85: 3M10C14 | C85: Operating Sash Height | D85: =Frame_Height-2.6875 -> -2.6875 | BO85: 0 | BP85: R970 | BQ85: =#REF! ->  | BR85: =#REF! -> 
A86: =IF(ModelNo=B86,3,"") ->  | B86: 3M10C14 | C86: Sash Glass Width | D86: =DDIM_3M10C14-2.4375 -> -2.4375 | BO86: 0 | BP86: R971 | BQ86: =#REF! ->  | BR86: =#REF! -> 
A87: =IF(ModelNo=B87,4,"") ->  | B87: 3M10C14 | C87: Sash Glass Height | D87: =Frame_Height-4.5625 -> -4.5625 | BO87: =IF(ModelNo=BP86,ModelNo,0) -> 0 | BP87: =ModelNo -> Select Model | BQ87: =IF(ISERROR(VLOOKUP(ModelNo,$BP$24:$BT$86,2,FALSE)),0,VLOOKUP(ModelNo,$BP$24:$BT$86,2,FALSE)) -> 0 | BR87: =IF(ISERROR(VLOOKUP(ModelNo,$BP$24:$BT$86,3,FALSE)),0,VLOOKUP(ModelNo,$BP$24:$BT$86,3,FALSE)) -> 0 | BS87: =IF(ISERROR(VLOOKUP(ModelNo,$BP$24:$BT$86,4,FALSE)),0,VLOOKUP(ModelNo,$BP$24:$BT$86,4,FALSE)) -> 0 | BT87: =IF(ISERROR(VLOOKUP(ModelNo,$BP$24:$BT$86,5,FALSE)),0,VLOOKUP(ModelNo,$BP$24:$BT$86,5,FALSE)) -> 0
A88: =IF(ModelNo=B88,5,"") ->  | B88: 3M10C14 | C88: Fixed Glass Width | D88: =CDIM_3M10C14-1.875 -> -1.875
A89: =IF(ModelNo=B89,6,"") ->  | B89: 3M10C14 | C89: Fixed Glass Height | D89: =Frame_Height-3.0625 -> -3.0625
A90: =IF(ModelNo=B90,7,"") ->  | B90: 3M10C14 | C90: Screen Width | D90: =DDIM_3M10C14-1.9375 -> -1.9375
A91: =IF(ModelNo=B91,8,"") ->  | B91: 3M10C14 | C91: Screen Height | D91: =Frame_Height-3.5 -> -3.5
A92: =IF(ModelNo=B92,9,"") ->  | B92: 3M10C14 | C92: Egress Opening Width | D92: =DDIM_3M10C14-3 -> -3
A93: =IF(ModelNo=B93,10,"") ->  | B93: 3M10C14 | C93: Egress Opening Height | D93: =Frame_Height-4 -> -4
A94: =IF(ModelNo=B94,11,"") ->  | B94: 3M10C14 | C94: Egress Opening Area (sq.ft.) | D94: =(D92*D93)/144 -> 0.08333333333
A95: =IF(ModelNo=B95,1,"") ->  | B95: 3M10C13 | C95: Operating Sash Width | D95: =DDIM_3M10C13-0.5625 -> -0.5625
A96: =IF(ModelNo=B96,2,"") ->  | B96: 3M10C13 | C96: Operating Sash Height | D96: =Frame_Height-2.6875 -> -2.6875
A97: =IF(ModelNo=B97,3,"") ->  | B97: 3M10C13 | C97: Sash Glass Width | D97: =DDIM_3M10C13-2.4375 -> -2.4375
A98: =IF(ModelNo=B98,4,"") ->  | B98: 3M10C13 | C98: Sash Glass Height | D98: =Frame_Height-4.5625 -> -4.5625
A99: =IF(ModelNo=B99,5,"") ->  | B99: 3M10C13 | C99: Fixed Glass Width | D99: =CDIM_3M10C13-1.875 -> -1.875
A100: =IF(ModelNo=B100,6,"") ->  | B100: 3M10C13 | C100: Fixed Glass Height | D100: =Frame_Height-3.0625 -> -3.0625
A101: =IF(ModelNo=B101,7,"") ->  | B101: 3M10C13 | C101: Screen Width | D101: =DDIM_3M10C13-1.9375 -> -1.9375
A102: =IF(ModelNo=B102,8,"") ->  | B102: 3M10C13 | C102: Screen Height | D102: =Frame_Height-3.5 -> -3.5
A103: =IF(ModelNo=B103,9,"") ->  | B103: 3M10C13 | C103: Egress Opening Width | D103: =DDIM_3M10C13-4 -> -4
A104: =IF(ModelNo=B104,10,"") ->  | B104: 3M10C13 | C104: Egress Opening Height | D104: =Frame_Height-4 -> -4
A105: =IF(ModelNo=B105,11,"") ->  | B105: 3M10C13 | C105: Egress Opening Area (sq.ft.) | D105: =(D103*D104)/144 -> 0.1111111111
A106: =IF(ModelNo=B106,1,"") ->  | B106: 8M10A | C106: Interior Sash Width | D106: =CDIM_8M10A-0.6875 -> -0.6875
A107: =IF(ModelNo=B107,2,"") ->  | B107: 8M10A | C107: Interior Sash Height | D107: =Frame_Height-2.75 -> -2.75
A108: =IF(ModelNo=B108,3,"") ->  | B108: 8M10A | C108: Exterior Sash Width | D108: =DDIM_8M10A-1.8125 -> -1.8125
A109: =IF(ModelNo=B109,4,"") ->  | B109: 8M10A | C109: Exterior Sash Height | D109: =Frame_Height-3.875 -> -3.875
A110: =IF(ModelNo=B110,5,"") ->  | B110: 8M10A | C110: Interior Glass Width | D110: =CDIM_8M10A-2.5625 -> -2.5625
A111: =IF(ModelNo=B111,6,"") ->  | B111: 8M10A | C111: Interior Glass Height | D111: =Frame_Height-4.625 -> -4.625
A112: =IF(ModelNo=B112,7,"") ->  | B112: 8M10A | C112: Exterior Glass Width | D112: =DDIM_8M10A-3.6875 -> -3.6875
A113: =IF(ModelNo=B113,8,"") ->  | B113: 8M10A | C113: Exterior Glass Height | D113: =Frame_Height-5.75 -> -5.75
A114: =IF(ModelNo=B114,9,"") ->  | B114: 8M10A | C114: Screen Width | D114: =Frame_Width-3.9375 -> -3.9375
A115: =IF(ModelNo=B115,10,"") ->  | B115: 8M10A | C115: Screen Height | D115: =Frame_Height-3.25 -> -3.25
A116: =IF(ModelNo=B116,11,"") ->  | B116: 8M10A | C116: Egress Opening Width | D116: =DDIM_8M10A-5.25 -> -5.25
A117: =IF(ModelNo=B117,12,"") ->  | B117: 8M10A | C117: Egress Opening Height | D117: =Frame_Height-5 -> -5
A118: =IF(ModelNo=B118,13,"") ->  | B118: 8M10A | C118: Egress Opening Area (sq.ft.) | D118: =(D116*D117)/144 -> 0.1822916667
A119: =IF(ModelNo=B119,1,"") ->  | B119: 3P10A | C119: Sash Width | D119: =DDIM_3P10A-1.125 -> -1.125
A120: =IF(ModelNo=B120,2,"") ->  | B120: 3P10A | C120: Sash Height | D120: =Frame_Height-3.875 -> -3.875
A121: =IF(ModelNo=B121,3,"") ->  | B121: 3P10A | C121: Fixed Glass Width | D121: =CDIM_3P10A-3 -> -3
A122: =IF(ModelNo=B122,4,"") ->  | B122: 3P10A | C122: Fixed Glass Height | D122: =Frame_Height-4.125 -> -4.125
A123: =IF(ModelNo=B123,5,"") ->  | B123: 3P10A | C123: Sash Glass Width | D123: =DDIM_3P10A-3 -> -3
A124: =IF(ModelNo=B124,6,"") ->  | B124: 3P10A | C124: Sash Glass Height | D124: =Frame_Height-5.75 -> -5.75
A125: =IF(ModelNo=B125,7,"") ->  | B125: 3P10A | C125: Screen Width | D125: =DDIM_3P10A-2.5 -> -2.5
A126: =IF(ModelNo=B126,8,"") ->  | B126: 3P10A | C126: Screen Height | D126: =Frame_Height-4.5625 -> -4.5625
A127: =IF(ModelNo=B127,9,"") ->  | B127: 3P10A | C127: Egress Opening Width | D127: =DDIM_3P10A-4.5 -> -4.5
A128: =IF(ModelNo=B128,10,"") ->  | B128: 3P10A | C128: Egress Opening Height | D128: =Frame_Height-5 -> -5
A129: =IF(ModelNo=B129,11,"") ->  | B129: 3P10A | C129: Egress Opening Area (sq.ft.) | D129: =(D127*D128)/144 -> 0.15625
A130: =IF(ModelNo=B130,1,"") ->  | B130: 3P10R | C130: Sash Width | D130: =DDIM_3P10R-1.125 -> -1.125
A131: =IF(ModelNo=B131,2,"") ->  | B131: 3P10R | C131: Sash Height | D131: =Frame_Height-3.875 -> -3.875
A132: =IF(ModelNo=B132,3,"") ->  | B132: 3P10R | C132: Fixed Glass Width | D132: =CDIM_3P10R-3 -> -3
A133: =IF(ModelNo=B133,4,"") ->  | B133: 3P10R | C133: Fixed Glass Height | D133: =Frame_Height-4.125 -> -4.125
A134: =IF(ModelNo=B134,5,"") ->  | B134: 3P10R | C134: Sash Glass Width | D134: =DDIM_3P10R-3 -> -3
A135: =IF(ModelNo=B135,6,"") ->  | B135: 3P10R | C135: Sash Glass Height | D135: =Frame_Height-5.75 -> -5.75
A136: =IF(ModelNo=B136,7,"") ->  | B136: 3P10R | C136: Screen Width | D136: =DDIM_3P10R-2.5 -> -2.5
A137: =IF(ModelNo=B137,8,"") ->  | B137: 3P10R | C137: Screen Height | D137: =Frame_Height-4.5625 -> -4.5625
A138: =IF(ModelNo=B138,9,"") ->  | B138: 3P10R | C138: Egress Opening Width | D138: =DDIM_3P10R-4.5 -> -4.5
A139: =IF(ModelNo=B139,10,"") ->  | B139: 3P10R | C139: Egress Opening Height | D139: =Frame_Height-5 -> -5
A140: =IF(ModelNo=B140,11,"") ->  | B140: 3P10R | C140: Egress Opening Area (sq.ft.) | D140: =(D138*D139)/144 -> 0.15625
A141: =IF(ModelNo=B141,1,"") ->  | B141: 3P10C14 | C141: Operating Sash Width | D141: =DDIM_3P10C14-0.5625 -> -0.5625
A142: =IF(ModelNo=B142,2,"") ->  | B142: 3P10C14 | C142: Operating Sash Height | D142: =Frame_Height-3.875 -> -3.875
A143: =IF(ModelNo=B143,3,"") ->  | B143: 3P10C14 | C143: Sash Glass Width | D143: =DDIM_3P10C14-2.4375 -> -2.4375
A144: =IF(ModelNo=B144,4,"") ->  | B144: 3P10C14 | C144: Sash Glass Height | D144: =Frame_Height-5.75 -> -5.75
A145: =IF(ModelNo=B145,5,"") ->  | B145: 3P10C14 | C145: Fixed Glass Width | D145: =CDIM_3P10C14-1.875 -> -1.875
A146: =IF(ModelNo=B146,6,"") ->  | B146: 3P10C14 | C146: Fixed Glass Height | D146: =Frame_Height-3.0625 -> -3.0625
A147: =IF(ModelNo=B147,7,"") ->  | B147: 3P10C14 | C147: Screen Width | D147: =DDIM_3P10C14-2.5 -> -2.5
A148: =IF(ModelNo=B148,8,"") ->  | B148: 3P10C14 | C148: Screen Height | D148: =Frame_Height-4.5625 -> -4.5625
A149: =IF(ModelNo=B149,9,"") ->  | B149: 3P10C14 | C149: Egress Opening Width | D149: =DDIM_3P10C14-3.5 -> -3.5
A150: =IF(ModelNo=B150,10,"") ->  | B150: 3P10C14 | C150: Egress Opening Height | D150: =Frame_Height-5.125 -> -5.125
A151: =IF(ModelNo=B151,11,"") ->  | B151: 3P10C14 | C151: Egress Opening Area (sq.ft.) | D151: =(D149*D150)/144 -> 0.1245659722
A152: =IF(ModelNo=B152,1,"") ->  | B152: 3P10C13 | C152: Operating Sash Width | D152: =DDIM_3P10C13-0.5625 -> -0.5625
A153: =IF(ModelNo=B153,2,"") ->  | B153: 3P10C13 | C153: Operating Sash Height | D153: =Frame_Height-3.875 -> -3.875
A154: =IF(ModelNo=B154,3,"") ->  | B154: 3P10C13 | C154: Sash Glass Width | D154: =DDIM_3P10C13-2.4375 -> -2.4375
A155: =IF(ModelNo=B155,4,"") ->  | B155: 3P10C13 | C155: Sash Glass Height | D155: =Frame_Height-5.75 -> -5.75
A156: =IF(ModelNo=B156,5,"") ->  | B156: 3P10C13 | C156: Fixed Glass Width | D156: =CDIM_3P10C13-1.875 -> -1.875
A157: =IF(ModelNo=B157,6,"") ->  | B157: 3P10C13 | C157: Fixed Glass Height | D157: =Frame_Height-3.0625 -> -3.0625
A158: =IF(ModelNo=B158,7,"") ->  | B158: 3P10C13 | C158: Screen Width | D158: =DDIM_3P10C13-2.5 -> -2.5
A159: =IF(ModelNo=B159,8,"") ->  | B159: 3P10C13 | C159: Screen Height | D159: =Frame_Height-4.5625 -> -4.5625
A160: =IF(ModelNo=B160,9,"") ->  | B160: 3P10C13 | C160: Egress Opening Width | D160: =DDIM_3M10C13-4.5 -> -4.5
A161: =IF(ModelNo=B161,10,"") ->  | B161: 3P10C13 | C161: Egress Opening Height | D161: =Frame_Height-5.125 -> -5.125
A162: =IF(ModelNo=B162,11,"") ->  | B162: 3P10C13 | C162: Egress Opening Area (sq.ft.) | D162: =(D160*D161)/144 -> 0.16015625
A163: =IF(ModelNo=B163,1,"") ->  | B163: 8P10A | C163: Interior Sash Width | D163: =CDIM_8P10A-1.25 -> -1.25
A164: =IF(ModelNo=B164,2,"") ->  | B164: 8P10A | C164: Interior Sash Height | D164: =Frame_Height-3.875 -> -3.875
A165: =IF(ModelNo=B165,3,"") ->  | B165: 8P10A | C165: Exterior Sash Width | D165: =DDIM_8M10A-2.375 -> -2.375
A166: =IF(ModelNo=B166,4,"") ->  | B166: 8P10A | C166: Exterior Sash Height | D166: =Frame_Height-4.9375 -> -4.9375
A167: =IF(ModelNo=B167,5,"") ->  | B167: 8P10A | C167: Interior Glass Width | D167: =CDIM_8P10A-3.125 -> -3.125
A168: =IF(ModelNo=B168,6,"") ->  | B168: 8P10A | C168: Interior Glass Height | D168: =Frame_Height-5.75 -> -5.75
A169: =IF(ModelNo=B169,7,"") ->  | B169: 8P10A | C169: Exterior Glass Width | D169: =DDIM_8M10A-4.25 -> -4.25
A170: =IF(ModelNo=B170,8,"") ->  | B170: 8P10A | C170: Exterior Glass Height | D170: =Frame_Height-6.8125 -> -6.8125
A171: =IF(ModelNo=B171,9,"") ->  | B171: 8P10A | C171: Screen Width | D171: =Frame_Width-4.8125 -> -4.8125
A172: =IF(ModelNo=B172,10,"") ->  | B172: 8P10A | C172: Screen Height | D172: =Frame_Height-4.3125 -> -4.3125
A173: =IF(ModelNo=B173,11,"") ->  | B173: 8P10A | C173: Egress Opening Width | D173: =DDIM_8P10A-5.25 -> -5.25
A174: =IF(ModelNo=B174,12,"") ->  | B174: 8P10A | C174: Egress Opening Height | D174: =Frame_Height-6.125 -> -6.125
A175: =IF(ModelNo=B175,13,"") ->  | B175: 8P10A | C175: Egress Opening Area (sq.ft.) | D175: =(D173*D174)/144 -> 0.2233072917
A176: =IF(ModelNo=B176,1,"") ->  | B176: 8M21A | C176: Interior Sash Width | D176: =CDIM_8M21A-0.8125 -> -0.8125
A177: =IF(ModelNo=B177,2,"") ->  | B177: 8M21A | C177: Interior Sash Height | D177: =Frame_Height-2.6875 -> -2.6875
A178: =IF(ModelNo=B178,3,"") ->  | B178: 8M21A | C178: Exterior Sash Width | D178: =DDIM_8M21A-1.9375 -> -1.9375
A179: =IF(ModelNo=B179,4,"") ->  | B179: 8M21A | C179: Exterior Sash Height | D179: =Frame_Height-3.8125 -> -3.8125
A180: =IF(ModelNo=B180,5,"") ->  | B180: 8M21A | C180: Interior Glass Width | D180: =CDIM_8M21A-2.6875 -> -2.6875
A181: =IF(ModelNo=B181,6,"") ->  | B181: 8M21A | C181: Interior Glass Height | D181: =Frame_Height-4.5625 -> -4.5625
A182: =IF(ModelNo=B182,7,"") ->  | B182: 8M21A | C182: Exterior Glass Width | D182: =DDIM_8M21A-3.8125 -> -3.8125
A183: =IF(ModelNo=B183,8,"") ->  | B183: 8M21A | C183: Exterior Glass Height | D183: =Frame_Height-5.6875 -> -5.6875
A184: =IF(ModelNo=B184,9,"") ->  | B184: 8M21A | C184: Screen Width | D184: =Frame_Width-3.9375 -> -3.9375
A185: =IF(ModelNo=B185,10,"") ->  | B185: 8M21A | C185: Screen Height | D185: =Frame_Height-3.25 -> -3.25
A186: =IF(ModelNo=B186,11,"") ->  | B186: 8M21A | C186: Egress Opening Width | D186: =DDIM_8M21A-5.25 -> -5.25
A187: =IF(ModelNo=B187,12,"") ->  | B187: 8M21A | C187: Egress Opening Height | D187: =Frame_Height-5 -> -5
A188: =IF(ModelNo=B188,13,"") ->  | B188: 8M21A | C188: Egress Opening Area (sq.ft.) | D188: =(D186*D187)/144 -> 0.1822916667
A189: =IF(ModelNo=B189,1,"") ->  | B189: 8M00A | C189: Glass Width | D189: =Frame_Width-2.8125 -> -2.8125
A190: =IF(ModelNo=B190,2,"") ->  | B190: 8M00A | C190: Glass Height | D190: =Frame_Height-2.8125 -> -2.8125
A191: =IF(ModelNo=B191,3,"") ->  | B191: 8M00A | C191: Glass Area | D191: =(D189*D190)/144 -> 0.05493164062
A192: =IF(ModelNo=B192,1,"") ->  | B192: 8P00A | C192: Glass Width | D192: =Frame_Width-3.875 -> -3.875
A193: =IF(ModelNo=B193,2,"") ->  | B193: 8P00A | C193: Glass Height | D193: =Frame_Height-3.875 -> -3.875
A194: =IF(ModelNo=B194,3,"") ->  | B194: 8P00A | C194: Glass Area | D194: =(D192*D193)/144 -> 0.1042751736
A195: =IF(ModelNo=B195,1,"") ->  | B195: 8M71F | C195: Glass Width | D195: =Frame_Width-5.4375 -> -5.4375
A196: =IF(ModelNo=B196,2,"") ->  | B196: 8M71F | C196: Glass Height | D196: =Frame_Height-5.4375 -> -5.4375
A197: =IF(ModelNo=B197,3,"") ->  | B197: 8M71F | C197: Glass Area | D197: =(D195*D196)/144 -> 0.2053222656
A198: =IF(ModelNo=B198,1,"") ->  | B198: 8P71F | C198: Glass Width | D198: =Frame_Width-5.4375 -> -5.4375
A199: =IF(ModelNo=B199,2,"") ->  | B199: 8P71F | C199: Glass Height | D199: =Frame_Height-5.4375 -> -5.4375
A200: =IF(ModelNo=B200,3,"") ->  | B200: 8P71F | C200: Glass Area | D200: =(D198*D199)/144 -> 0.2053222656
... 267 more rows
